{"text_format":"1","workbook":"xlsx","n_sheets":22,"sheets":["SPLOŠNE ZAHTEVE","SKUPNA REKAPITULACIJA","REKAPITULACIJA AP","AP","REKAPITULACIJA CESTA","CESTA","REKAPITULACIJA VOZIŠČE","VOZIŠČE","REKAPITULACIJA PLOČNIK","PLOČNIK","REKAPITULACIJA JR","JR","REKAPITULACIJA EL","EL","REKAPITULACIJA TKV","TKV","VODOVOD-splošno","REKAPITULACIJA VODOVOD","VODOVOD_1","VODOVOD_2","VODOVOD_3","VODOVOD_4"],"not_rendered":{"charts":0,"images":0,"macros":0,"external_links":0,"defined_names":33,"comments":0,"pivot_tables":0},"unopened":[],"bounds":{"document_bytes":16777216,"sheet_cells":100000,"rows_first":2000,"rows_last":500,"rows_between":2000,"halvings":0,"cell_chars":16384,"cell_head_chars":4096},"cells_cut":0,"cells_raw":0,"read":"whole","date_system":"1900"}

{"sheet":"SPLOŠNE ZAHTEVE","index":0,"n_rows":61,"n_cols":2,"rows_kept":61,"cut":false,"hidden":false,"merged":[[59,0,59,6],[60,0,60,6],[53,0,53,6],[54,0,54,6],[55,0,55,6],[56,0,56,6],[57,0,57,6],[58,0,58,6],[41,0,41,6],[42,0,42,6],[43,0,43,6],[44,0,44,6],[45,0,45,6],[46,0,46,6],[48,0,48,6],[49,0,49,6],[50,0,50,6],[51,0,51,6],[52,0,52,6],[39,0,39,6],[28,0,28,3],[29,0,29,6],[30,0,30,6],[31,0,31,6],[32,0,32,6],[33,0,33,6],[34,0,34,6],[35,0,35,6],[36,0,36,6],[37,0,37,6],[38,0,38,6],[27,0,27,6],[18,0,18,6],[19,0,19,6],[20,0,20,6],[21,0,21,6],[22,0,22,6],[23,0,23,6],[24,0,24,6],[25,0,25,6],[26,0,26,6],[8,0,8,6],[9,0,9,6],[10,0,10,6],[11,0,11,6],[12,0,12,6],[13,0,13,6],[14,0,14,6],[15,0,15,6],[16,0,16,6],[17,0,17,6],[7,0,7,6],[1,0,1,6],[2,0,2,6],[3,0,3,6],[4,0,4,6],[5,0,5,6]]}
[null,"SPLOŠNE ZAHTEVE"]
["Ponudnik mora v cene po enoti všteti vse potrebne in spodaj navedene stroške, vkolikor ni samostojna postavka v popisu del:"]
["Cena na enoto za več in manj dela se ne spreminja."]
["Ponudnik mora nadzoru in naročniku predati seznam ponujene opreme in materiala. K ponudbi obvezno priložiti cenik po urnih postavkah posameznih kvalifikacij delavcev ter kompleten cenik prevozov, strojev in opreme ter vseh ponujenih materialov."]
["Vse manipulativne stroške."]
["Pri zemeljskih delih se vsa izkopna dela in transporti izkopnih materialov obračunajo po prostornini zemljine v raščenem stanju. Vsa razsipna dela se obračunajo po prostornini zemljine v vgrajenem stanju. Izračun količin na podlagi profilov, posnetih pred in po izkopih. V ceno je vključen tudi višek količin zaradi faktorja razrahljivosti."]
["Meritve posameznih slojev nasipov."]
["Organizacija in oprema gradbišča:"]
["Izdelati je potrebno projekt ureditve gradbišča ter vkalkulirati stroške organizacije, ureditve deponij, priprave in opreme gradbišča."]
["Stroški izdelave varnostnega načrta skladno z Uredbo o zagotavljanju varnosti in zdravja pri delu na začasnih in premičnih gradbiščih (Ur. List 83/2005 in kasnejše spremembe in dopolnitve). V času izvajanja del je izvajalec odgovoren, da bo gradbišče urejeno v skladu z varnostnim načrtom. Načrte izvajalec preda v potrditev naročniku pet dni pred začetkom gradnje v dveh izvodih.. "]
["Priprava in organizacija gradbišča, postavitev gradbiščne ograje, vključno z vsemi potrebnimi deli na celotni dolžini izgradnje. Izvajalec si mora ogledati predvideno traso in v to postavko vključiti vsa potrebna dela pri organizaciji, pripravi in zavarovanju gradbišča."]
["Ureditev gradbišča skladno z veljavno zakonodajo, obsega vsaj naslednja dela:\n- varnostni načrt\n- postavitev gradbiščne ograje\n- postavitev gradbiščnega kontejnerja, \n- omarica prve pomoči \n- gasilnik\n- gradbiščni el. priključek, skupaj z ozemljitvijo in meritvami\n- postavitev gradbene table skladno s Pravilnikom o gradbiščih\n- postavite kemičnega WCja na gradbišču\n- dobava in namestitev varnostnih znakov in opozorilnih tabel po zahtevah varnostnega načrta in koordinatorja,                                                                                                                                           - odstranitev objektov za ureditev gradbišča, vključno z ureditvijo zemljišča po končani gradnji (vzpostavitvijo v prvotno stanje)."]
["Stroške vseh potrebnih ukrepov, ki so predpisana in določena z veljavnimi predpisi o varstvu pri delu in varstvom pred požarom, ki jih mora izvajalec obvezno upoštevati."]
["Predhodno urejanje in čiščenje delovišča, zavarovanje delovišča in gradbene jame proti okolici in tretjim osebam. Izvajalec si mora razmere ogledati in obseg podati skladno s svojo tehnologijo, v ceno pa je potrebno všteti najmanj: "]
["- Pridobitev lokacije za začasne gradbiščne objekte in za priročno skladiščenje materiala, uporaba za ves čas gradnje, vzpostavitev prvotnega stanja po zaključku del, morebitna prestavitev objektov in najemnina zemljišča."]
["- čiščenje vegetacije, posek grmovja ustrezne površine in sekanje potrebnega števila dreves na trasi oz. na gradbišču"]
["- ureditev vseh ostalih ovir na trasi brez stroška za naročnika"]
["- trasna in višinska zakoličba obstoječih komunalnih vodov in oznake križanj, vključno s stroški dodatnega nadzora upravljavcev komunalnih vodov (Vodovod, Elektro, Telekom in drugi telekomunikacijski vodi, plinovod, javna razsvetljava)."]
["- odpravo poškodb zaradi plazenja ali posipanje brežin izkopa - na objektih investitorja ali tretjih oseb - brez stroškov za investitorja."]
["- zaščita zelenice s plohi, ali PVC folijo. Vkolikor se na zelenice oz. na zaščito odlaga zemeljski material, ga je potrebno po končani gradnji odstraniti in zelenico vzpostaviti v prvotno stanje."]
["- odstranitev in ponovna postavitev v prvotno stanje - premičnih stvari ali objektov  investitorja ali tretjih oseb - brez stroškov za investitorja."]
["- postavitev gradbiščne table skladno s trenutno veljavnimi predpisi. Podatke za eventualne dodatne zahteve za opremo table in dodatne napise in oznake si mora izvajalec pridobiti pri naročniku ali investitorju."]
["- stroške električne energije, vode, TK priključkov, razsvetljave za nočno delo, stroške osvetljevanja in označevanja gradbišča in morebitne ostale stroške v času gradnje."]
["- Vsa sprotna in zaključna čiščenja cevi so všteta v ceno."]
["- Stroške rednega obveščanja javnosti o morebitnih motnjah ter posledic nastalih zaradi motenj v času gradnje. Predaja podatkov naročniku za objave v medijih, ki so dostopni samo naročniku."]
["- kakršnakoli dodatna dela se lahko obračunajo le po predhodni potrditvi nadzora in vpisu v gradbeni dnevnik. Za obračun je potrebno izdelati analizo cene."]
["Pred začetkom izgradnje je izvajalec dolžan zapisniško ugotoviti in dokumentirati obstoječe stanje vseh sosednjih objektov (predvsem zaščitenih), drugih površin in dostopnih poti. Po končanih delih je dolžan povrniti uporabljeno lokacijo v prvotno stanje in odpraviti vse poškodbe nastale zaradi gradnje na drugih objektih, napravah, površinah ter na dostopnih poteh (cestišču). Dokumentiranje stanja pomeni fotografiranje stanja ali snemanje stanja s kamero pred pričetkom del, in sicer območje bodočega gradbišča in njegove okolice (objekti ter površine, ki jih bo uporabljal v času gradnje). V primeru pomanjkanja foto-dokazov o stanju pred gradnjo stroške uveljavljanja odškodnin nosi izvajalec. V tej točki zahtevano dokumentacijo mora izvajalec hraniti najmanj do konca garancijskega obdobja, ter dokumentacijo ob njenem nastanku dostaviti naročniku. V ceni zajeti eventualna mnejnje izvedenca, vkolikor izvajalec smatra, da je potrebno."]
["Mejnike, ki jih izvajalec odstrani za potrebe gradnje, jih je po končani gradnji potrebno vzpostaviti po pravilih geodetske stroke."]
["Promet in transporti, deponije"]
["Zagotavljanje 24-urne prevoznosti ceste ter 24-urni dostop predvsem pravnim osebam ter tudi stanovalcem. Izjeme so dovoljene le s predhodnim dogovorom in pisnim potrdilom posameznega pravnega subjekta."]
["Pridobitev dovoljenj za cestno zaporo z ureditvijo prometnega režima v času gradnje, z obvestili,  obveščanje prebivalcev in pravnih oseb v obliki pisnih obvestil, zavarovanje gradbene jame in gradbišča ter postavitev prometne signalizacije. Po končanih delih je prometno signalizacijo odstraniti in prometni režim vzpostaviti v prvotno stanje.  V ceno všteta delna ali popolna zapora prometa, predhodno obveščanje in usmerjanje stanovalcev, vključno s stroški najema, postavitve in odstranitve ter stroški za pridobitev soglasij. V času eventualne popolne zapore je potrebno zagotoviti parkirna mesta za stanovalce. "]
["Predvideti prometno ureditev v času gradnje - z ureditvijo prometnega režima v času gradnje, z obvestili, zavarovanje gradbene jame in gradbišča ter postavitev prometne signalizacije. Po končanih delih je prometno signalizacijo odstraniti in prometni režim vzpostaviti v prvotno stanje."]
["Vse stroške pridobitve potrebnih soglasij in dovoljenj v zvezi s prevozi, organizacijo in opremo gradbišča (eventualno tudi za prečkanja inštalacij - vezana na prevoze in organizacijo gradbišča), zagotavljanju vseh potrebnih zavarovanj in označb gradbišča s predpisano signalizacijo ( ograja, vrvice, označbe, svetlobna telesa,…) - postavitev in odstranitev po končanih delih, kot tudi stroške pri pripravi gradbišča z odstranitvijo morebitnih ovir na trasi, zagotovitev delovnih platojev na in/ali izven gradbišča ter s tem povezanih stroškov."]
["Stroške priprave in izvedbe začasnih dostopov do in na gradbišču (izdelava vseh potrebnih začasnih prehodov, dovozov, dostopov) in stroški vsakodnevnega zagotavljanja dostopa oz. dovoza stanovalcem do objektov. V kolikor to ne bo mogoče, je potrebno stanovalcem in poslovnim subjektom pravočasno posredovati obvestilo - vsaj en teden pred začetkom del. Enako velja za stroške izvedbe začasnega obhoda (prehoda) mimo ograjenega gradbišča za pešce in sprehajalce (ves čas gradnje). Navesti je treba tudi predviden čas, ko dostop do objektov ne bo možen. V ceni je zajeta tudi prestavitev prehodov na nove lokacije."]
["Postavitev fiksnih začasnih prehodov za pešce preko jarkov do posameznih objektov ob gradbišču z varovalno ograjo, sprotnim čiščenjem in vzdrževanjem prehodov tekom gradnje in stalnim vzdrževanjem dostopov nanje. V ceni je zajeta tudi prestavitev prehodov na nove lokacije. Izvajalec mora vsakodnevno zagotavljati dostop do objektov."]
["Postavitev linijskih pomičnih zaščitnih ograj pri gradnji z vso potrebno opremo za zavarovanje gradbene jame in postavitvijo signalizacije in svetlobnih teles za nočno osvetlitev ovire. Zavarovanje je fiksno in stabilno za ves čas trajanja gradnje odseka. V ceni je zajeta tudi večkratna prestavitev ograje skladno z napredovanjem del."]
["Sprotno čiščenje vozil in čiščenje gradbišča po končanih delih (vključno z zaključnim čiščenjem) in odvoz odvečnega materiala, ter vzpostavitev terena v prvotno stanje."]
["Vse stroške zunanjega in notranjega transporta, raztovarjanja, skladiščenja materiala na gradbišču, takse, zavarovanja, manipulativne stroške ter vsa pomožna dela."]
["Sanacija oz. povrnitev v prvotno stanje vseh dostopnih poti, ki jih bo izvajalec uporabljal za vso gradbiščno logistiko."]
["Vse stroške stalnih in začasnih deponij všteti v ceno (takse, odškodnine, cena razplaniranja…)"]
["Materiali za vgradnjo"]
["Za gradnjo je dovoljeno uporabljati samo proizvode, ki imajo pridobljene ustrezne listine o skladnosti in so skladni s slovenskimi tehničnimi predpisi in slovenskimi standardi. Vsi vgrajeni gradbeni materiali in ostali polizdelki, ki se vgrajujejo v objekt morajo vsebovati vtisnjene ali na drug način razvidne podatke iz katerih je mogoče razbrati in slediti poreklo materiala (serijska številka, tip, št. šarže itd.), najmanj pa izjave o lastnostih, pri čemer morajo biti dokumenti obvezno prevedeni v slovenščino in nostrificirani od pooblaščene institucije v RS"]
["Skladno s prejšnjo točko je potrebno zbrati vso, po predpisih zahtevano, dokumentacijo o kvaliteti materialov in tehnološkemu postopku gradnje, jo pripraviti in predložiti na primopredaji. V ceno všteti stroške sprotnega dokumentiranja in posredovanja nadzorniku in projektantu vseh dokazil o zanesljivosti objektov, atestov, certifikatov,.... ter sprememb za izdelavo projekta izvedenih del, tako da bo PID projektna dokumentacija izdelana pred internim tehničnim pregledom objekta. "]
["Vezano na prejšnji dve točki - Stroški vseh meritev (kot npr. vgrajenih naprav ter regulacija in nastavitve vključno s poročilom in merilnimi listi ter protokolom nastavljenih vrednosti, meritve posameznih slojev nasipov,...) prevozov, drobnega materiala, transportnih stroškov, pridobivanja certifikatov, izdelovanja poročil in pregledov za izdelavo dokazil o zanesljivosti objektov (vodotesnost, zbitost, ustreznost vgrajene opreme,...) in podobno oz. stroški za vso dokumentacijo, ki je potrebna za uspešno opravljen interni tehnični pregled oz. primopredajo."]
["Za vse vgrajene materiale velja, da jih izvajalec lahko predlaga, vendar je pred vgradnjo potrebna potrditev investitorja, nadzora in projektanta. Že pred vgradnjo je obvezno priložiti dokazila o ustreznosti."]
["V ceni je zajeto tudi: droben potrošen material, preizkus tesnosti, spiranje in dezinfekcija, tlačni preizkusi vodovoda in vse potrebne meritve za uspešno opravljen teh. pregled, pridobitev pozitivnih izvedeniških mnenj."]
["Za vsako spremembo je potrebno pridobiti soglasje projektanta in jo zajeti v projekt izvršenih del."]
["Gradbeni odpadki "]
["Za vse gradbene odpadke je potrebno voditi evidenčne liste, odpadke pa oddati v pooblaščeno zbiralnico; kot dokaz je h gradbeni knjigi potrebno priložiti račun iz zbiralnice. Stroške odvoza, deponiranje in stroške deponije je potrebno všteti v ceno."]
["Stroške deponije odvečnega gradbenega materiala na pooblaščene deponije ali na lokacije za predelavo gradbenih materialov. Dokazila o primernem deponiranju (lokacija in količina materiala) je potrebno redno dostavljati naročniku oziroma nadzornemu organu naročnika."]
[" Vse deponije izbere izvajalec, vsi gradbeni odpadki in odvečni materiali postanejo last ponudnika."]
["Ostala in dodatna dela"]
["Kot dodatna dela (po vpisu in potrditvi v gradbeno knjigo) se obračuna prilagoditev obstoječih komunalnih in inštalacijskih vodov na novopredvideno stanje (rušenje, prestavitev, nadvišanje, obdelave, zamenjave pokrovov, AB venci, zaščita v času gradnje...), nalaganje in odvoz ruševin na stalno deponijo z vključenimi vsemi stroški deponiranja. "]
["Vkolikor ni samostojne postavke, v ceno všteta vzpostavitev obstoječega stanja, sanacija poškodb na elementih obstoječih objektov nastalih zaradi izgradnje zaradi del po tem projektu (popravki raznih AB in kamnitih zidov, odstranitev in ponovna vzpostavitev ali sanacija ograj, popravki na fasadah objektov, ureditev linijskih požiralnikov, hortikulturna ureditev...), nalaganje in odvoz ruševin na stalno deponijo z vključenimi vsemi stroški deponiranja."]
["Zunanji izvajalci"]
["Izvajalec gradnje mora izvajalcu gospodarske javne službe pravočasno sporočiti datume izvajanja preizkusov vodotesnosti vodovodov, da bo upravljavec lahko zagotovil prisotnost nadzora. Za strošek izvajalca javne službe je potrebno pridobiti ponudbo, stroške pa   všteti v ceno."]
["Projektantski nadzor in usklajevanje projekta z dejansko ugotovljenim stanjem na terenu. Izvajalec si mora od projektanta pridobiti ponudbo, stroške pa všteti v ceno. "]
["Končna dokumentacija"]
["Geodetski posnetek pri odprti trasi (pred zasutjem), predložitev posnetka k dokazilu o zanesljivosti."]
["Izdelava PID projekta v papirni (4 izvodih tiskane obliki) in elektronski obliki skladno s pravilnikom in navodili upravljavca komunalne infrastrukture vključno z vodilno mapo in dokazilom o zanesljivosti, dokumentacija za interni tehnični pregled, izvajalski del dokumentacije."]
["V ceni je zajeta tudi vsa potrebna dokumentacija, ki je potrebna za interni tehnični pregled in za pridobitev uporabnega dovoljenja in vris v kataster GJI (PVE) – Projekt za vpis v uradne evidence."]

{"sheet":"SKUPNA REKAPITULACIJA","index":1,"n_rows":38,"n_cols":6,"rows_kept":38,"cut":false,"hidden":false,"merged":[[6,1,6,5],[5,2,5,3],[0,1,0,5],[1,1,1,5],[3,1,3,5],[4,2,4,3]]}
["objekt:","Glavna cesta G2-106, odsek 0263 Žlebič – Kočevje, od km 1,230 do km 2,350 "]
[null,"skozi naselji GRIČ IN BREG"]
[]
["načrt:","3/1 - načrt ceste"]
["faza:","PZI"]
["št.proj.",1531,null,null,"== AVTOBUSNA POSTAJALIŠČA=="]
[]
[]
[]
[]
[]
["REKAPITULACIJA "]
[]
[]
[]
[]
["1.","AP",null,null,null,{"$f":"'REKAPITULACIJA AP'!F29","v":0}]
[]
["2.","CESTA",null,null,null,{"$f":"'REKAPITULACIJA CESTA'!F29","v":2025}]
[]
["3.","VOZIŠČE",null,null,null,{"$f":"'REKAPITULACIJA VOZIŠČE'!F31","v":53325}]
[]
["4.","PLOČNIK",null,null,null,{"$f":"'REKAPITULACIJA PLOČNIK'!F27","v":0}]
[]
["5.","JR",null,null,null,{"$f":"'REKAPITULACIJA JR'!I10","v":1800}]
[]
["6.","EL",null,null,null,{"$f":"'REKAPITULACIJA EL'!I7","v":630}]
[]
["7.","TKV",null,null,null,{"$f":"'REKAPITULACIJA TKV'!I9","v":2700}]
[]
["8.","VODOVOD",null,null,null,{"$f":"'REKAPITULACIJA VODOVOD'!I9","v":12330}]
[]
["9.","NEPREDVIDENA DELA 10%",null,null,null,{"$f":"SUM(F17:F31)*0.1","v":7281}]
[null,"SKUPAJ",null,null,null,{"$f":"SUM(F17:F33)","v":80091}]
[]
[null,"+22% DDV",null,null,null,{"$f":"F34*0.22","v":17620.02}]
[]
[null,"SKUPAJ Z DDV",null,null,null,{"$f":"F34+F36","v":97711.02}]

{"sheet":"REKAPITULACIJA AP","index":2,"n_rows":29,"n_cols":6,"rows_kept":29,"cut":false,"hidden":false,"merged":[[6,1,6,5],[5,2,5,3],[0,1,0,5],[1,1,1,5],[3,1,3,5],[4,2,4,3]]}
["objekt:","Glavna cesta G2-106, odsek 0263 Žlebič – Kočevje, od km 1,230 do km 2,350 "]
[null,"skozi naselji GRIČ IN BREG"]
[]
["načrt:","3/1 - načrt ceste"]
["faza:","PZI","datum:",null,"maj 2018, po recenziji"]
["št.proj.",1531,null,null,"== AVTOBUSNA POSTAJALIŠČA=="]
[]
[]
[]
[]
[]
["REKAPITULACIJA "]
[]
[]
[]
[]
["1.","PREDDELA",null,null,null,{"$f":"AP!F19","v":0}]
[]
["2.","ZEMELJSKA DELA",null,null,null,{"$f":"AP!F54","v":0}]
[]
["3.","VOZIŠČNE KONSTRUKCIJE",null,null,null,{"$f":"AP!F68","v":0}]
[]
["5.",{"$f":"AP!B71","v":"GRADBENA IN OBRTNIŠKA DELA"},null,null,null,{"$f":"AP!F73","v":0}]
[]
["6.","OPREMA CEST",null,null,null,{"$f":"AP!F88","v":0}]
[]
["8.","OSTALO",null,null,null,{"$f":"AP!F93","v":0}]
[]
[null,"SKUPAJ",null,null,null,{"$f":"SUM(F17:F28)","v":0}]

{"sheet":"AP","index":3,"n_rows":95,"n_cols":6,"rows_kept":95,"cut":false,"hidden":false,"merged":[[0,1,0,5],[1,1,1,5],[3,1,3,5],[4,2,4,3],[5,2,5,3]]}
["objekt:","Glavna cesta G2-106, odsek 0263 Žlebič – Kočevje, od km 1,230 do km 2,350 "]
[null,"skozi naselji GRIČ IN BREG"]
[]
["načrt:","3/1 - načrt ceste"]
["faza:","PZI"]
["št.proj.",1531]
[]
["šifra","opis dela","količina","enota","cena/enota","znesek"]
[]
["1.","PREDDELA"]
["1.1","Geodetska dela"]
["11 631","Posnetek višine in položaja točke na terenu/objektu",100,"kos",null,{"$f":"C12 * E12","v":0}]
["1.1","Geodetska dela",null,null,null,{"$f":"SUM(F12:F12)","v":0}]
[]
["1.2","Čiščenje terena"]
["12 323","Porušitev in odstranitev asfaltne plasti v debelini nad 10cm",200,"m2",null,{"$f":"C16 * E16","v":0}]
["1.2","Čiščenje terena",null,null,null,{"$f":"SUM(F16:F16)","v":0}]
[]
["1.","PREDDELA",null,null,null,{"$f":"F13+F17","v":0}]
[]
[]
["2.","ZEMELJSKA DELA"]
["2.1","Izkopi"]
["21 114","Površinski izkop plodne zemljine – 1. kategorije – strojno z nakladanjem",35,"m3",null,{"$f":"C24 * E24","v":0}]
["21 224","Široki izkop vezljive zemljine – 3. kategorije – strojno z nakladanjem",329,"m3",null,{"$f":"C25 * E25","v":0}]
["21 215","Široki izkop trde zemljine – 5. kategorije – strojno z nakladanjem",133,"m3",null,{"$f":"C26 * E26","v":0}]
["2.1","Izkopi",null,null,null,{"$f":"SUM(F24:F26)","v":0}]
[]
["2.2","Planum temeljnih tal "]
["22 112","Ureditev planuma temeljnih tal vezljive zemljine – 3. do 5. kategorije",425,"m2",null,{"$f":"C30 * E30","v":0}]
["2.2.","Planum temeljnih tal ",null,null,null,{"$f":"SUM(F30:F30)","v":0}]
[]
["2.3","Ločilne, drenažne in filtrske plasti ter delovni plato"]
["23 315","Dobava in vgraditev geotekstilije za ločilno plast, natezna trdnost nad 18 kN/m2 (armaturni geosintetik, kratkotrajna natezna trdnost vsaj 40 kN/m)",495,"m2",null,{"$f":"C34 * E34","v":0}]
["2.3","Ločilne, drenažne in filtrske plasti ter delovni plato",null,null,null,{"$f":"SUM(F34:F34)","v":0}]
[]
["2.4","Nasipi, zasipi, klini, posteljica in glinasti naboj"]
["24 118","Izdelava nasipa iz zrnate kamnine - 3.kategorije z dobavo iz gramoznice - kvaliteten kamnit nasipni material frakcije 0/125",13,"m3",null,{"$f":"C38 * E38","v":0}]
["24 461","Vgraditev posteljice v debelini plasti do 50cm iz zrnate kamnine – 3.kategorije (posteljica 0/125, kvalitetni drobljenec, zmrzlinsko odpornega kamnitega materiala)",405,"m3",null,{"$f":"C39 * E39","v":0}]
["2.4","Nasipi, zasipi, klini, posteljica in glinasti naboj",null,null,null,{"$f":"SUM(F38:F39)","v":0}]
[]
["2.5","Brežine in zelenice "]
["25 122","Humuziranje brežine z valjanjem, v debelini do 15cm - strojno",25,"m2",null,{"$f":"C43 * E43","v":0}]
[null,"Zasaditev s travnim semenom",25,"m2",null,{"$f":"C44 * E44","v":0}]
["2.5","Brežine in zelenice ",null,null,null,{"$f":"SUM(F43:F44)","v":0}]
[]
["2.9","Prevozi, razprostiranje in ureditev deponij materiala"]
["29 121","Prevoz materiala na razdaljo nad 10 do 15 km",845,"t",null,{"$f":"C48 * E48","v":0}]
["29 131","Razprostiranje odvečne plodne zemljine - 1.kategorije",31,"m3",null,{"$f":"C49 * E49","v":0}]
["29 152","Odlaganje odpadne zmesi zemljine in kamnine, vključno s takso in priskrbitvijo evidenčnih listov",543,"t",null,{"$f":"C50 * E50","v":0}]
["29 153","Odlaganje odpadnega asfalta na komunalno deponijo, vključno s takso in priskrbitvijo evidenčnih listov",42,"t",null,0]
["2.9","Prevozi, razprostiranje in ureditev deponij materiala",null,null,null,{"$f":"SUM(F48:F51)","v":0}]
[]
["2.","ZEMELJSKA DELA",null,null,null,{"$f":"F27+F31+F35+F40+F45+F52","v":0}]
[]
[]
["3.","VOZIŠČNE KONSTRUKCIJE"]
["3.1","Nosilne plasti"]
["31 132","Izdelava nevezane nosilne plasti enakomerno zrnatega drobljenca TD32 iz kamnine v debelini 21 do 30cm",136,"m3",null,{"$f":"C59 * E59","v":0}]
["31 372","Izdelava zgornje nosilne plasti v debelini 6cm - AC 16 bin PmB 45/80-65, A2",357,"m2",null,{"$f":"C60 * E60","v":0}]
["31 314","Izdelava zgornje nosilne plasti v debelini 7 cm - AC 22 base B50/70 A2",357,"m2",null,0]
["3.1","Nosilne plasti",null,null,null,{"$f":"SUM(F59:F61)","v":0}]
[]
["3.2","Obrabne plasti"]
["32 293","Izdelava obrabne in zaporne plasti v debelini 40 mm - SMA 11 PmB45/80-65 A2",357,"m2",null,{"$f":"C65 * E65","v":0}]
["3.2","Obrabne plasti",null,null,null,{"$f":"SUM(F65:F65)","v":0}]
[]
["3.","VOZIŠČNE KONSTRUKCIJE",null,null,null,{"$f":"F62+F66","v":0}]
[]
[]
["5.","GRADBENA IN OBRTNIŠKA DELA"]
[null,"Izdelava AB zidca z ograjo svetle višine do 2,0m",46,"m1",null,{"$f":"C72 * E72","v":0}]
["5.","GRADBENA IN OBRTNIŠKA DELA",null,null,null,{"$f":"F72","v":0}]
[]
[]
["6.","OPREMA CEST "]
["6.2","Označbe na vozišču"]
["62 126","Izdelava tankoslojne vzdolžne označbe na vozišču z enokomponentno RUMENO barvo, vključno 250 g/m2 posipa z drobci / kroglicami stekla, strojno, debelina plasti suhe snovi 250 mm, širina črte 30 cm",170,"m1",null,{"$f":"C78 * E78","v":0}]
["62 255","Doplačilo za izdelavo prekinjenih vzdolžnih označb na vozišču, širina črte 30cm",170,"m1",null,{"$f":"C79 * E79","v":0}]
["62 168","Izdelava tankoslojne prečne in ostalih označb na vozišču z enokomponentno belo barvo, vključno 250 g/m2 posipa z drobci / kroglicami stekla, strojno, debelina plasti suhe snovi 250 mm, površina označbe nad 1,5 m2 - RUMENA BARVA",32,"m2",null,0]
["62 244","Doplačilo za ročno izdelavo ostalih označb na vozišču, posamezna površina označbe nad 1,5 m2",32,"m2",null,0]
["6.2","Označbe na vozišču",null,null,null,{"$f":"SUM(F78:F81)","v":0}]
[]
["6.4.","Oprema za zavarovanje prometa"]
[null,"Dobava in postavitev nadstrešnice kot naprimer tip Lešnik APL K03.",4,"kos",null,{"$f":"C85 * E85","v":0}]
["6.4.","Oprema za zavarovanje prometa",null,null,null,{"$f":"SUM(F85:F85)","v":0}]
[]
["6.","PROMETNA OPREMA ",null,null,null,{"$f":"F82+F86","v":0}]
[]
[]
["8.","OSTALO"]
[null,null,null,"kos",null,{"$f":"C92 * E92","v":0}]
["8.","OSTALO",null,null,null,{"$f":"SUM(F92:F92)","v":0}]
[]
[null,"SKUPAJ",null,null,null,{"$f":"F19+F54+F68+F88+F73","v":0}]

{"sheet":"REKAPITULACIJA CESTA","index":4,"n_rows":29,"n_cols":6,"rows_kept":29,"cut":false,"hidden":false,"merged":[[6,1,6,5],[0,1,0,5],[1,1,1,5],[3,1,3,5],[4,2,4,3],[5,2,5,3]]}
["objekt:","Glavna cesta G2-106, odsek 0263 Žlebič – Kočevje, od km 1,230 do km 2,350 "]
[null,"skozi naselji GRIČ IN BREG"]
[]
["načrt:","3/1 - načrt ceste"]
["faza:","PZI","datum:",null,"maj 2018, po recenziji"]
["št.proj.",1531,null,null,"== POVEZOVALNA C. =="]
[]
[]
[]
[]
[]
["REKAPITULACIJA "]
[]
[]
[]
[]
["1.","PREDDELA",null,null,null,{"$f":"CESTA!F21","v":0}]
[]
["2.","ZEMELJSKA DELA",null,null,null,{"$f":"CESTA!F59","v":0}]
[]
["3.","VOZIŠČNE KONSTRUKCIJE",null,null,null,{"$f":"CESTA!F72","v":0}]
[]
["4.","ODVODNJAVANJE",null,null,null,{"$f":"CESTA!F93","v":0}]
[]
["7.","TUJE STORITVE",null,null,null,{"$f":"CESTA!F102","v":2025}]
[]
["8.","OSTALO",null,null,null,{"$f":"CESTA!F107","v":0}]
[]
[null,"SKUPAJ",null,null,null,{"$f":"SUM(F17:F28)","v":2025}]

{"sheet":"CESTA","index":5,"n_rows":109,"n_cols":6,"rows_kept":109,"cut":false,"hidden":false,"merged":[[0,1,0,5],[1,1,1,5],[3,1,3,5],[4,2,4,3],[5,2,5,3]]}
["objekt:","Glavna cesta G2-106, odsek 0263 Žlebič – Kočevje, od km 1,230 do km 2,350 "]
[null,"skozi naselji GRIČ IN BREG"]
[]
["načrt:","3/1 - načrt ceste"]
["faza:","PZI"]
["št.proj.",1531,null,null,"== POVEZOVALNA C. =="]
[]
["šifra","opis dela","količina","enota","cena/enota","znesek"]
[]
["1.","PREDDELA"]
["1.1","Geodetska dela"]
["11 631","Posnetek višine in položaja točke na terenu/objektu",100,"kos",null,{"$f":"C12 * E12","v":0}]
["1.1","Geodetska dela",null,null,null,{"$f":"SUM(F12:F12)","v":0}]
[]
["1.2","Čiščenje terena"]
["12 322","Porušitev in odstranitev asfaltne plasti v debelini 6 do 10cm",220,"m2",null,{"$f":"C16 * E16","v":0}]
["12 382","Rezanje asfaltne plasti s talno diamantno žago, debele 6 do 10cm",12,"m1",null,0]
[null,"Predhodna obdelava stika in premaz z bitumensko lepilno zmesjo po celotni višin",12,"m1",null,0]
["1.2","Čiščenje terena",null,null,null,{"$f":"SUM(F16:F18)","v":0}]
[]
["1.","PREDDELA",null,null,null,{"$f":"F13+F19","v":0}]
[]
[]
["2.","ZEMELJSKA DELA"]
["2.1","Izkopi"]
["21 114","Površinski izkop plodne zemljine – 1. kategorije – strojno z nakladanjem",232,"m3",null,{"$f":"C26 * E26","v":0}]
["21 224","Široki izkop vezljive zemljine – 3. kategorije – strojno z nakladanjem",495,"m3",null,{"$f":"C27 * E27","v":0}]
["21 215","Široki izkop vezljive zemljine – 5. kategorije – strojno z nakladanjem",233,"m3",null,{"$f":"C28 * E28","v":0}]
["21 314","Izkop vezljive zemljine/zrnate kamnine – 3. kategorije za temelje, kanalske rove, prepuste, jaške in drenaže, širine do 1,0m in globine do 1,0m – strojno, planiranje dna ročno - METEORNA KANALIZACIJA",16,"m3",null,0]
["21 324","Izkop vezljive zemljine/zrnate kamnine – 5. kategorije za temelje, kanalske rove, prepuste, jaške in drenaže, širine do 1,0m in globine do 2m – strojno, planiranje dna ročno - METEORNA KANALIZACIJA",12,"m3",null,{"$f":"C30 * E30","v":0}]
["2.1","Izkopi",null,null,null,{"$f":"SUM(F26:F30)","v":0}]
[]
["2.2","Planum temeljnih tal "]
["22 112","Ureditev planuma temeljnih tal vezljive zemljine – 3. kategorije",1205,"m2",null,{"$f":"C34 * E34","v":0}]
["2.2.","Planum temeljnih tal ",null,null,null,{"$f":"SUM(F34:F34)","v":0}]
[]
["2.3","Ločilne, drenažne in filtrske plasti ter delovni plato"]
["23 315","Dobava in vgraditev geotekstilije za ločilno plast, natezna trdnost nad 18 kN/m2 (armaturni geosintetik, kratkotrajna natezna trdnost vsaj 40 kN/m)",1526,"m2",null,{"$f":"C38 * E38","v":0}]
["2.3","Ločilne, drenažne in filtrske plasti ter delovni plato",null,null,null,{"$f":"SUM(F38:F38)","v":0}]
[]
["2.4","Nasipi, zasipi, klini, posteljica in glinasti naboj"]
["24 219","Zasip z zrnato kamnino - 3.kategorije z dobavo iz gramoznice - METEORNA KANALIZACIJA",8,"m3",null,{"$f":"C42 * E42","v":0}]
["24 229","Zasip cevi s peskom 0/4 - METEORNA KANALIZACIJA",2,"m3",null,0]
["24 461","Vgraditev posteljice v debelini plasti do 50cm iz zrnate kamnine – 3.kategorije (posteljica 0/125, kvalitetni drobljenec, zmrzlinsko odpornega kamnitega materiala)",1094,"m3",null,0]
["2.4","Nasipi, zasipi, klini, posteljica in glinasti naboj",null,null,null,{"$f":"SUM(F42:F44)","v":0}]
[]
["2.5","Brežine in zelenice "]
["25 142","Humuziranje zelenice z valjanjem, v debelini do 15cm - strojno",128,"m2",null,{"$f":"C48 * E48","v":0}]
[null,"Zasaditev s travnim semenom",128,"m2",null,0]
["2.5","Brežine in zelenice ",null,null,null,{"$f":"SUM(F48:F49)","v":0}]
[]
["2.9","Prevozi, razprostiranje in ureditev deponij materiala"]
["29 121","Prevoz materiala na razdaljo nad 10 do 15km",1261,"t",null,{"$f":"C53 * E53","v":0}]
["29 131","Razprostiranje odvečne plodne zemljine - 1.kategorije",213,"m3",null,{"$f":"C54 * E54","v":0}]
["29 152","Odlaganje odpadne zmesi zemljine in kamnine, vključno s takso in priskrbitvijo evidenčnih listov",1215,"t",null,0]
["29 153","Odlaganje odpadnega asfalta na komunalno deponijo, vključno s takso in priskrbitvijo evidenčnih listov",46,"t",null,0]
["2.9","Prevozi, razprostiranje in ureditev deponij materiala",null,null,null,{"$f":"SUM(F53:F56)","v":0}]
[]
["2.","ZEMELJSKA DELA",null,null,null,{"$f":"F31+F35+F39+F45+F50+F57","v":0}]
[]
[]
["3.","VOZIŠČNE KONSTRUKCIJE"]
["3.1","Nosilne plasti"]
["31 132","Izdelava nevezane nosilne plasti enakomerno zrnatega drobljenca TD32 iz kamnine v debelini 21 do 30cm",267,"m3",null,{"$f":"C64 * E64","v":0}]
["31 314","Izdelava zgornje nosilne plasti v debelini 7 cm - AC 22 base B70/100 A3",1094,"m2",null,{"$f":"C65 * E65","v":0}]
["3.1","Nosilne plasti",null,null,null,{"$f":"SUM(F64:F65)","v":0}]
[]
["3.2","Obrabne plasti"]
["32 237","Izdelava obrabne in zaporne plasti v debelini 30mm - AC8 surf B50/70 A3",1094,"m2",null,{"$f":"C69 * E69","v":0}]
["3.2","Obrabne plasti",null,null,null,{"$f":"SUM(F69:F69)","v":0}]
[]
["3.","VOZIŠČNE KONSTRUKCIJE",null,null,null,{"$f":"F66+F70","v":0}]
[]
[]
["4.","ODVODNJAVANJE"]
["4.1.","Površinsko odvodnjavanje"]
[null,"Izdelava asfaltne mulde, široke 50cm (asfalt je zajet v postavkah \"voziščna konstrukcija\")",204,"m1",null,{"$f":"C77 * E77","v":0}]
["4.1.","Površinsko odvodnjavanje",null,null,null,{"$f":"SUM(F77:F77)","v":0}]
[]
["4.3","Globinsko odvodnjavanje - kanalizacija"]
["43 191","Izdelava kanalizacije iz cevi iz polietilena, vključno s podložno plastjo iz cementnega betona, premera DN160, v globini do 1,0m",14,"m1",null,{"$f":"C81 * E81","v":0}]
["4.3","Globinsko odvodnjavanje - kanalizacija",null,null,null,{"$f":"SUM(F81:F81)","v":0}]
[]
["4.4","Jaški"]
["44 333","Dobava in vgradnja jaška iz polietilena, krožnega prereza s premerom 50cm, globokega 1,5 do 2,0m",3,"kos",null,{"$f":"C85 * E85","v":0}]
["44 854","Dobava in vgraditev rešetke iz duktilne litine z nosilnostjo 400 kN, s prerezom 500/500mm",3,"kos",null,0]
["4.4","Jaški",null,null,null,{"$f":"SUM(F85:F86)","v":0}]
[]
["4.6","Izviri, vodnjaki, ponikovalnice, vrtače"]
["46 334","Ureditev ponikovalnice s perforirano cevjo iz cementnega betona, krožnega prereza, s premerom 80cm, globine 3,1 do 4,0m, vključno s pokrovom iz duktilne litine z nosilnostjo 250kN, krožnega prereza s premerom 600mm, z zaklepom",3,"kos",null,{"$f":"C90 * E90","v":0}]
["4.6","Izviri, vodnjaki, ponikovalnice, vrtače",null,null,null,{"$f":"SUM(F90:F90)","v":0}]
[]
["4.","ODVODNJAVANJE",null,null,null,{"$f":"F82+F87+F78+F91","v":0}]
[]
[]
["7.","TUJE STORITVE"]
["7.9.","Preskusi, nadzor in tehnična dokumentacija"]
["79 311","Projektantski nadzor",30,"ura",45,{"$f":"C98 * E98","v":1350}]
["79 351","Geotehnični nadzor",15,"ura",45,{"$f":"C99 * E99","v":675}]
["7.9.","Preskusi, nadzor in tehnična dokumentacija",null,null,null,{"$f":"SUM(F98:F99)","v":2025}]
[]
["7.","TUJE STORITVE",null,null,null,{"$f":"SUM(F100)","v":2025}]
[]
[]
["8.","OSTALO"]
[null,null,null,"kos",null,{"$f":"C106 * E106","v":0}]
["8.","OSTALO",null,null,null,{"$f":"SUM(F106:F106)","v":0}]
[]
[null,"SKUPAJ",null,null,null,{"$f":"F21+F59+F72+F93+F102","v":2025}]

{"sheet":"REKAPITULACIJA VOZIŠČE","index":6,"n_rows":31,"n_cols":6,"rows_kept":31,"cut":false,"hidden":false,"merged":[[0,1,0,5],[1,1,1,5],[3,1,3,5],[4,2,4,3],[5,2,5,3]]}
["objekt:","Glavna cesta G2-106, odsek 0263 Žlebič – Kočevje, od km 1,230 do km 2,350 "]
[null,"skozi naselji GRIČ IN BREG"]
[]
["načrt:","3/1 - načrt ceste"]
["faza:","PZI","datum:",null,"maj 2018, po recenziji"]
["št.proj.",1531,null,null,"== VOZIŠČE =="]
[]
[]
[]
["REKAPITULACIJA "]
[]
[]
[]
[]
["1.","PREDDELA",null,null,null,{"$f":"VOZIŠČE!F43","v":0}]
[]
["2.","ZEMELJSKA DELA",null,null,null,{"$f":"VOZIŠČE!F86","v":0}]
[]
["3.","VOZIŠČNE KONSTRUKCIJE",null,null,null,{"$f":"VOZIŠČE!F118","v":0}]
[]
["4.","ODVODNJAVANJE",null,null,null,{"$f":"VOZIŠČE!F161","v":0}]
[]
["5.",{"$f":"VOZIŠČE!B164","v":"GRADBENA IN OBRTNIŠKA DELA"},null,null,null,{"$f":"VOZIŠČE!F166","v":0}]
[]
["6.","OPREMA CEST",null,null,null,{"$f":"VOZIŠČE!F203","v":0}]
[]
["7.","TUJE STORITVE",null,null,null,{"$f":"VOZIŠČE!F214","v":10125}]
[]
["8.","OSTALO",null,null,null,{"$f":"VOZIŠČE!F219","v":43200}]
[]
[null,"SKUPAJ",null,null,null,{"$f":"SUM(F15:F30)","v":53325}]

{"sheet":"VOZIŠČE","index":7,"n_rows":221,"n_cols":6,"rows_kept":221,"cut":false,"hidden":false,"merged":[[0,1,0,5],[1,1,1,5],[3,1,3,5],[4,2,4,3],[5,2,5,3]]}
["objekt:","Glavna cesta G2-106, odsek 0263 Žlebič – Kočevje, od km 1,230 do km 2,350 "]
[null,"skozi naselji GRIČ IN BREG"]
[]
["načrt:","3/1 - načrt ceste"]
["faza:","PZI","datum:",null,"maj 2018, po recenziji"]
["št.proj.",1531,null,null,"== VOZIŠČE =="]
[]
["šifra","opis dela","količina","enota","cena/enota","znesek"]
[]
["1.","PREDDELA"]
["1.1","Geodetska dela"]
["11 121","Obnova in zavarovanje zakoličbe osi trase ostale javne ceste v ravninskem terenu",1227,"m",null,{"$f":"C12 * E12","v":0}]
["11 131","Obnova in zavarovanje zakoličbe  trase komunalnih vodov v ravninskem terenu",1227,"m",null,{"$f":"C13 * E13","v":0}]
["11 221","Postavitev in zavarovanje prečnega profila ostale javne ceste v ravninskem terenu",62,"kos",null,0]
["11 631","Posnetek višine in položaja točke na terenu/objektu",300,"kos",null,0]
["1.1","Geodetska dela",null,null,null,{"$f":"SUM(F12:F15)","v":0}]
[]
["1.2","Čiščenje terena"]
["12 141","Odstranitev grmovja in dreves z debli premera do 10cm ter vej na gosto porasli površini - ročno",100,"m2",null,{"$f":"C19 * E19","v":0}]
["12 151","Posek in odstranitev drevesa z deblom premera 11 do 30cm ter odstranitev vej",5,"kos",null,{"$f":"C20 * E20","v":0}]
["12 163","Odstranitev panja s premerom 11 do 30cm z odvozom na deponijo na razdaljo nad 1000m",5,"kos",null,0]
["12 211","Demontaža prometnega znaka na enem podstavku",22,"kos",null,0]
["12 261","Demontaža plastičnega smernika",80,"kos",null,0]
[null,"Odstranitev lesene ograje in njeno deponiranje za ponovno vgradnjo",53,"m1",null,0]
["12 322","Porušitev in odstranitev asfaltne plasti v debelini 6 do 10 cm",710,"m2",null,0]
["12 323","Porušitev in odstranitev asfaltne plasti v debelini nad 10cm",7390,"m2",null,0]
["12 373","Rezkanje in odvoz asfaltne krovne plasti v debelini 8 do 10cm",50,"m2",null,0]
["12 383","Rezanje asfaltne plasti s talno diamantno žago, debele 11 do 15 cm",1483,"m1",null,0]
["12 391","Porušitev in odstranitev robnika iz cementnega betona",135,"m1",null,0]
[null,"Rušenje betona",5,"m3",null,0]
[null,"Čiščenje asfalta",9307,"m2",null,0]
[null,"Pobrizg asfalta z bitumensko emulzijo",9307,"m2",null,0]
[null,"Predhodna obdelava stika in premaz z bitumensko lepilno zmesjo po celotni višin",303,"m1",null,0]
[null,"Pazljiv izkop in presaditev žive meje",70,"m1",null,0]
[null,"Odstranitev avtobusne nadstrešnice",2,"kos",null,0]
[null,"Pazljiv izkop in prestavitev oz. presaditev manjših dreves / grmovnic",50,"kos",null,0]
["1.2","Čiščenje terena",null,null,null,{"$f":"SUM(F19:F36)","v":0}]
[]
["1.3","Ostala preddela"]
[]
["1.3","Ostala preddela",null,null,null,0]
[]
["1.","PREDDELA",null,null,null,{"$f":"F16+F37+F41","v":0}]
[]
[]
["2.","ZEMELJSKA DELA"]
["2.1","Izkopi"]
["21 114","Površinski izkop plodne zemljine – 1. kategorije – strojno z nakladanjem",236,"m3",null,{"$f":"C48 * E48","v":0}]
["21 224","Široki izkop vezljive zemljine – 3. kategorije – strojno z nakladanjem",8155,"m3",null,{"$f":"C49 * E49","v":0}]
["21 215","Široki izkop vezljive zemljine – 5. kategorije – strojno z nakladanjem",1315,"m3",null,{"$f":"C50 * E50","v":0}]
["21 314","Izkop vezljive zemljine/zrnate kamnine – 3. kategorije za temelje, kanalske rove, prepuste, jaške in drenaže, širine do 1,0 m in globine do 1,0 m – strojno, planiranje dna ročno - METEORNA KANALIZACIJA",380,"m3",null,0]
["21 325","Izkop vezljive zemljine/zrnate kamnine – 5. kategorije za temelje, kanalske rove, prepuste, jaške in drenaže, širine do 1,0 m in globine do 2,0 m – strojno, planiranje dna ročno - METEORNA KANALIZACIJA",294,"m3",null,{"$f":"C52 * E52","v":0}]
["2.1","Izkopi",null,null,null,{"$f":"SUM(F48:F52)","v":0}]
[]
["2.2","Planum temeljnih tal "]
["22 112","Ureditev planuma temeljnih tal vezljive zemljine – 3. - 5. kategorije",10648,"m2",null,{"$f":"C56 * E56","v":0}]
["2.2.","Planum temeljnih tal ",null,null,null,{"$f":"SUM(F56:F56)","v":0}]
[]
["2.3","Ločilne, drenažne in filtrske plasti ter delovni plato"]
["23 116","Izdelava drenažne plasti iz kamnitega materiala v debelini nad 40cm",426,"m3",null,{"$f":"C60 * E60","v":0}]
["23 315","Dobava in vgraditev geotekstilije za ločilno plast, natezna trdnost nad 18 kN/m2 (armaturni geosintetik, kratkotrajna natezna trdnost vsaj 40 kN/m)",12202,"m2",null,{"$f":"C61 * E61","v":0}]
["2.3","Ločilne, drenažne in filtrske plasti ter delovni plato",null,null,null,{"$f":"SUM(F60:F61)","v":0}]
[]
["2.4","Nasipi, zasipi, klini, posteljica in glinasti naboj"]
["24 118","Izdelava nasipa iz zrnate kamnine - 3.kategorije z dobavo iz gramoznice - kvaliteten kamnit nasipni material frakcije 0/125",107,"m3",null,{"$f":"C65 * E65","v":0}]
["24 219","Zasip z zrnato kamnino - 3.kategorije z dobavo iz gramoznice - METEORNA KANALIZACIJA",145,"m3",null,{"$f":"C66 * E66","v":0}]
["24 229","Zasip cevi s peskom 0/4 - METEORNA KANALIZACIJA",45,"m3",null,0]
["24 461","Vgraditev posteljice v debelini plasti do 50cm iz zrnate kamnine – 3.kategorije (posteljica 0/125, kvalitetni drobljenec, zmrzlinsko odpornega kamnitega materiala)",6334,"m3",null,0]
["2.4","Nasipi, zasipi, klini, posteljica in glinasti naboj",null,null,null,{"$f":"SUM(F65:F68)","v":0}]
[]
["2.5","Brežine in zelenice "]
["25 122","Humuziranje brežine z valjanjem, v debelini do 15cm - strojno",453,"m2",null,{"$f":"C72 * E72","v":0}]
["25 142","Humuziranje zelenice z valjanjem, v debelini do 15 cm - strojno",31,"m2",null,{"$f":"C73 * E73","v":0}]
[null,"Zasaditev s travnim semenom",484,"m2",null,0]
["2.5","Brežine in zelenice ",null,null,null,{"$f":"SUM(F72:F74)","v":0}]
[]
["2.9","Prevozi, razprostiranje in ureditev deponij materiala"]
["29 121","Prevoz materiala na razdaljo nad 10 do 15 km",21385,"t",null,{"$f":"C78 * E78","v":0}]
["29 131","Razprostiranje odvečne plodne zemljine - 1.kategorije",163,"m3",null,{"$f":"C79 * E79","v":0}]
["29 152","Odlaganje odpadne zmesi zemljine in kamnine, vključno s takso in priskrbitvijo evidenčnih listov",19984,"t",null,0]
["29 153","Odlaganje odpadnega asfalta na komunalno deponijo, vključno s takso in priskrbitvijo evidenčnih listov",1590,"t",null,0]
["29 154","Odlaganje odpadnega cementnega betona na komunalno deponijo, vključno s takso in priskrbitvijo evidenčnih listov",18,"t",null,0]
["29 155","Odlaganje mešanih gradbenih odpadkov z do 25 m.-% nemineralnih primesi, vključno s takso in priskrbitvijo evidenčnih listov",10,"t",null,0]
["2.9","Prevozi, razprostiranje in ureditev deponij materiala",null,null,null,{"$f":"SUM(F78:F83)","v":0}]
[]
["2.","ZEMELJSKA DELA",null,null,null,{"$f":"F53+F57+F62+F69+F75+F84","v":0}]
[]
[]
["3.","VOZIŠČNE KONSTRUKCIJE"]
["3.1","Nosilne plasti"]
["31 132","Izdelava nevezane nosilne plasti enakomerno zrnatega drobljenca TD32 iz kamnine v debelini 21 do 30cm",3288,"m3",null,{"$f":"C91 * E91","v":0}]
["31 372","Izdelava zgornje nosilne plasti v debelini 6cm - AC 16 bin PmB 45/80-65, A2 - G2-106 + uvozi desno",8168,"m2",null,{"$f":"C92 * E92","v":0}]
["31 314","Izdelava zgornje nosilne plasti v debelini 7 cm - AC 22 base B50/70 A2 - G2-106 + uvozi desno",8168,"m2",null,0]
["31 314","Izdelava zgornje nosilne plasti v debelini 7 cm - AC 22 base B70/100 A3 - OBČINSKE CESTE + uvozi levo",1139,"m2",null,0]
["3.1","Nosilne plasti",null,null,null,{"$f":"SUM(F91:F94)","v":0}]
[]
["3.2","Obrabne plasti"]
["32 237","Izdelava obrabne in zaporne plasti v debelini 30mm - AC8 surf B50/70 A3  - OBČINSKE CESTE + uvozi levo",1139,"m2",null,{"$f":"C98 * E98","v":0}]
["32 293","Izdelava obrabne in zaporne plasti v debelini 40 mm - SMA 11 PmB45/80-65 A2 - G2-106 + uvozi desno",8168,"m2",null,{"$f":"C99 * E99","v":0}]
["3.2","Obrabne plasti",null,null,null,{"$f":"SUM(F98:F99)","v":0}]
[]
["3.4","Tlakovane obrabne plasti"]
[null,"Dobava in vgraditev prodca ob objektih",19,"m2",null,{"$f":"C103 * E103","v":0}]
["34 152","Izdelava obrabne plasti iz betonskih tlakovcev, stiki zaliti s cementno malto",86,"m2",null,{"$f":"C104 * E104","v":0}]
["34 913","Izdelava podložne plasti za tlakovano obrabno plast iz cementnega betona v debelini 10cm",86,"m2",null,0]
["3.4","Tlakovane obrabne plasti",null,null,null,{"$f":"SUM(F103:F105)","v":0}]
[]
["3.5","Robni elementi vozišč"]
["35 214","Dobava in vgraditev predfabriciranega dvignjenega robnika iz cementnega betona s prerezom 15/25cm",1281,"m1",null,{"$f":"C109 * E109","v":0}]
["35 235","Dobava in vgraditev predfabriciranega pogreznjenega robnika iz cementnega betona s prerezom 15/25cm",146,"m1",null,{"$f":"C110 * E110","v":0}]
["3.5","Robni elementi vozišč",null,null,null,{"$f":"SUM(F109:F110)","v":0}]
[]
["3.6","Bankine"]
["36 131","Izdelava bankine iz drobljenca, široke do 0,50m",3,"m3",null,{"$f":"C114 * E114","v":0}]
["36 134","Izdelava bankine iz drobljenca, široke nad 1,00m",146,"m3",null,{"$f":"C115 * E115","v":0}]
["3.6","Bankine",null,null,null,{"$f":"SUM(F114:F115)","v":0}]
[]
["3.","VOZIŠČNE KONSTRUKCIJE",null,null,null,{"$f":"F95+F100+F111+F116+F106","v":0}]
[]
[]
["4.","ODVODNJAVANJE"]
["4.1.","Površinsko odvodnjavanje"]
["41 131","Tlakovanje jarka z lomljencem, d=max.20cm, stiki zapolnjeni s cementno malto, na podložni plasti cementnega betona C12/15, debeli 10cm, grobo tlakovanje (mestoma se izpostavi določene kamne tako, da gledajo izven ravnine mulde, fuge se ne izvedejo do vrha) - NA IZTOKIH",6,"m2",null,{"$f":"C123 * E123","v":0}]
["41 321","Izdelava koritnice iz bitumenskega betona, ob že zgrajenem robniku iz cementnega betona, široke 50cm (asfalt je zajet v postavkah \"voziščna konstrukcija\")",108,"m1",null,{"$f":"C124 * E124","v":0}]
[null,"Izdelava asfaltne mulde, široke 50cm (asfalt je zajet v postavkah \"voziščna konstrukcija\")",63,"m1",null,0]
["4.1.","Površinsko odvodnjavanje",null,null,null,{"$f":"SUM(F123:F125)","v":0}]
[]
["4.2.","Globinsko odvodnjavanje - drenaže"]
["42 133","Izdelava vzdolžne in prečne drenaže, globoke do 1,0 m, na podložni plasti iz cementnega betona, debeline 10 cm, z gibljivimi plastičnimi cevmi premera 10 cm",1065,"m1",null,{"$f":"C129 * E129","v":0}]
["42 483","Izdelava izpusta drenaže, po načrtu, ne glede na globino ali oviranje z opažem, premera 10cm",19,"kos",null,{"$f":"C130 * E130","v":0}]
["4.2.","Globinsko odvodnjavanje - drenaže",null,null,null,{"$f":"SUM(F129:F130)","v":0}]
[]
["4.3","Globinsko odvodnjavanje - kanalizacija"]
["43 191","Izdelava kanalizacije iz cevi iz polietilena, vključno s podložno plastjo iz cementnega betona, premera DN160, v globini do 1,0m",211,"m1",null,{"$f":"C134 * E134","v":0}]
["43 192","Izdelava kanalizacije iz cevi iz polietilena, vključno s podložno plastjo iz cementnega betona, premera DN200, v globini do 1,0m, SN 8",233,"m1",null,{"$f":"C135 * E135","v":0}]
["43 292","Obbetoniranje cevi za kanalizacijo s cementnim betonom C 16/20, po detajlu iz načrta, premera DN160",25,"m1",null,0]
["43 292","Obbetoniranje cevi za kanalizacijo s cementnim betonom C 16/20, po detajlu iz načrta, premera DN200",120,"m1",null,0]
["4.3","Globinsko odvodnjavanje - kanalizacija",null,null,null,{"$f":"SUM(F134:F137)","v":0}]
[]
["4.4","Jaški"]
["44 333","Dobava in vgradnja jaška iz polietilena, krožnega prereza s premerom 50cm, globokega 1,5 do 2,0m",25,"kos",null,{"$f":"C141 * E141","v":0}]
["44 341","Dobava in vgradnja jaška iz polietilena, krožnega prereza s premerom 60 cm, globokega do 1,0 m",1,"kos",null,0]
["44 342","Dobava in vgradnja jaška iz polietilena, krožnega prereza s premerom 60 cm, globokega 1,0m do 1,5 m",1,"kos",null,0]
["44 362","Dobava in vgradnja jaška iz polietilena, krožnega prereza s premerom 80 cm, globokega 1,0 do 1,5 m",4,"kos",null,0]
["44 363","Dobava in vgradnja jaška iz polietilena, krožnega prereza s premerom 80 cm, globokega 1,5 do 2,0 m",1,"kos",null,0]
["44 365","Dobava in vgradnja jaška iz polietilena, krožnega prereza s premerom 80 cm, globokega nad 2,5 m",5,"kos",null,0]
["44 854","Dobava in vgraditev rešetke iz duktilne litine z nosilnostjo 400 kN, s prerezom 500/500mm",3,"kos",null,0]
["44 961","Dobava in vgraditev pokrova iz duktilne litine z nosilnostjo 250kN, krožnega prereza s premerom 500mm - tipska robna rešetka",15,"kos",null,0]
["44 961","Dobava in vgraditev pokrova iz duktilne litine z nosilnostjo 250kN, krožnega prereza s premerom 500mm - C250",8,"kos",null,0]
["44 962","Dobava in vgraditev pokrova iz duktilne litine z nosilnostjo 250kN, krožnega prereza s premerom 600mm - C250",9,"kos",null,0]
["44 971","Dobava in vgraditev pokrova iz duktilne litine z nosilnostjo 400 kN, krožnega prereza s premerom 500 mm - D400",1,"kos",null,0]
["44 972","Dobava in vgraditev pokrova iz duktilne litine z nosilnostjo 400 kN, krožnega prereza s premerom 600 mm - D400",1,"kos",null,0]
["44 991","Višinska prilagoditev obstoječega jaška (do 50cm)",2,"kos",null,0]
["4.4","Jaški",null,null,null,{"$f":"SUM(F141:F153)","v":0}]
[]
["4.6","Izviri, vodnjaki, ponikovalnice, vrtače"]
["46 334","Ureditev ponikovalnice s perforirano cevjo iz cementnega betona, krožnega prereza, s premerom 80cm, globine 3,1 do 4,0m, vključno s pokrovom iz duktilne litine z nosilnostjo 250kN, krožnega prereza s premerom 600mm, z zaklepom",2,"kos",null,{"$f":"C157 * E157","v":0}]
["46 354","Ureditev ponikovalnice s perforirano cevjo iz cementnega betona, krožnega prereza, s premerom 100 cm, globine 3,1 do 4,0 m, vključno s pokrovom iz duktilne litine z nosilnostjo 250kN, krožnega prereza s premerom 600mm, z zaklepom",2,"kos",null,{"$f":"C158 * E158","v":0}]
["4.6","Izviri, vodnjaki, ponikovalnice, vrtače",null,null,null,{"$f":"SUM(F157:F158)","v":0}]
[]
["4.","ODVODNJAVANJE",null,null,null,{"$f":"F131+F138+F154+F126+F159","v":0}]
[]
[]
["5.","GRADBENA IN OBRTNIŠKA DELA"]
[null,"Izdelava nadomestnega kamnitega zidca",8,"m1",null,{"$f":"C165 * E165","v":0}]
["5.","GRADBENA IN OBRTNIŠKA DELA",null,null,null,{"$f":"F165","v":0}]
[]
[]
["6.","OPREMA CEST "]
["6.1","Pokončna oprema ceste"]
["61 122","Izdelava temelja iz cementnega betona C 12/15, globine 80cm, premera 30cm",14,"kos",null,{"$f":"C171 * E171","v":0}]
["61 216","Dobava in vgraditev stebrička za prometni znak iz vroče cinkane jeklene cevi s premerom 64mm, dolge 3000mm",4,"kos",null,{"$f":"C172 * E172","v":0}]
["61 217","Dobava in vgraditev stebrička za prometni znak iz vroče cinkane jeklene cevi s premerom 64mm, dolge 3500mm",3,"kos",null,0]
["61 218","Dobava in vgraditev stebrička za prometni znak iz vroče cinkane jeklene cevi s premerom 64mm, dolge 4000mm",6,"kos",null,0]
["61 219","Dobava in vgraditev stebrička za prometni znak iz vroče cinkane jeklene cevi s premerom 64mm, dolge 4500mm",1,"kos",null,0]
[]
["61 452","Dobava in pritrditev trikotnega prometnega znaka, podloga iz aluminijaste pločevine, znak z RA2, dolžina stranice a=900mm",3,"kos",null,0]
["61 642","Dobava in pritrditev okroglega prometnega znaka, podloga iz aluminijaste pločevine, znak z RA2, premera 600 mm",3,"kos",null,0]
["61 723","Dobava in pritrditev prometnega znaka, podloga iz aluminijaste pločevine, znak z RA2, velikost 0,21 do 0,40m2",6,"kos",null,0]
[]
[null,"Doplačilo za pritrditev znaka na drog JR",8,"kos",null,0]
[]
[null,"Ponovna postavitev predhodno demontiranih prometnih znakov",20,"kos",null,0]
["6.1","Pokončna oprema ceste",null,null,null,{"$f":"SUM(F171:F183)","v":0}]
[]
["6.2","Označbe na vozišču"]
["62 121","Izdelava tankoslojne vzdolžne označbe na vozišču z enokomponentno belo barvo, vključno 250 g/m2 posipa z drobci / kroglicami stekla, strojno, debelina plasti suhe snovi 250 mm, širina črte 10cm",44,"m1",null,{"$f":"C187 * E187","v":0}]
["62 251","Doplačilo za izdelavo prekinjenih vzdolžnih označb na vozišču, širina črte 10cm",5,"m1",null,{"$f":"C188 * E188","v":0}]
[]
["62 123","Izdelava tankoslojne vzdolžne označbe na vozišču z enokomponentno belo barvo, vključno 250 g/m2 posipa z drobci / kroglicami stekla, strojno, debelina plasti suhe snovi 250 mm, širina črte 15 cm",3216,"m1",null,{"$f":"C190 * E190","v":0}]
["62 253","Doplačilo za izdelavo prekinjenih vzdolžnih označb na vozišču, širina črte 15cm",575,"m1",null,{"$f":"C191 * E191","v":0}]
[]
["62 168","Izdelava tankoslojne prečne in ostalih označb na vozišču z enokomponentno belo barvo, vključno 250 g/m2 posipa z drobci / kroglicami stekla, strojno, debelina plasti suhe snovi 250 mm, površina označbe nad 1,5 m2",175,"m2",null,{"$f":"C193 * E193","v":0}]
["62 244","Doplačilo za ročno izdelavo ostalih označb na vozišču, posamezna površina označbe nad 1,5 m2",175,"m2",null,{"$f":"C194 * E194","v":0}]
["6.2","Označbe na vozišču",null,null,null,{"$f":"SUM(F187:F194)","v":0}]
[]
["6.4.","Oprema za zavarovanje prometa"]
[null,"Ponovna postavitev predhodno demontirane lesene ograje",53,"m1",null,{"$f":"C198 * E198","v":0}]
[null,"Dobava in posaditev žive meje ",51,"m1",null,{"$f":"C199 * E199","v":0}]
[null,"Dobava in postavitev prikazovalnika hitrosti",2,"kos",null,{"$f":"C200 * E200","v":0}]
["6.4.","Oprema za zavarovanje prometa",null,null,null,{"$f":"SUM(F198:F200)","v":0}]
[]
["6.","PROMETNA OPREMA ",null,null,null,{"$f":"F184+F195+F201","v":0}]
[]
[]
["7.","TUJE STORITVE"]
["7.9.","Preskusi, nadzor in tehnična dokumentacija"]
["79 311","Projektantski nadzor",145,"ura",45,{"$f":"C208 * E208","v":6525}]
["79 351","Geotehnični nadzor",80,"ura",45,{"$f":"C209 * E209","v":3600}]
["79 514","Izdelava projektne dokumentacije za projekt izvedenih del",1,"kos",null,{"$f":"C210 * E210","v":0}]
[null,"Izdelava navodil za obratovanje in vzdrževanje, obrazcev za vpis v BCP",1,"kos",null,{"$f":"C211 * E211","v":0}]
["7.9.","Preskusi, nadzor in tehnična dokumentacija",null,null,null,{"$f":"SUM(F208:F211)","v":10125}]
[]
["7.","TUJE STORITVE",null,null,null,{"$f":"SUM(F212)","v":10125}]
[]
[]
["8.","OSTALO"]
[null,"Izvedba cestne zapore (v ceni zajeta izdelava elaborata, pridobitev zapore za celotno izvedbo del).",270,"dan",160,{"$f":"C218 * E218","v":43200}]
["8.","OSTALO",null,null,null,{"$f":"SUM(F218:F218)","v":43200}]
[]
[null,"SKUPAJ",null,null,null,{"$f":"F43+F86+F118+F161+F203+F214+F166+F219","v":53325}]

{"sheet":"REKAPITULACIJA PLOČNIK","index":8,"n_rows":27,"n_cols":6,"rows_kept":27,"cut":false,"hidden":false,"merged":[[6,1,6,5],[0,1,0,5],[1,1,1,5],[3,1,3,5],[4,2,4,3],[5,2,5,3]]}
["objekt:","Glavna cesta G2-106, odsek 0263 Žlebič – Kočevje, od km 1,230 do km 2,350 "]
[null,"skozi naselji GRIČ IN BREG"]
[]
["načrt:","3/1 - načrt ceste"]
["faza:","PZI","datum:",null,"maj 2018, po recenziji"]
["št.proj.",1531,null,null,"== PLOČNIK =="]
[]
[]
[]
[]
[]
["REKAPITULACIJA "]
[]
[]
[]
[]
["1.","PREDDELA",null,null,null,{"$f":"PLOČNIK!F19","v":0}]
[]
["2.","ZEMELJSKA DELA",null,null,null,{"$f":"PLOČNIK!F60","v":0}]
[]
["3.","VOZIŠČNE KONSTRUKCIJE",null,null,null,{"$f":"PLOČNIK!F77","v":0}]
[]
["6.","OPREMA CEST",null,null,null,{"$f":"PLOČNIK!F87","v":0}]
[]
["8.","OSTALO",null,null,null,{"$f":"PLOČNIK!F92","v":0}]
[]
[null,"SKUPAJ",null,null,null,{"$f":"SUM(F17:F26)","v":0}]

{"sheet":"PLOČNIK","index":9,"n_rows":94,"n_cols":6,"rows_kept":94,"cut":false,"hidden":false,"merged":[[0,1,0,5],[1,1,1,5],[3,1,3,5],[4,2,4,3],[5,2,5,3]]}
["objekt:","Glavna cesta G2-106, odsek 0263 Žlebič – Kočevje, od km 1,230 do km 2,350 "]
[null,"skozi naselji GRIČ IN BREG"]
[]
["načrt:","3/1 - načrt ceste"]
["faza:","PZI"]
["št.proj.",1531,null,null,"== PLOČNIK =="]
[]
["šifra","opis dela","količina","enota","cena/enota","znesek"]
["1.","PREDDELA"]
["1.1","Geodetska dela"]
["11 631","Posnetek višine in položaja točke na terenu/objektu",200,"kos",null,{"$f":"C11 * E11","v":0}]
["1.1","Geodetska dela",null,null,null,{"$f":"SUM(F11:F11)","v":0}]
[]
["1.2","Čiščenje terena"]
["12 381","Rezanje asfaltne plasti s talno diamantno žago, debele do 5cm",23,"m1",null,{"$f":"C15 * E15","v":0}]
[null,"Predhodna obdelava stika in premaz z bitumensko lepilno zmesjo po celotni višin",23,"m1",null,{"$f":"C16 * E16","v":0}]
["1.2","Čiščenje terena",null,null,null,{"$f":"SUM(F15:F16)","v":0}]
[]
["1.","PREDDELA",null,null,null,{"$f":"F12+F17","v":0}]
[]
[]
["2.","ZEMELJSKA DELA"]
["2.1","Izkopi"]
["21 114","Površinski izkop plodne zemljine – 1. kategorije – strojno z nakladanjem",433,"m3",null,{"$f":"C24 * E24","v":0}]
["21 224","Široki izkop vezljive zemljine – 3. kategorije – strojno z nakladanjem",481,"m3",null,{"$f":"C25 * E25","v":0}]
["21 215","Široki izkop vezljive zemljine – 5. kategorije – strojno z nakladanjem",326,"m3",null,{"$f":"C26 * E26","v":0}]
["21 314","Izkop vezljive zemljine/zrnate kamnine – 3. kategorije za temelje, kanalske rove, prepuste, jaške in drenaže, širine do 1,0 m in globine do 1,0 m – strojno, planiranje dna ročno - JR+TK VOD",185,"m3",null,0]
["21 324","Izkop vezljive zemljine/zrnate kamnine –5. kategorije za temelje, kanalske rove, prepuste, jaške in drenaže, širine do 1,0 m in globine do 2,0 m – strojno, planiranje dna ročno - JR+TK VOD",96,"m3",null,{"$f":"C28 * E28","v":0}]
["2.1","Izkopi",null,null,null,{"$f":"SUM(F24:F28)","v":0}]
[]
["2.2","Planum temeljnih tal "]
["22 112","Ureditev planuma temeljnih tal vezljive zemljine – 3. - 5. kategorije",2539,"m2",null,{"$f":"C32 * E32","v":0}]
["22 112","Ureditev planuma temeljnih tal vezljive zemljine – 3. - 5. kategorije - JR+TK VOD",730,"m2",null,{"$f":"C33 * E33","v":0}]
["2.2.","Planum temeljnih tal ",null,null,null,{"$f":"SUM(F32:F33)","v":0}]
[]
["2.3","Ločilne, drenažne in filtrske plasti ter delovni plato"]
["23 315","Dobava in vgraditev geotekstilije za ločilno plast, natezna trdnost nad 18 kN/m2 (armaturni geosintetik, kratkotrajna natezna trdnost vsaj 40 kN/m)",2401,"m2",null,{"$f":"C37 * E37","v":0}]
["2.3","Ločilne, drenažne in filtrske plasti ter delovni plato",null,null,null,{"$f":"SUM(F37:F37)","v":0}]
[]
["2.4","Nasipi, zasipi, klini, posteljica in glinasti naboj"]
["24 118","Izdelava nasipa iz zrnate kamnine - 3.kategorije z dobavo iz gramoznice - kvaliteten kamnit nasipni material frakcije 0/125; od dna izkopa do dna planuma posteljice",348,"m3",null,{"$f":"C41 * E41","v":0}]
["24 219","Zasip z zrnato kamnino - 3.kategorije z dobavo iz gramoznice - JR+TK VOD",190,"m3",null,{"$f":"C42 * E42","v":0}]
["24 229","Zasip cevi s peskom 0/4 - JR+TK VOD",40,"m3",null,0]
["24 421","Vgraditev posteljice v debelini plasti do 30cm iz zrnate kamnine – 3.kategorije (posteljica 0/64, kvalitetni drobljenec, zmrzlinsko odpornega kamnitega materiala)",746,"m3",null,0]
["2.4","Nasipi, zasipi, klini, posteljica in glinasti naboj",null,null,null,{"$f":"SUM(F41:F44)","v":0}]
[]
["2.5","Brežine in zelenice "]
["25 122","Humuziranje brežine z valjanjem, v debelini do 15cm - strojno",1197,"m2",null,{"$f":"C48 * E48","v":0}]
["25 142","Humuziranje zelenice z valjanjem, v debelini do 15 cm - strojno",312,"m2",null,{"$f":"C49 * E49","v":0}]
[null,"Zasaditev s travnim semenom",1509,"m2",null,0]
["2.5","Brežine in zelenice ",null,null,null,{"$f":"SUM(F48:F50)","v":0}]
[]
["2.9","Prevozi, razprostiranje in ureditev deponij materiala"]
["29 121","Prevoz materiala na razdaljo nad 10 do 15 km",1666,"t",null,{"$f":"C54 * E54","v":0}]
["29 131","Razprostiranje odvečne plodne zemljine - 1.kategorije",207,"m3",null,{"$f":"C55 * E55","v":0}]
["29 152","Odlaganje odpadne zmesi zemljine in kamnine, vključno s takso in priskrbitvijo evidenčnih listov",1324,"t",null,0]
["29 155","Odlaganje mešanih gradbenih odpadkov z do 25 m.-% nemineralnih primesi, vključno s takso in priskrbitvijo evidenčnih listov",5,"t",null,0]
["2.9","Prevozi, razprostiranje in ureditev deponij materiala",null,null,null,{"$f":"SUM(F54:F57)","v":0}]
[]
["2.","ZEMELJSKA DELA",null,null,null,{"$f":"F29+F34+F38+F45+F51+F58","v":0}]
[]
[]
["3.","VOZIŠČNE KONSTRUKCIJE"]
["3.1","Nosilne plasti"]
["31 131","Izdelava nevezane nosilne plasti enakomerno zrnatega drobljenca iz kamnine v debelini do 20cm - tamponski drobljenec TD22",657,"m3",null,{"$f":"C65 * E65","v":0}]
["3.1","Nosilne plasti",null,null,null,{"$f":"SUM(F65:F65)","v":0}]
[]
["3.2","Obrabne plasti"]
["32 234","Izdelava obrabne in zaporne ali zaščitne plasti bitumenskega betona v debelini 40mm - AC 8 surf 70/100 A5",2168,"m2",null,{"$f":"C69 * E69","v":0}]
["3.2","Obrabne plasti",null,null,null,{"$f":"SUM(F69:F69)","v":0}]
[]
["3.5","Robni elementi vozišč"]
["35 214","Dobava in vgraditev predfabriciranega dvignjenega robnika iz cementnega betona s prerezom 15/25cm",31,"m1",null,{"$f":"C73 * E73","v":0}]
["35 313","Izdelava obrobe iz malih tlakovcev iz naravnega kamna velikosti 10cm/10cm/10cm",1172,"m1",null,{"$f":"C74 * E74","v":0}]
["3.5","Robni elementi vozišč",null,null,null,{"$f":"SUM(F73:F74)","v":0}]
[]
["3.","VOZIŠČNE KONSTRUKCIJE",null,null,null,{"$f":"F66+F70+F75","v":0}]
[]
[]
["6.","OPREMA CEST "]
[null,"Taktilne označbe"]
[null,"Dobava in vgradnja taktilnih označb - čepkaste (mehurčkaste), dimenzija plošče 30x30cm (svetlega odtenka!), vključno lepljenjem in fugiranjem z epoksi lepilom. Označbe morajo biti skladne s standardom SIST 1186.",41,"m1",null,{"$f":"C82 * E82","v":0}]
[null,"Dobava in vgradnja taktilnih označb - čepkaste (mehurčkaste), dimenzija plošče 30x30cm (svetlega odtenka!), vključno lepljenjem in fugiranjem z epoksi lepilom. Označbe morajo biti skladne s standardom SIST 1186.",4,"m2",null,{"$f":"C83 * E83","v":0}]
[null,"Dobava in vgradnja taktilnih označb - vzdolžne (vodilne), dimenzija plošče 30x30cm (svetlega odtenka!), vključno lepljenjem in fugiranjem z epoksi lepilom. Označbe morajo biti skladne s standardom SIST 1186.",4,"m1",null,0]
[null,"Taktilne označbe",null,null,null,{"$f":"SUM(F82:F84)","v":0}]
[]
["6.","PROMETNA OPREMA ",null,null,null,{"$f":"F85","v":0}]
[]
[]
["8.","OSTALO"]
[null,null,0,"kos",{"$f":"F19+F60+F77+F87","v":0},{"$f":"C91 * E91","v":0}]
["8.","OSTALO",null,null,null,{"$f":"SUM(F91:F91)","v":0}]
[]
[null,"SKUPAJ",null,null,null,{"$f":"F19+F60+F77+F87","v":0}]

{"sheet":"REKAPITULACIJA JR","index":10,"n_rows":10,"n_cols":9,"rows_kept":10,"cut":false,"hidden":false,"merged":[]}
[null,null,"POPIS MATERIALA IN DEL"]
[]
[]
[null,null,"REKAPITULACIJA"]
[]
[null,"1.","CESTNA RAZSVETLJAVA",null,null,null,null,null,{"$f":"JR!G19","v":0}]
[null,"2.","GRADBENA DELA CESTNE RAZSVETLJAVE",null,null,null,null,null,{"$f":"JR!G30","v":0}]
[null,"3.","DEMONTAŽNA DELA",null,null,null,null,null,{"$f":"JR!G47","v":0}]
[null,"4.","OSTALA DELA",null,null,null,null,null,{"$f":"JR!G66","v":1800}]
[null,null,"SKUPAJ",null,null,null,null,null,{"$f":"SUM(I6:I9)","v":1800}]

{"sheet":"JR","index":11,"n_rows":66,"n_cols":7,"rows_kept":66,"cut":false,"hidden":false,"merged":[]}
[null,"1.","CESTNA RAZSVETLJAVA"]
[null,null,null,"EM","KOL","CENA/EM","VREDNOST"]
[null,1,"Priklop kabla NAYY-0 4x16+1,5mm2  v obstoječi omarici cestne razsvetljave, komplet z drobnim montažnim materialom in stiklanimi manipulacijami","kpl",2,null,{"$f":"E3*F3","v":0}]
[]
[null,{"$f":"B3+1","v":2},"Dobava in polaganje kabla NAYY-0 4x16+1,5mm2 v zaščitno cev","m",1390,null,{"$f":"E5*F5","v":0}]
[]
[null,{"$f":"B5+1","v":3},"Dobava in polaganje opozorilnega traku","m",1220,null,{"$f":"E7*F7","v":0}]
[]
[null,{"$f":"B7+1","v":4},"Dobava in polaganje vročecinkanega valjanca FeZn 25x4mm.","m",1315,null,{"$f":"E9*F9","v":0}]
[]
[null,{"$f":"B9+1","v":5},"Dobava križnih sponk 60x60 in izdelava križnih stikov z dekoral trakom","kos",64,null,{"$f":"E11*F11","v":0}]
[]
[null,{"$f":"B11+1","v":6},"Izdelava ozemljitvenih spojev z vijačenjem valjanca na kandelabre z dvema vijakoma M8","kos",38,null,{"$f":"E13*F13","v":0}]
[]
[null,{"$f":"B13+1","v":7},"Dobava in montaža vsadnega klasičnega droga svetle višine 9m, komplet s priključno zbiralko in priključnim kablom NYY-J 4x1,5mm2, vetrna cona 1, za katero velja Vref,0 = 20m/s","kos",37,null,{"$f":"E15*F15","v":0}]
[]
[null,{"$f":"B15+1","v":8},"Dobava in montaža LED svetilke svetlobni tok več od 8000 lm, skupna priključna moč sistema manj kot 85W, svetilna učinkovitost več kot 100 lm/W oblikovno in tehnično enakovredna kot  Lumenia, ELUM (48.080.010_PR)","kos",37,null,{"$f":"E17*F17","v":0}]
[]
[null,null,"CESTNA RAZSVETLJAVA SKUPAJ",null,null,null,{"$f":"SUM(G3:G18)","v":0}]
[]
[]
[null,"2.","GRADBENA DELA CESTNE RAZSVETLJAVE"]
[null,null,null,"EM","KOL","CENA/EM","VREDNOST"]
[null,1,"Dobava in polaganje MAPITEL cevi DWP 110","m",1315,null,{"$f":"E24*F24","v":0}]
[]
[null,2,"Izdelava vsadnega betonskega temelja iz betonske cevi fi 80cm dolžine 1m za montažo vsadnega droga po priloženem detajlu","kos",38,null,{"$f":"E26*F26","v":0}]
[]
[null,{"$f":"B26+1","v":3},"Izdelava betonskega jaška iz betonske cevi fi 60cm dolžine 1m z litoželeznim pokrovom nosilnosti 125kN in napisom JAVNA RAZSVETLJAVA","kos",39,null,{"$f":"E28*F28","v":0}]
[]
[null,null,"GRADBENA DELA CESTNE RAZSVETLJAVE SKUPAJ",null,null,null,{"$f":"SUM(G24:G29)","v":0}]
[]
[]
[null,"3.","DEMONTAŽNA DELA"]
[null,null,null,"EM","KOL","CENA/EM","VREDNOST"]
[null,1,"Demontaža obstoječe svetilke montirane na žici preko cestišča, odvoz v skladišče koncesionarja","kpl",3,null,{"$f":"E35*F35","v":0}]
[]
[null,{"$f":"B35+1","v":2},"Demontaža obstoječe svetilke, komplet z  drogom cestne razsvetljave, odvoz v skladišče koncesionarja ali na ustrezno deponijo","kpl",8,null,{"$f":"E37*F37","v":0}]
[]
[null,{"$f":"B37+1","v":3},"Odklop in demontaža obstoječega kabla zračnega voda cestne razsvetljave, odvoz v skladišče koncesionarja ali na ustrezno deponijo","m",70,null,{"$f":"E39*F39","v":0}]
[]
[null,{"$f":"B39+1","v":4},"Prestavitev obstoječe svetilke, komplet z  drogom cestne razsvetljave na nov temelj ob novem robu cestišča","kpl",1,null,{"$f":"E41*F41","v":0}]
[]
[null,{"$f":"B41+1","v":5},"Prestavitev ob nov rob cestišča obstoječega prižigališča RJR1, komplet z izgradnjo novega temelja in podaljšanjem ter prestavitvijo obstoječih vodnikov.","kpl",1,null,{"$f":"E43*F43","v":0}]
[]
[null,{"$f":"B43+1","v":6},"Rušenje obstoječega temelja droga, odvoz gradbenega odpadka na ustrezno deponijo","kpl",7,null,{"$f":"E45*F45","v":0}]
[]
[null,null,"DEMONTAŽNA DELA SKUPAJ",null,null,null,{"$f":"SUM(G35:G46)","v":0}]
[]
[]
[null,"4.","OSTALA DELA"]
[null,null,null,"EM","KOL","CENA/EM","VREDNOST"]
[null,1,"Odkaz obstoječih komunalnih vodov","kpl",1,null,{"$f":"E52*F52","v":0}]
[]
[null,{"$f":"B52+1","v":2},"Zakoličenje novega kablovoda","kpl",1,null,{"$f":"E54*F54","v":0}]
[]
[null,{"$f":"B54+1","v":3},"Izvedba električnih in svetlobno tehničnih meritev (svetlost in osvetljenost) ter izdelava merilnega protokola","kp",1,null,{"$f":"E56*F56","v":0}]
[]
[null,{"$f":"B56+1","v":4},"Testiranje in vstavitev v pogon (funkc. preizskus)","kos",1,null,{"$f":"E58*F58","v":0}]
[]
[null,{"$f":"B58+1","v":5},"Vris trase JR v podzemni kataster","kpl",1,null,{"$f":"E60*F60","v":0}]
[]
[null,{"$f":"B60+1","v":6},"Izdelava PID in NOV dokumentacije v štirih izvodih","kpl",1,null,{"$f":"E62*F62","v":0}]
[]
[null,{"$f":"B62+1","v":7},"Projektantski nadzor ","ur",40,45,{"$f":"E64*F64","v":1800}]
[]
[null,null,"OSTALA DELA SKUPAJ",null,null,null,{"$f":"SUM(G52:G65)","v":1800}]

{"sheet":"REKAPITULACIJA EL","index":12,"n_rows":7,"n_cols":9,"rows_kept":7,"cut":false,"hidden":false,"merged":[]}
[null,"r","PROJEKTANTSKI POPIS DEL"]
[]
[null,null,"REKAPITULACIJA"]
[]
[null,1,"ZAŠČITA OBSTOJEČIH ELEKTROVODOV",null,null,null,null,null,{"$f":"EL!G11","v":0}]
[null,2,"OSTALA DELA",null,null,null,null,null,{"$f":"EL!G25","v":630}]
[null,null,"SKUPAJ",null,null,null,null,null,{"$f":"SUM(I5:I6)","v":630}]

{"sheet":"EL","index":13,"n_rows":25,"n_cols":7,"rows_kept":25,"cut":false,"hidden":false,"merged":[]}
[null,"1.","PRESTAVITEV OBSTOJEČIH ELEKTROVODOV"]
[null,null,null,"EM","KOL","CENA / EM","VREDNOST"]
[null,1,"Prestavitev obstoječega NN ''A'' droga za 1m, komplet z odklopom obstoječih vodnikov, ponovni priklop vodnikov, izkop za postavitev droga, demontažo in ponovno montažo droga","kpl",1,null,{"$f":"E3*F3","v":0}]
[]
[null,{"$f":"B3+1","v":2},"Dobava in montaža zračnega vodnika X00/0-A 3x70+71,5 + 2x16 mm2","m",40,null,{"$f":"E5*F5","v":0}]
[]
[null,{"$f":"B5+1","v":3},"Demontaža obstoječega NN droga, odvoz v skladišče distributerja ali na ustrezno deponijo","kpl",1,null,{"$f":"E7*F7","v":0}]
[]
[null,{"$f":"B7+1","v":4},"Odklop in demontaža obstoječega kabla zračnega NN voda, odvoz v skladišče distributerja ali na ustrezno deponijo","m",20,null,{"$f":"E9*F9","v":0}]
[]
[null,null,"SKUPAJ",null,null,null,{"$f":"SUM(G3:G10)","v":0}]
[]
[null,"2.","OSTALA DELA"]
[null,null,null,"EM","KOL","CENA / EM","VREDNOST"]
[null,1,"Obeleženje trase obstoječih energetskih kablov","kpl",1,null,{"$f":"E15*F15","v":0}]
[]
[null,{"$f":"B15+1","v":2},"Manipulativna dela za odklop elektro omrežja v času del","kpl",1,null,{"$f":"E17*F17","v":0}]
[]
[null,{"$f":"B17+1","v":3},"Nadzor s strani pristojnega upravljavca distribicijskega omrežja","ur",4,45,{"$f":"E19*F19","v":180}]
[]
[null,{"$f":"B19+1","v":4},"Izdelava PID dokumentacije v štirih izvodih","kpl",1,null,{"$f":"E21*F21","v":0}]
[]
[null,{"$f":"B21+1","v":5},"Projektantski nadzor ","ur",10,45,{"$f":"E23*F23","v":450}]
[]
[null,null,"SKUPAJ",null,null,null,{"$f":"SUM(G15:G24)","v":630}]

{"sheet":"REKAPITULACIJA TKV","index":14,"n_rows":9,"n_cols":9,"rows_kept":9,"cut":false,"hidden":false,"merged":[[4,2,4,7],[5,2,5,7],[6,2,6,7]]}
[null,null,"PROJEKTANTSKI POPIS DEL"]
[]
[null,null,"REKAPITULACIJA"]
[]
[null,"1.","ZAŠČITA TK VODOV",null,null,null,null,null,{"$f":"TKV!I11","v":0}]
[null,"2.","ZAŠČITA KKS VODOV",null,null,null,null,null,{"$f":"TKV!I20","v":0}]
[null,"3.","KABELSKA KANALIZACIJA",null,null,null,null,null,{"$f":"TKV!I31","v":0}]
[null,"4.","OSTALA DELA",null,null,null,null,null,{"$f":"TKV!I48","v":2700}]
[null,null,"SKUPAJ",null,null,null,null,null,{"$f":"SUM(I5:I8)","v":2700}]

{"sheet":"TKV","index":15,"n_rows":48,"n_cols":9,"rows_kept":48,"cut":false,"hidden":false,"merged":[[0,2,0,4],[13,2,13,4]]}
[null,"1.","ZAŠČITA TK VODOV"]
[null,null,null,"EM","KOL","CENA / EM","VREDNOST"]
[null,1,"Dobava cevi PVC fi 110mm, vzdolžno rezanje in zaobjetje obstoječih telekomunikacijskih kablov","m",470,null,{"$f":"E3*F3","v":0},null,{"$f":"E3*H3","v":0}]
[]
[null,{"$f":"B3+1","v":2},"Dobava in polaganje opozorilnega traku","m",470,null,{"$f":"E5*F5","v":0},null,{"$f":"E5*H5","v":0}]
[]
[null,{"$f":"B5+1","v":3},"Prestavitev obstoječega TK droga za 1m, komplet z odklopom obstoječih vodnikov, ponovni priklop vodnikov, izkop za postavitev droga, demontažo in ponovno montažo droga","kpl",2,null,{"$f":"E7*F7","v":0},null,0]
[]
[null,{"$f":"B7+1","v":4},"Prilagoditev pokrovov obstoječih telekomunikacijskih jaškov novi niveleti cestišča, komplet s potrebnim materialom","kpl",5,null,{"$f":"E9*F9","v":0},null,0]
[]
[null,null,"SKUPAJ",null,null,null,{"$f":"SUM(G3:G10)","v":0},null,{"$f":"SUM(I3:I10)","v":0}]
[]
[]
[null,"2.","ZAŠČITA KKS VODOV"]
[null,null,null,"EM","KOL","CENA / EM","VREDNOST"]
[null,1,"Dobava cevi PVC fi 110mm, vzdolžno rezanje in zaobjetje obstoječih KKS kablov","m",5,null,{"$f":"E16*F16","v":0},null,{"$f":"E16*H16","v":0}]
[]
[null,2,"Dobava in polaganje opozorilnega traku","m",5,null,{"$f":"E18*F18","v":0},null,{"$f":"E18*H18","v":0}]
[]
[null,null,"SKUPAJ",null,null,null,{"$f":"SUM(G16:G19)","v":0},null,{"$f":"SUM(I16:I19)","v":0}]
[]
[]
[null,"3.","KABELSKA KANALIZACIJA"]
[null,null,null,"EM","KOL","CENA / EM","VREDNOST"]
[null,1,"Izdelava betonskega jaška iz betonske cevi fi 0,8m dolžine 1m z litoželeznim pokrovom nosilnosti 250kN in napisom TELEKOMUNIKACIJE","kos",18,null,{"$f":"E25*F25","v":0},null,{"$f":"E25*H25","v":0}]
[]
[null,{"$f":"B25+1","v":2},"Izdelava kabelske kanalizacije iz cevi PVC fi 110mm","m",1180,null,{"$f":"E27*F27","v":0},null,{"$f":"E27*H27","v":0}]
[]
[null,{"$f":"B27+1","v":3},"Dobava in polaganje opozorilnega traku","m",1180,null,{"$f":"E29*F29","v":0},null,{"$f":"E29*H29","v":0}]
[]
[null,null,"SKUPAJ",null,null,null,{"$f":"SUM(G25:G30)","v":0},null,{"$f":"SUM(I25:I30)","v":0}]
[]
[]
[null,"4.","OSTALA DELA"]
[null,null,null,"EM","KOL","CENA / EM","VREDNOST"]
[null,1,"Obeleženje trase obstoječih telefonskih in energetskih kablov, vodovoda ter kanalizacije in drugih komunalnih vodov","kpl",1,null,{"$f":"E36*F36","v":0},null,{"$f":"E36*H36","v":0}]
[]
[null,{"$f":"B36+1","v":2},"Trasiranje trase kab. kanalizacije z označevanjem","m",1180,null,{"$f":"E38*F38","v":0},null,{"$f":"E38*H38","v":0}]
[]
[null,{"$f":"B38+1","v":3},"Vris trase v podzemni kataster","kpl",1,null,{"$f":"E40*F40","v":0},null,0]
[]
[null,{"$f":"B40+1","v":4},"Izdelava PID dokumentacije v štirih izvodih","kpl",1,null,{"$f":"E42*F42","v":0},null,0]
[]
[null,{"$f":"B42+1","v":5},"Nadzor s strani pristojnega upravljavca omrežja","ur",24,null,{"$f":"E44*F44","v":0},45,1080]
[]
[null,{"$f":"B44+1","v":6},"Projektantski nadzor","ur",36,null,{"$f":"E46*F46","v":0},45,1620]
[]
[null,null,"SKUPAJ",null,null,null,{"$f":"SUM(G36:G47)","v":0},null,{"$f":"SUM(I36:I47)","v":2700}]

{"sheet":"VODOVOD-splošno","index":16,"n_rows":47,"n_cols":8,"rows_kept":47,"cut":false,"hidden":false,"merged":[[45,1,45,7],[46,1,46,7],[39,1,39,7],[40,1,40,7],[41,1,41,7],[42,1,42,7],[43,1,43,7],[44,1,44,7],[38,1,38,7],[23,1,23,7],[24,1,24,7],[26,1,26,7],[27,1,27,7],[29,1,29,7],[30,1,30,7],[31,1,31,7],[32,1,32,7],[33,1,33,7],[34,1,34,7],[37,1,37,7],[22,1,22,7],[10,1,10,7],[11,1,11,7],[12,1,12,7],[14,1,14,7],[15,1,15,7],[16,1,16,7],[17,1,17,7],[18,1,18,7],[19,1,19,7],[20,1,20,7],[21,1,21,7]]}
[]
[null,"3/2.4.3",null,"POPIS DEL S PREDIZMERAMI IN PROJEKT. OCENA STROŠKOV"]
[]
[null,null,"POPIS DEL IN PREDIZMERE ZA POTREBE INVESTITORJA"]
[null,null,"Za projekt: "]
[null,null,null,"Cesta Žlebič – Kočevje: Vodovod v naseljih Grič in Breg"]
[]
[null,"    zap. št.",null,"Opis del","količina","enota","cena/enoto","skupaj"]
[]
[null,null,"SPLOŠNE ZAHTEVE"]
[null,"1. Za gradnjo je dovoljeno uporabljati samo proizvode, ki imajo pridobljene ustrezne listine o skladnosti in so skladni s slovenskimi tehničnimi predpisi in slovenskimi standardi. Vsi vgrajeni gradbeni materiali (cevi, revizijski jaški, pokrovi itd.) in ostali polizdelki, ki se vgrajujejo v objekt morajo vsebovati vtisnjene ali na drug način razvidne podatke iz katerih je mogoče razbrati in slediti poreklo materiala (serijska številka, tip, št. šarže itd.), najmanj pa izjave o lastnostih."]
[null,"2. Izvajalec gradnje mora izvajalcu gospodarske javne službe pravočasno sporočiti datume izvajanja preizkusov vodotesnosti in snemanja kanalov oz. vodovodov, da bo upravljavec lahko zagotovil prisotnost nadzora. Strošek upravljavcev je potrebno všteti v ponudbo."]
[null,"3. Pred začetkom izgradnje je izvajalec dolžan zapisniško ugotoviti in dokumentirati obstoječe stanje vseh sosednjih objektov (predvsem zaščitenih), drugih površin in dostopnih poti. Po končanih delih je dolžan povrniti uporabljeno lokacijo v prvotno stanje in odpraviti vse poškodbe nastale zaradi gradnje na drugih objektih, napravah, površinah ter na dostopnih poteh (cestišču). Dokumentiranje stanja pomeni fotografiranje stanja ali snemanje stanja s kamero pred pričetkom del, in sicer območje bodočega gradbišča in njegove okolice (objekti ter površine, ki jih bo uporabljal v času gradnje). V primeru pomanjkanja foto-dokazov o stanju pred gradnjo stroške uveljavljanja odškodnin nosi izvajalec. V tej točki zahtevano dokumentacijo mora izvajalec hraniti najmanj do konca garancijskega obdobja, ter dokumentacijo ob njenem nastanku dostaviti naročniku. Enote kulturne in naravne dediščine (po potrebi pa tudi drugi objekti) se zaščitijo z gradbenimi paneli. V ceni zajeti tudi ureditev okolice po končani gradnji."]
[null,"Ponudnik mora v cene po enoti všteti vse potrebne stroške v kolikor ni samostojna postavka popisa del:"]
[null,"4. vse stroške pridobitve potrebnih soglasij in dovoljenj v zvezi s prevozi (tudi morebiti nastale stroške v zvezi s potrebnimi začasnimi parkirišči za prebivalce), zaporo cest (občinskih in državnih), morebitne stroške, začasnih sprememb prometnega režima, prečkanj komunalnih vodov, stroške zaščite komunalnih naprav in stroške upravljavcev ali njihovih predstavnikov, stroške raznih pristojbin, stroške posebnih in/ali začasnih služnostnih pravicah poti, ki jih izvajalec potrebuje, vključno s tistimi za dostop na gradbišče, stroške pri organizaciji in opremi gradbišča, zagotavljanju vseh potrebnih zavarovanj in označb gradbišča s predpisano signalizacijo (gradbiščna tabla, ograja, vrvice, označbe, svetlobna telesa,…) - postavitev in odstranitev po končanih delih, kot tudi stroške pri pripravi gradbišča z odstranitvijo morebitnih ovir na trasi, zagotovitev delovnih platojev na in/ali izven gradbišča ter s tem povezanih stroškov."]
[null,"5. izdelati projekt ureditve gradbišča ter stroške organizacije, ureditve deponij, priprave in opreme gradbišča."]
[null,"6. Stroške priprave in izvedbe začasnih dostopov do in na gradbišču (izdelava vseh potrebnih začasnih prehodov, dovozov, dostopov) in stroški vsakodnevnega zagotavljanja dostopa oz. dovoza stanovalcem do objektov. V kolikor to ne bo mogoče, je potrebno stanovalcem in poslovnim subjektom pravočasno posredovati obvestilo - vsaj dva tedna pred začetkom del. Enako velja za stroške izvedbe začasnega obhoda (prehoda) mimo ograjenega gradbišča za pešce in sprehajalce (ves čas gradnje). Navesti je treba tudi predviden čas, ko dostop do objektov ne bo možen."]
[null,"7. izdelava varnostnega načrta skladno z Uredbo o zagotavljanju varnosti in zdravja pri delu na začasnih in premičnih gradbiščih"]
[null,"8. priprava gradbišča z odstranitvijo eventualnih ovir na trasi, zagotovitev dostopnih poti in delovnih platojev, vključno z vzpostavitvijo v prvotno stanje..."]
[null,"9. predvideti prometno ureditev v času gradnje - pridobitev dovoljenj za cestno zaporo z ureditvijo prometnega režima v času gradnje, z obvestili, zavarovanje gradbene jame in gradbišča ter postavitev prometne signalizacije. Po končanih delih je prometno signalizacijo odstraniti in prometni režim vzpostaviti v prvotno stanje."]
[null,"10. Zagotavljanje varnosti pri delu na gradbišču skladno z veljavnimi predpisi o zagotavljanju varnosti in zdravja pri delu na začasnih in premičnih gradbiščih."]
[null,"11. Namestitev jeklenih plošč za prehod vozil čez izkope, vključno z najemom, namestitvijo in prestavitvijo plošč ter spremljanje premikov."]
[null,"12. Zaščita zelenice s plohi, ali PVC folijo. Vkolikor se na zelenice oz. na zaščito odlaga zemeljski material, ga je potrebno po končani gradnji odstraniti in zelenico vzpostaviti v prvotno stanje."]
[null,"13. izdelava lesenih provizorij dostopov in hodnikov za pešce, z upoštevanjem vseh varnostnih predpisov."]
[null,"14. Stroški nastali v zvezi z zavarovanjem gradbišča po ZGO, ureditvijo gradbišča in stroške deponije odvečnega gradbenega materiala na pooblaščene deponije po izbiri izvajalca ali na lokacije za predelavo gradbenih materialov po izbiri izvajalca. Dokazila o primernem deponiranju (lokacija in količina materiala) je potrebno redno dostavljati naročniku oziroma nadzornemu organu naročnika, kot prilogo k situacijam. Izvajalec mora v ponudbo vključiti tudi vse stroške izdelave poročila o ravnanju z gradbenimi odpadki."]
[null,"15. Zagotoviti projektantski in geološki oz. geomehanski nadzor "]
[null,"16. Stroški vseh meritev (kot npr. vgrajenih materialov vključno s poročilom, meritve posameznih slojev nasipov,...), izdelovanja poročil in pregledov za izdelavo dokazil o zanesljivosti objektov (vodotesnost, zbitost, ustreznost izvedenih elektroinštalacij, ustreznost vgrajene opreme,...) in podobno oz. stroški za vso dokumentacijo, ki je potrebna za uspešno opravljen tehnični pregled oz. primoredajo."]
[null,"17. Voditi vso, po predpisih zahtevano dokumentacijo o kvaliteti materialov in tehnološkemu postopku gradnje dokumentacijo je potrebno zbrati, jo pripraviti in predložiti na tehničnem pregledu oz. primopredaji. Stroški sprotnega dokumentiranja in posredovanja nadzorniku vseh dokazil o zanesljivosti objektov, atestov, certifikatov,.... ter sprememb za izdelavo projekta izvedenih del, tako da bo PID projektna dokumentacija izdelana pred primopredajo objekta. Dokumentacija mora biti skladna z navodili upravljavcev. "]
[null,"18. Vse stroške stalnih in začasnih deponij všteti v ceno (takse, odškodnine, cena razplaniranja…)"]
[null,"19. Sprotno čiščenje vozil in čiščenje gradbišča po končanih delih (vključno z zaključnim čiščenjem) in odvoz odvečnega materiala, ter vzpostavitev terena v prvotno stanje."]
[null,"20. Izvajalec mora v času gradnje na gradbišču zagotoviti opremljen kontejner za potrebe naročnika in nadzorne službe (ustrezno hlajen oziroma ogrevan). Pridobiti mora lokacije za začasne gradbiščne objekte in za priročno skladiščenje materiala, uporaba za ves čas gradnje infrastrukture, vzpostavitev prvotnega stanja po zaključku gradbenih del, morebitna prestavitev objektov in najemnina zemljišča za gradbiščne objekte in priročno skladišče materiala ter za začasne deponije po izbiri izvajalca."]
[null,"21. Vsa dela za odvodnjavanje padavinske, izvorne in podtalne vode med gradnjo (vključno s potrebnim črpanjem), tako da se zagotovi stalno in kontrolirano odvajanje ter prepreči zamakanje in zadrževanje vode."]
[null,"22. Stroški izdelave obratovalnih in vzdrževalnih navodil in projektov za varno delo ter ostala\ndokumentacija, ki jo bo pri vzdrževanju potreboval izvajalec gospodarske javne službe, prav tako pa tudi stroški šolanja osebja izvajalca gospodarske javne službe za upravljanje z zgrajenimi infrastrukturnimi objekti in napravami."]
[null,"23. Postavitev linijskih pomičnih zaščitnih ograj pri gradnji skozi naselje ali vzporedno z glavno cesto z vso potrebno opremo za zavarovanje gradbene jame in postavitvijo signalizacije in svetlobnih teles za nočno osvetlitev ovire. Zavarovanje je fiksno in stabilno za ves čas trajanja gradnje odseka. V ceni je zajeta tudi večkratna prestavitev ograje skladno z napredovanjem del."]
[null,"24. Pri zemeljskih delih se vsa izkopna dela in transporti izkopnih materialov obračunajo po prostornini zemljine v raščenem stanju. Vsa razsipna dela se obračunajo po prostornini zemljine v vgrajenem stanju. Izračun količin na podlagi profilov, posnetih pred in po izkopih. V ceno je vključen tudi višek količin zaradi faktorja razrahljivosti."]
[null,"25. Vsa sprotna in zaključna čiščenja cevi so všteta v ceno."]
[null,"26. Vse manipulativne stroške."]
[null,"27. Vkolikor ni samostojne postavke, v ceno všteta vzpostavitev obstoječega stanja, sanacija poškodb na elementih obstoječih objektov nastalih zaradi izgradnje zaradi del po tem projektu (popravki raznih AB in kamnitih zidov, odstranitev in ponovna vzpostavitev ali sanacija ograj, popravki na fasadah objektov, ureditev linijskih požiralnikov, hortikulturna ureditev...), nalaganje in odvoz ruševin na stalno deponijo po izbiri izvajalca, z vključenimi vsemi stroški deponiranja."]
[null,"28. Izvajalec si mora ogledati predvideno traso na celotni dolžini in v zagotoviti vsa potrebna dela pri organizaciji, pripravi in zavarovanju gradbišča."]
[null,"29. Stroške električne energije, vode, TK priključkov, razsvetljave za nočno delo in morebitne ostale stroške za potrebe gradbišča v času gradnje."]
[null,"30. Kot dodatna dela (po vpisu in potrditvi v gradbeno knjigo) se obračuna prilagoditev obstoječih komunalnih in inštalacijskih vodov na novopredvideno stanje (rušenje, prestavitev, nadvišanje, obdelave, zamenjave pokrovov, AB venci, zaščita v času gradnje...), nalaganje in odvoz ruševin na stalno deponijo po izbiri izvajalca, z vključenimi vsemi stroški deponiranja. Vkolikor bodo posamezni upravljavci sočasno polagali inštalacije v isti izkop (Elektro, Telekom, optika, javna razsvetljava,…) jim mora izvajalec to omogočiti, zamudo pri delu pa vključiti v ceno."]
[null,"31. Za vse gradbene odpadke je potrebno voditi evidenčne liste, odpadke pa oddati v pooblaščeno zbiralnico po izbiri izvajalca; kot dokaz je h gradbeni knjigi potrebno priložiti račun iz zbiralnice. Stroške odvoza, deponiranje in stroške deponije je potrebno všteti v ceno."]
[null,"32. Materiali: Za vse vgrajene materiale velja, da jih izvajalec lahko predlaga, vendar je pred vgradnjo potrebna potrditev investitorja, nadzora in projektanta. Že pred vgradnjo je obvezno priložiti dokazila o ustreznosti. Za vse cevne elemente (jaški, cevi) je obvezna uporaba cevi iz umetnih mas, ki ustrezajo standardom in imajo togost SN8. Izvajalec material lahko predlaga, vendar ga morajo pred vgrajevanjem potrditi investitor, nadzor in projektant. Dokazila je potrebno priložiti že pred vgradnjo."]
[null,"33 Označba gradbišča s tablo v skladu z navodilom o informiranju in obveščanju javnosti o kohezijskih in strukturnih skladih v programskem obdobju."]
[null,"34. Za vsako spremembo je potrebno pridobiti soglasje projektanta in jo zajeti v projekt izvršenih del."]
[null,"35. Mejnike, ki jih izvajalec odstrani za potrebe gradnje, jih je po končani gradnji potrebno vzpostaviti po pravilih geodetske stroke."]
[null,"36. Upoštevanje celotnega projekta: Izvajalec si mora v fazi razpisa - (pred oddajo ponudbe) ogledati celoten projekt in v ponudbi upoštevati tudi dela, ki jih projekt predpisuje, vendar v popisu niso posebej navedena oz. jih zaradi obsežnosti popisa ni smiselno navajati. Tovrstna dela bo seveda potrebno izvesti, vendar ne bodo priznana kot dodatna dela, ampak je njihovo vrednost potrebno upoštevati v osnovni ponudbi."]

{"sheet":"REKAPITULACIJA VODOVOD","index":17,"n_rows":9,"n_cols":9,"rows_kept":9,"cut":false,"hidden":false,"merged":[[4,2,4,7],[5,2,5,7]]}
[null,null,"POPIS DEL VODOVOD"]
[]
[null,null,"REKAPITULACIJA"]
[]
[null,"1.","VODOVOD 1",null,null,null,null,null,{"$f":"VODOVOD_1!H277","v":5850}]
[null,"2.","VODOVOD 2",null,null,null,null,null,{"$f":"VODOVOD_2!H222","v":2025}]
[null,"3.","VODOVOD 3",null,null,null,null,null,{"$f":"VODOVOD_3!H177","v":1620}]
[null,"4.","VODOVOD 4",null,null,null,null,null,{"$f":"VODOVOD_4!H191","v":2835}]
[null,null,"SKUPAJ",null,null,null,null,null,{"$f":"SUM(I5:I8)","v":12330}]

{"sheet":"VODOVOD_1","index":18,"n_rows":277,"n_cols":8,"rows_kept":277,"cut":false,"hidden":false,"merged":[[253,3,253,6],[254,3,254,6],[255,3,255,6],[165,14,165,20],[248,3,248,6],[249,3,249,6],[250,3,250,6],[251,3,251,6],[252,3,252,6]]}
[]
[]
[null,"    zap. št.",null,"Opis del","količina","enota","cena/enoto","skupaj"]
[null,"V1",null,"PRIMARNI VODOVOD 1 (L = 947m)"]
[]
[null,"V1","-10/00","CEVNI MATERIAL (franko gradbišče)"]
[null,"V1","-12/00","CEVI"]
[null,null,null,"NL cevi vodo morajo biti izdelane v skladu s standardom SIST EN 545:2011,"]
[null,null,null,"tlačni razred (glej spodaj). Cevi morajo biti na notranji strani zaščitene s cementno"]
[null,null,null,"oblogo, ki je nanesena po postopku centrifugiranja. Na zunanji strani so cevi "]
[null,null,null,"zaščitene (400gr/m2) z zlitino cinka in aluminija (razmerje 85%-15%) in epoxi "]
[null,null,null,"premazom. Dolžina cevi 6m ali več. Vključno z dodatkom 2%."]
[null,null,null,"Proizvajalec za cevi je lahko Saint Gobain group, Duktus, Svobodny sokol, "]
[null,null,null,"ostale cevi po dogovoru z nadzorom, investitorjem ali projektantom."]
[]
[null,null,null,"Vkolikor so predpisana VI tesnila, pomeni, da so samo v 30% spojih ter na odcepih"]
[null,null,null,"lokih,… ostali spoji so lahko standard spoj. Vi spoj mora biti tudi na prvih dveh in "]
[null,null,null,"zadnjih dveh ceveh na posameznem kraku."]
[]
[null,null,null,"PP Cevi so tlačnega razreda 16bar in izdelane v skladu s standardom  "]
[null,null,null,"SIST ISO 4427, SIST EN 12201 in SIST EN  15014"]
[]
[null,"V1",1,"Cevi NL duktil,  C50, z natural zaščito, DN 150, L=6m, Tyton spoji, z Vi tesnili (glavni vodovod)",947,"m",null,{"$f":"+G23*E23","v":0}]
[]
[null,"V1",2,"Cevi NL duktil,  C50, z natural zaščito, DN 150, L=6m, Tyton spoji, z Vi tesnili (odcepi)",12,"m",null,{"$f":"+G25*E25","v":0}]
[]
[null,"V1",3,"Cevi NL duktil,  C50, z natural zaščito, DN 100, L=6m, Tyton spoji, z Vi tesnili  (odcepi)",105,"m",null,{"$f":"+G27*E27","v":0}]
[]
[null,"V1",4,"Cevi PE (ali PE RC), DN 90/16; K 100M, stikovane elektrofuzijsko (z ELGEF spojkami)  SDR11, vključno s spojkami in elektrovarilnim materialom.",6,"m",null,{"$f":"+G29*E29","v":0}]
[]
[null,"V1",5,"Cevi PE (ali PE RC), DN 50/16; K 100M, stikovane elektrofuzijsko (z ELGEF spojkami)  SDR11, vključno s spojkami in elektrovarilnim materialom.",45,"m",null,{"$f":"+G31*E31","v":0}]
[]
[null,"V1",6,"Za čas gradnje: Polaganje in prevezava priključkov na PE cev DN 110, vključno s hišnimi priključki.",600,"m",null,{"$f":"+G33*E33","v":0}]
[]
[null,"V1","-14/00","NL FAZONSKI KOSI (vključno z VI tesnili in vijaki); vse PN 10-16, ISO 2531."]
[null,null,null,"za prirobnične spoje se uporabljajo gumi tesnila z jeklenim jedrom"]
[null,null,null,"Vijačni material Inox A2. Cena franko gradbišče."]
[]
[null,"V1",1,"Cestna kapa vodovodna DN 200mm; na podstavku iz betona",26,"kos",null,{"$f":"+G39*E39","v":0}]
[]
[null,"V1",2,"Cestna kapa DN 200mm; ovalna hidrantna",1,"kos",null,{"$f":"+G41*E41","v":0}]
[]
[null,"V1",3,"E kos    DN 150mm;   ",16,"kos",null,{"$f":"+G43*E43","v":0}]
[]
[null,"V1",4,"E kos    DN 100mm;   ",20,"kos",null,{"$f":"+G45*E45","v":0}]
[]
[null,"V1",5,"F kos    DN 150mm;   ",5,"kos",null,{"$f":"+G47*E47","v":0}]
[]
[null,"V1",6,"F kos    DN 100mm;   ",7,"kos",null,{"$f":"+G49*E49","v":0}]
[]
[null,"V1",7,"FF kos    DN 150mm;  L=1000mm   ",4,"kos",null,{"$f":"+G51*E51","v":0}]
[]
[null,"V1",8,"FF kos    DN 100mm;  L=1000mm   ",2,"kos",null,{"$f":"+G53*E53","v":0}]
[]
[null,"V1",9,"FF kos    DN 80mm;   L=400mm",2,"kos",null,{"$f":"+G55*E55","v":0}]
[]
[null,"V1",10,"FFK 11,25°    DN 150mm",1,"kos",null,{"$f":"+G57*E57","v":0}]
[]
[null,"V1",11,"FFK 22,5/30°    DN 150mm",2,"kos",null,{"$f":"+G59*E59","v":0}]
[]
[null,"V1",12,"FFK 22,5/30°    DN 100mm",2,"kos",null,{"$f":"+G61*E61","v":0}]
[]
[null,"V1",13,"FFQ 90°    DN 80mm",2,"kos",null,{"$f":"+G63*E63","v":0}]
[]
[null,"V1",14,"MMK 45°    DN 100mm",1,"kos",null,{"$f":"+G65*E65","v":0}]
[]
[null,"V1",15,"MMK 22,5/30°    DN 100mm",7,"kos",null,{"$f":"+G67*E67","v":0}]
[]
[null,"V1",16,"FFR  DN 150/100mm",5,"kos",null,{"$f":"+G69*E69","v":0}]
[]
[null,"V1",17,"FFR  DN 100/80mm",2,"kos",null,{"$f":"+G71*E71","v":0}]
[]
[null,"V1",18,"MMA kos  DN 150/100mm",8,"kos",null,{"$f":"+G73*E73","v":0}]
[]
[null,"V1",19,"Montažno demontažni kos    DN 150mm;   ",2,"kos",null,{"$f":"+G75*E75","v":0}]
[]
[null,"V1",20,"Montažno demontažni kos    DN 100mm;   ",2,"kos",null,{"$f":"+G77*E77","v":0}]
[]
[null,"V1",21,"N kos    DN 150mm;   90°",1,"kos",null,{"$f":"+G79*E79","v":0}]
[]
[null,"V1",22,"N kos    DN 100mm;   90°",1,"kos",null,{"$f":"+G81*E81","v":0}]
[]
[null,"V1",23,"N kos    DN 80mm;   90°",3,"kos",null,{"$f":"+G83*E83","v":0}]
[]
[null,"V1",24,"T kos  DN 150/150mm",3,"kos",null,{"$f":"+G85*E85","v":0}]
[]
[null,"V1",25,"T kos  DN 150/100mm",5,"kos",null,{"$f":"+G87*E87","v":0}]
[]
[null,"V1",26,"T kos  DN 150/80mm",1,"kos",null,{"$f":"+G89*E89","v":0}]
[]
[null,"V1",27,"T kos  DN 100/80mm",2,"kos",null,{"$f":"+G91*E91","v":0}]
[]
[null,"V1",28,"TT kos  DN 150/100mm",2,"kos",null,{"$f":"+G93*E93","v":0}]
[]
[null,"V1",29,"Univerzalna spojka DN 100mm; tip 3057 (+GF+)",15,"kos",null,{"$f":"+G95*E95","v":0}]
[]
[null,"V1",30,"ELGEF varilna prirobnica DN 90/80",6,"kos",null,{"$f":"+G97*E97","v":0}]
[]
[null,"V1",31,"ELGEF varilna prirobnica DN 50/40",1,"kos",null,{"$f":"+G99*E99","v":0}]
[]
[]
[null,null,null,"VODOVODNA ARMATURA"]
[]
[null,"V1",1,"EV zasun    DN 150mm;   F4, z ročnim kolesom",4,"kos",null,{"$f":"+G104*E104","v":0}]
[]
[null,"V1",2,"EV zasun    DN 100mm;   F4, z ročnim kolesom",2,"kos",null,{"$f":"+G106*E106","v":0}]
[]
[null,"V1",3,"EV zasun    DN 80mm;   F4, z ročnim kolesom",2,"kos",null,{"$f":"+G108*E108","v":0}]
[]
[null,"V1",4,"EV zasun    DN 150mm;   z vgradbeno garnituro (daljša - 2m), teleskopska",10,"kos",null,{"$f":"+G110*E110","v":0}]
[]
[null,"V1",5,"EV zasun    DN 100mm;   z vgradbeno garnituro (daljša - 2m), teleskopska",12,"kos",null,{"$f":"+G112*E112","v":0}]
[]
[null,"V1",6,"EV zasun    DN 80mm;   z vgradbeno garnituro (daljša - 2m), teleskopska",3,"kos",null,{"$f":"+G114*E114","v":0}]
[]
[null,"V1",7,"EV zasun    DN 50mm;   z vgradbeno garnituro (daljša - 2m), teleskopska",1,"kos",null,{"$f":"+G116*E116","v":0}]
[]
[null,"V1",8,"Hidrant nadtalni lomni DN 80/1250mm, Inox izvedba ",2,"kos",null,{"$f":"+G118*E118","v":0}]
[]
[null,"V1",9,"Hidrant podtalni DN 80mm (H1000)",1,"kos",null,{"$f":"+G120*E120","v":0}]
[]
[null,"V1",10,"Zračnik prirobnični na eno kroglo DN 80mm za montažo v jašku (npr. Hawle ali ARI D-060 oz. boljši).",2,"kos",null,{"$f":"+G122*E122","v":0}]
[]
[null,null,null,"HIŠNI PRIKLJUČKI (odcepi)"]
[]
[null,"V1",1,"Cestna kapa DN 125mm; vodovodna",16,"kos",null,{"$f":"+G126*E126","v":0}]
[]
[null,"V1",2,"Cevi PE, DN 32/16; K 100M - cev za hišne priključke",245,"m",null,{"$f":"+G128*E128","v":0}]
[]
[null,"V1",3,"Cevi PE, DN 63/16; K 100M - zaščitna cev za hišne priključke",108,"m",null,{"$f":"+G130*E130","v":0}]
[]
[null,"V1",4,"Navrtno sedlo (oklep) na cevi NL ali PP ( za klasično montažo) z vgradbeno garnituro za hišne priključke - teleskopska 1,3 do 2,0m. Vključno zmanjševalnim kosom in prehodno ločno spojko.",16,"kos",null,{"$f":"+G132*E132","v":0}]
[]
[null,"V1",5,"Spiranje hišnih priključkov",16,"kos",null,{"$f":"+G134*E134","v":0}]
[]
[null,null,null,null,null,null,"SKUPAJ cevni material  ",{"$f":"SUM(H23:H135)","v":0}]
[]
[]
[null,"V1","-20/00","MONTAŽNA DELA"]
[null,"V1",1,"Prenos, spuščanje in polaganje NL cevi v jarek ter poravnava cevi v vertikalni in horizontalni smeri.",1064,"m",null,{"$f":"+G140*E140","v":0}]
[]
[null,"V1",2,"Prenos, spuščanje in polaganje PE cevi v jarek ter poravnava cevi v vertikalni in horizontalni smeri.",51,"m",null,{"$f":"+G142*E142","v":0}]
[]
[null,"V1",3,"Montaža cevi  na predhodno pripravljeno ležišče oz. posteljico.",1115,"m",null,{"$f":"+G144*E144","v":0}]
[]
[null,"V1",4,"Prenos in spuščanje fazonskih kosov in vodovodnih armatur do teže 100kg/kos, poravnavanje v smeri.",196,"kos",null,{"$f":"+G146*E146","v":0}]
[]
[null,"V1",5,"Montaža NL duktil fazonskih kosov in vodovodnih armatur na predhodno pripravljeno ležišče oz. posteljico, ter dokončna obdelava in zaščita spojev.",157,"kos",null,{"$f":"+G148*E148","v":0}]
[]
[null,"V1",6,"Montaža zasunov z vgradbeno garnituro in cestno varovalno kapo, na predhodno pripravljeno ležišče oz. posteljico, vključno s podbetoniranjem.",26,"kos",null,{"$f":"+G150*E150","v":0}]
[]
[null,"V1",7,"Montaža zasunov z ročnim kolesom - v jašku.",8,"kos",null,{"$f":"+G152*E152","v":0}]
[]
[null,"V1",8,"Montaža nadtalnih hidrantov z vgradbeno garnituro na predhodno pripravljeno ležišče oz. posteljico, vključno s podbetoniranjem. Vgradbena globina 1,5m.",2,"kos",null,{"$f":"+G154*E154","v":0}]
[]
[null,"V1",9,"Montaža podtalnih hidrantov z vgradbeno garnituro na predhodno pripravljeno ležišče oz. posteljico, vključno s podbetoniranjem. Vgradbena globina 1,5m.",1,"kos",null,{"$f":"+G156*E156","v":0}]
[]
[null,"V1",10,"Montaža in preskus delovanja zračnikov na predhodno pripravljeno ležišče oz. posteljico, vključno s podbetoniranjem",2,"kos",null,{"$f":"+G158*E158","v":0}]
[]
[null,"V1",11,"Montaža hišnih priključkov - končnih. Montaža vključuje navrtavanje na NL ali PP cev, priključitev cevi PP 32mm, dolžine 3 do 5m, montaža vgradbene garniture in montažo cestne kape usklajene z niveleto ceste, vključno z betonskim podstavkom. Vključno z zaključnim spiranjem pred priklopom.",16,"kos",null,{"$f":"+G160*E160","v":0}]
[]
[null,"V1",12,"Montaža hišnih priključkov - za čas gradnje. Montaža vključuje navrtavanje na PP cev, priključitev na obstoječo cev montaža zasuna 32mm, vključno z zaključnim spiranjem pred priklopom.",16,"kos",null,{"$f":"+G162*E162","v":0}]
[]
[null,"V1",13,"Nabava, dobava in postavitev oznak (signalne tablice) za podzemne armature zasune, hidrante, zračnike…), modre barve, komplet z zaščitno ploščo z robom iz aluminija dimenzije 140/200 mm (PSIST 1005), objemko za montažo na steber 6/4, pocinkanim stebrom 50x2000 mm s plastično kapo, EKO sidrom iz pocinkanega materiala in betonskim temeljem C16/20 (MB 20); 0,30 m3/kos.",31,"kos",null,{"$f":"+G164*E164","v":0}]
[]
[null,"V1",14,"Tlačni preizkus vodovoda, po opisu v tehničnem poročilu, z digitalnim izpisom, skladno s standardom SIST EN 805 (priporočilo 10 bar).",1115,"m",null,{"$f":"+G166*E166","v":0}]
[]
[null,"V1",15,"Spiranje in dezinfekcija cevovoda po končani gradnji, z odvzemom vzorcev vode, analizami ter strokovnim mnenjem; skladno s standardom SIST EN 805:2000",1115,"m",null,{"$f":"+G168*E168","v":0}]
[]
[null,"V1",16,"Nabava, dobava in polaganje signalnega traku nad vodovodno cevjo - PVC trak modre barve z napisom POZOR VODOVOD.",1140,"m",null,{"$f":"+G170*E170","v":0}]
[]
[null,"V1",17,"Preskus hidrantov po Pravilniku o preizkušanju hidrantnih omrežij, s strani organizacije (s pooblastilom RS uprave za zaščito in reševanje), vključno z izdelavo potrdila o brezhibnem delovanju hidrantnega omrežja.",3,"kos",null,{"$f":"+G172*E172","v":0}]
[]
[null,"V1",18,"Zapiranja in odpiranja vode, sodelovanje upravljavca pri prevezavah vodovodnega omrežja.",1,"kpl",null,{"$f":"+G174*E174","v":0}]
[]
[null,"V1",20,"Urna postavka NK monter",1,"ur"]
[null,null,null,"Urna postavka PK monter",1,"ur"]
[null,null,null,"Urna postavka KV monter",1,"ur"]
[null,null,null,"Urna postavka VKV monter",1,"ur"]
[]
[null,null,null,null,null,null,"SKUPAJ montažna dela  ",{"$f":"SUM(H140:H180)","v":0}]
[]
[]
[null,"V1","-40/00","GRADBENA DELA"]
[null,null,null,"- opomba: obračunane so samo količine pod cestnim ustrojem; d=60cm"]
[null,null,null,"- opomba: obračunana so samo dodatne dela glede na načrt ceste"]
[null,"V1","-41/00","Preddela"]
[null,"V1",1,"Zakoličba projektiranih osi vodovoda postavitev prečnih profilov ali zakoličbenih točk, določitev nivoja za merjenje globine vodovoda, prenos višin, z zavarovanjem izven operativnega pasu. ",960,"m",null,{"$f":"+G188*E188","v":0}]
[]
[null,"V1",2,"Trasna in višinska zakoličba obstoječih komunalnih vodov in oznake križanj, vključno s stroški dodatnega nadzora upravljavcev komunalnih vodov. Obračun na osnovi vpisa v dnevnik (vodovod, plin, elektrika, Telekom...).",960,"m",null,{"$f":"+G190*E190","v":0}]
[]
[null,"V1",3,"Rušenje obstoječih vodovodnih cevi (salonit, Fe, NL, PVC, PE, Mannesman…), vseh premerov, vključno z odvozom na deponijo po izbiri izvajalca, s stroški deponiranja in zapiranje (X kos) cevi, ki se opustijo.",770,"m",null,{"$f":"+G192*E192","v":0}]
[]
[null,"V1","-50/00","Zemeljska dela"]
[null,"V1",1,"Odriv humusa v dejanski debelini (cca 30cm) z direktnim nakladanjem na kamion in odvozom na gradbiščno deponijo po izbiri izvajalca, ali odrivom izven operativnega pasu."]
[null,null,null,"samo dodatek glede na cesto",105,"m3",null,{"$f":"+G196*E196","v":0}]
[]
[null,"V1",2,"Deloma strojna, deloma ročna ureditev brežin (planiranje) po končanem zasipu."]
[null,null,null,"samo dodatek glede na cesto",520,"m2",null,{"$f":"+G199*E199","v":0}]
[]
[null,"V1",3,"Humusiranje z materialom iz odriva ali odvoza,   ureditev terena po končani gradnji, gnojenje z umetnim gnojilom, zatravitev in uvaljanje. Upoštevati pokrivanje sejane površine s tanko plastjo humusa in negovanje trave do popolne ozelenitve."]
[null,null,null,"samo dodatek glede na cesto",105,"m3",null,{"$f":"+G202*E202","v":0}]
[]
[null,"V1",4,"Strojni izkop jarkov širine 2,0 do 5,0m, za polaganje vodovodne cevi, globine 2,0 do 4,0m, širina v dnu 0,60 do 0,80m (DN cevi +2x 30cm), v zemljini III. kat, naklon izkopa 60° do 80° (se prilagodi karakteristikam zemljine), z odlaganjem materiala direktno na kamion. Pri obračunu količin za vsak odsek od točke do točke usklajevati količine z masno črto iz grafične priloge - vzdolžnega profila."]
[null,null,null,68,2376,"m3",null,{"$f":"+G205*E205","v":0}]
[]
[null,"V1",5,"Strojni izkop jarkov širine 2,0 do 5,0m, za polaganje vodovodne cevi, globine 2,0 do 4,0m, širina v dnu 0,60 do 0,80m (DN cevi +2x 30cm), v zemljini III. kat, naklon izkopa 60° do 80° (se prilagodi karakteristikam zemljine), z odlaganjem, materiala v dosegu ročice bagra (ob rob gradbene jame + 1x premet, če je potrebno). Pri obračunu količin za vsak odsek od točke do točke usklajevati količine z masno črto iz grafične priloge - vzdolžnega profila."]
[null,null,null,20,740,"m3",null,{"$f":"+G208*E208","v":0}]
[]
[null,"V1",37,"Ročni izkop jarkov širine do 3,0m, za polaganje vodovodne cevi, globine do 3,0m, v zemljini III. kat, z odlaganjem, materiala ob rob gradbene jame."]
[null,null,null,2,64,"m3",null,{"$f":"+G211*E211","v":0}]
[]
[null,"V1",38,"Strojni izkop jarkov širine 2,0 do 5,0m, za polaganje vodovodne cevi, globine 2,0 do 4,0m, širina v dnu 0,60 do 0,80m (DN cevi +2x 30cm), v mehki kamnini V. kat (brez miniranja), naklon izkopa 60° do 80° (se prilagodi karakteristikam zemljine), z odlaganjem, materiala direktno na kamion. Pri obračunu količin za vsak odsek od točke do točke usklajevati količine z masno črto iz grafične priloge - vzdolžnega profila."]
[null,null,null,10,355,"m3",null,{"$f":"+G214*E214","v":0}]
[]
[null,"V1",39,"Splošni opis: Dodatna dela pri križanjih z obstoječimi in predvidenimi komunalnimi vodi, vključno z dodatnimi deli zaradi vzporednega poteka komunalij:"]
[null,null,null,"- zakoličba vodov skladno z zahtevami upravljavca,"]
[null,null,null,"- nadzor upravljavcev"]
[null,null,null,"- dodatni ročni in strojni izkop v območju križanj"]
[null,null,null,"- zavarovanje gradbene jame v času gradnje in pri zasipavanju"]
[null,null,null,"- zasip z drobnozrnatim peščenim materialom ali obbetoniranjem"]
[null,null,null,"Vkolikor tehnologija odstopa od projekta je potrebno pridobiti tudi pozitivno mnenje upravljavca. Vse poškodbe so breme izvajalca, ki krije vso nastalo škodo). Vse poškodbe so breme izvajalca, ki krije vso nastalo škodo).",25,"kos",null,{"$f":"+G222*E222","v":0}]
[]
[null,"V1",40,"Dodatek za odvoz viška materiala iz prejšnjih postavk na stalno deponijo  po izbiri izvajalca, z razgrinjanjem, vse eventualne stroške deponije (vključno s takso, razgradnjo, odškodninami,...) je zajeti v ceno.",1966,"m3",null,{"$f":"+G224*E224","v":0}]
[]
[null,"V1",41,"Dodatek za odvoz viška materiala iz prejšnjih postavk na začasno deponijo  po izbiri izvajalca, z razgrinjanjem, vse eventualne stroške deponije je zajeti v ceno (taksa, odškodnina,…). Vključno s prevozom nazaj na gradbišče.",555,"m3",null,{"$f":"+G226*E226","v":0}]
[]
[null,"V1",42,"Ročno planiranje dna gradbene jame po strojnem izkopu, s planuumom padca - z izkopom ali dosipom materiala do 0,1m3/m2, z natančnostjo +-3cm, do potrebne zbitosti (Ev2 ≥ 20 MPa) , v III do V. ktg.",710,"m2",null,{"$f":"+G228*E228","v":0}]
[]
[null,"V1",43,"Nabava, dobava in izdelava posteljice in obsip kanalizacijske cevi; okroglozrnate granulacije, do višine 30cm nad temenom cevi, vključno z utrjevanjem. Pri obračunu količin za vsak odsek od točke do točke usklajevati količine z masno črto iz grafične priloge - vzdolžnega profila. Uporaba recikliranega materiala ni dovoljena."]
[null,null,null,"- v primeru grobozrnatega, peščenega ali  prodnega zemljišča je granulacija obsipa 4-8mm"]
[null,null,null,"- v primeru finozrnatega zemljišča je granulacija obsipa 1-4mm",665,"m3",null,{"$f":"+G232*E232","v":0}]
[]
[null,"V1",44,"Nabava, dobava in strojni zasip, z gramoznim materialom, po končanih delih, z utrjevanjem v slojih po 30cm, zahtevana stopnja komprimacije M=80MPa (8-10% CBR). Upoštevan zasip do tampona - 54cm pod nivojem pločnika. Pri obračunu količin za vsak odsek od točke do točke usklajevati količine z masno črto iz grafične priloge - vzdolžnega profila.  Uporaba recikliranega materiala ni dovoljena."]
[null,null,null,78,536,"m3",null,{"$f":"+G235*E235","v":0}]
[]
[null,"V1",45,"Zasip po končanih delih, z izkopanim materialom, z utrjevanjem v slojih po 30cm - zahtevana stopnja komprimacije M=40 Mpa (8-10% CBR). Upoštevan zasip do tampona - 54cm pod nivojem pločnika."]
[null,null,null,22,735,"m3",null,{"$f":"+G238*E238","v":0}]
[]
[null,"V1",46,"Kompletna izdelava betonskih blokov za sidranje fazonov in armatur; vključno z objemkami in podložno gumo (0.15-0,40m3/kos).",32,"kos",null,{"$f":"+G240*E240","v":0}]
[]
[null,null,null,"Hišni priključki"]
[null,null,null,"(se vgrajujejo samo na podlagi soglasja upravljavca vodovoda in skladno z njim)."]
[null,null,null,"Zakoličba projektiranih osi in zaščita točk, Izkop jarkov v zemljini III, ktg., Širine do 0,80 min globine do 1,50 m,( cca 0,20 m3/m1) ter deponiranje materiala, na začasni deponiji po izbiri izvajalca, za kasnejši zasip. Ročni izkop jarkov v zemljini III, ktg. širine do 1,00m, in globine do 1,50m, (cca 1,0 m3/m1) ter odmet materiala vsaj 1.00 m od roba izkopa. Kompletna izdelava prebojev oziroma podbojev pod obstoječimi betonskimi in kamnitimi opornimi zidovi,ograjami, parapeti (ocena količine 0,03kom/m1). "]
[null,null,null," Kompletna izdelava posteljice iz separacije, granulacije 4-8 mm peska v debelini 10 cm (cca 0,07 m3/m1). Nabava, dobava raznos in montaža pod tlakom cevi PE 3/4\", 1\", DN63mm po gradbišču in spuščanje v jarek z gradbeno mehanizacijo. Obračun pa m1. Izdelava zasipa cevi s separacijo granulacije 4-8 mm v debelini vsaj 10-20 cm nad temenom cevi (cca 0,22 m3/m1). Ureditev terena v prvotno stanje (asfalt ali ureditev zelenice). Ročno zasipanje jarkov z izkopanim materialom v slojih po 30 cm z utrjevanjem (cca 0,90m3/m). Nakladanje in dovoz odvečnega materiala III. ktg, s kamioni na razdaljo do 14 km ter grobo razprostiranje pripeljanega materiala (cca 0,30 m3/m1).\n",245,"m",null,{"$f":"+G245*E245","v":0}]
[null,null,null,null,16,"kos",null,{"$f":"+G246*E246","v":0}]
[]
[null,"V1","-60/00","IZDELAVA AB JAŠKOV:"]
[null,"V1",1,"- Postavitev gradbenih profilov za izgradnjo jaška."]
[null,null,null,"- ZEMELJSKA DELA: Strojni izkop za jašek v zemljini III. in IV kat., z nakladanjem materiala direktno na kamion, z dodatkom za odvoz materiala na stalno deponijo  po izbiri izvajalca, z razplaniranjem na deponiji, stroške deponije všteti v ceno, ročno planiranje gradbene jame po strojnem izkopu, v zemljini III. in IV. kat., uvaljanje temeljnih tal do zbitosti 95% po Proctorju,  Ev2= 100-120 MN/m2. Vkolikor tla niso dovolj nosilna je všteti tudi: Nabava, dobava in vgrajevanje gramozne blazine iz gramoznega materiala, debeline 40cm, uvaljanje temeljnih tal do zbitosti 95% po Proctorju,  Ev2= 100-120 MN/m2. Zasip po končanih delih. Dobava in vgrajevanje - zasipanje z utrjevanjem po slojih - po končani izdelavi objekta. Zahteve: gramozni nevezan material 0/32 - okroglozrnat, Ev2=100 do 120MN/m2, zbitost 95% po Proctorju). "]
[null,null,null,"- OPAŽERSKA DELA: Opaženje, razopaženje in čiščenje enostavnega enostranskega opaža za konstrukcijo jaška - temeljna plošča, dvostranskega opaža za okvirno konstrukcijo jaška ter enostavnega dvostranskega opaža za zgornjo ploščo jaška, s podpiranjem do višine 3m, dvostranskega opaža za vstopne odprtine in poglobitve v tleh.  V ceno všteti tudi delovni in/ali lovilne odre, vključno z ograjo in potrebnimi sidranji ter podpiranji, oz varovanje po tehnologiji izvajalca."]
[null,null,null,"- ŽELEZOKRIVSKA IN BETONERSKA DELA: Nabava, dobava in vgradnja podložnega betona C 12/15 pod temelji, pod prehodnimi ploščami in temelji kril. Nabava, dobava in polaganje rebraste in mrežne armature, srednje komplicirana armatura (po detajlu iz priloge). Nabava, dobava in vgrajevanje betona v okvirno konstrukcijo jaška (stene, strop, talna plošča, vstopne odprtine, poglobitev v tleh) v vnaprej pripravljen opaž in vstavljeno armaturo: Zahteve za beton: C30/37, z dodatkom superplastifikatorja za vodotesen beton (PV-II), sistem bele kadi, dodatki XF2, XD2. Nabava, dobava in strojno vgrajevanje naklonskega betona in izdelava mulde, prereza med 0,10 in 0,30m2/m3. Zahteve za beton: C30/37, z dodatkom superplastifikatorja za vodotesen beton (PV-II), dodatki XD1, HF2. Izdelava vodotesnega delovnega stika po tehnologiji \"Sigi\" ali boljši - Intec perforiran trak in injeciranje z poliuretanom. Dodatna dela pri priključevanju vodovodov na jašek. "]
[null,null,null,"POKROV: Nabava in vgrajevanje pokrova v vnaprej pripravljeno odprtino za vstop v jaška - pokrov povozni LTŽ (na javnih cestah klasa D, standard EN 144/2), 80*80cm, z zaklepom, niveletno usklajen. "]
[null,null,null,"LESTEV: Nabava, dobava in vgrajevanje lestve z varnostnim vodilom in nastavkom za varen vstop."]
[null,null,null,"-IZOLATERSKA DELA: Zaokroženje vogalov po celotni dolžini - r=5cm, z maso HIDROSTOP KIT. Tesnjenje stikov na preboju s tesnilno maso ISOTAL - cca 5kg za 1 preboj"]
[null,null,null,"- OSTALA DELA: Ureditev okolice jaška - humusiranje in zatravitev neutrjenih površin. Ureditev utrjenih površin in vzpostavitev asfalta v prvotno stanje vkolikor je jašek na utrjenih površinah."]
[]
[null,null,null,"Kompletna izdelava armirano betonskega vodovodnega jaška po opisu."]
[null,null,null,"jašek: 10 in 122 in 130 notranjih dimenzij: B*L=2,3m* 2,3m*2,00m  ",3,"kos",null,{"$f":"+G259*E259","v":0}]
[]
[null,"V1","-71/00","Vgraditev jeklene zaščitne cevi"]
[null,"V1",1,"Nabava, dobava in vgradnja zaščitne jeklene cevi 267/6,3mm (41kg/m), z distančniki za centriranje medialne cevi, vključno z dodatnim izkopom in uvlačenjem medialne cevi. Vse dodatne stroške in stroške v zvezi z zamudo pri deli všteti v tej postavki. Po koncu uvlačenja medialne cevi se zaščitne cev na začetku in koncu začepi ter obbetonira na začetku in koncu ter na vsakem spoju. Spajanje cevi do 20m obvezno z varjenjem v delavnici. Prečkanje je potrebno posebej obdelati v varnostnem načrtu, ki ga mora potrdit izbrani koordinator za varnost in zdravje pri delu. Zemeljska dela niso všteta v tej postavki.",12,"m",null,{"$f":"+G262*E262","v":0}]
[]
[null,"V1",2,"Nabava, dobava in vgradnja zaščitne jeklene cevi 324/7,1mm (56kg/m), z distančniki za centriranje medialne cevi, vključno z dodatnim izkopom in uvlačenjem medialne cevi. Vse dodatne stroške in stroške v zvezi z zamudo pri deli všteti v tej postavki. Po koncu uvlačenja medialne cevi se zaščitne cev na začetku in koncu začepi ter obbetonira na začetku in koncu ter na vsakem spoju. Spajanje cevi do 20m obvezno z varjenjem v delavnici. Prečkanje je potrebno posebej obdelati v varnostnem načrtu, ki ga mora potrdit izbrani koordinator za varnost in zdravje pri delu. Zemeljska dela niso všteta v tej postavki.",50,"m",null,{"$f":"+G264*E264","v":0}]
[]
[null,"V1","-80/00","OSTALA DELA"]
[null,"V1",1,"Dodatna in nepredvidena dela pri priključitvi na obstoječ vodovod - izven jaška.",16,"kos",null,{"$f":"+G267*E267","v":0}]
[]
[null,"V1",2,"Nadzor upravljavca vodovoda",60,"ur",45,{"$f":"+G269*E269","v":2700}]
[]
[null,"V1",3,"Projektantski nadzor in usklajevanje projekta z dejansko ugotovljenim stanjem na terenu. Obračun po dejanskih urah (+stroški prevoza).",70,"ur",45,{"$f":"+G271*E271","v":3150}]
[]
[null,"V1",4,"Geodetski posnetek pri odprti trasi (pred zasutjem), za glavne cevovod in hišne priključke, izdelava PID v papirni in elektronski obliki skladno s pravilnikom in navodili Komunalnega podjetja Hydrovod vključno z vodilno mapo in dokazilom o zanesljivosti, dokumentacija za tehnični pregled, izvajalski del dokumentacije za pridobitev uporabnega dovoljenja (atesti, certifikati, izjave o lastnostih).. glej tudi tehnično poročilo.",1,"znesek",null,{"$f":"+G273*E273","v":0}]
[]
[null,null,null,null,null,null,"SKUPAJ gradbena dela ",{"$f":"SUM(H184:H273)","v":5850}]
[]
[null,null,null,"SKUPAJ VODOVOD 1",null,null,null,{"$f":"H275+H181+H136","v":5850}]

{"sheet":"VODOVOD_2","index":19,"n_rows":222,"n_cols":8,"rows_kept":222,"cut":false,"hidden":false,"merged":[[127,14,127,20]]}
[]
[]
[null,"    zap. št.",null,"Opis del","količina","enota","cena/enoto","skupaj"]
[null,"V2",null,"SEKUNDARNI VODOVOD 2 (L = 303m)"]
[]
[null,"V2","-10/00","CEVNI MATERIAL (franko gradbišče)"]
[null,"V2","-12/00","CEVI"]
[null,null,null,"NL cevi vodo morajo biti izdelane v skladu s standardom SIST EN 545:2011,"]
[null,null,null,"tlačni razred (glej spodaj). Cevi morajo biti na notranji strani zaščitene s cementno"]
[null,null,null,"oblogo, ki je nanesena po postopku centrifugiranja. Na zunanji strani so cevi "]
[null,null,null,"zaščitene (400gr/m2) z zlitino cinka in aluminija (razmerje 85%-15%) in epoxi "]
[null,null,null,"premazom. Dolžina cevi 6m ali več. Vključno z dodatkom 2%."]
[null,null,null,"Proizvajalec za cevi je lahko Saint Gobain group, Duktus, Svobodny sokol, "]
[null,null,null,"ostale cevi po dogovoru z nadzorom, investitorjem ali projektantom."]
[]
[null,null,null,"Vkolikor so predpisana VI tesnila, pomeni, da so samo v 30% spojih ter na odcepih"]
[null,null,null,"lokih,… ostali spoji so lahko standard spoj. Vi spoj mora biti tudi na prvih dveh in "]
[null,null,null,"zadnjih dveh ceveh na posameznem kraku."]
[]
[null,null,null,"PP Cevi so tlačnega razreda 16bar in izdelane v skladu s standardom  "]
[null,null,null,"SIST ISO 4427, SIST EN 12201 in SIST EN  15014"]
[]
[null,"V2",1,"Cevi NL duktil,  C50, z natural zaščito, DN 150, L=6m, Tyton spoji, z Vi tesnili  (glavni vodovod)",12,"m",null,{"$f":"+G23*E23","v":0}]
[]
[null,"V2",2,"Cevi NL duktil,  C50, z natural zaščito, DN 100, L=6m, Tyton spoji, z Vi tesnili  (glavni vodovod)",291,"m",null,{"$f":"+G25*E25","v":0}]
[]
[null,"V2",3,"Cevi NL duktil,  C50, z natural zaščito, DN 100, L=6m, Tyton spoji, z Vi tesnili  (odcepi)",2,"m",null,{"$f":"+G27*E27","v":0}]
[]
[null,"V2",4,"Cevi PE (ali PE RC), DN 90/16; K 100M, stikovane elektrofuzijsko (z ELGEF spojkami)  SDR11, vključno s spojkami in elektrovarilnim materialom.",6,"m",null,{"$f":"+G29*E29","v":0}]
[]
[null,"V2",5,"Za čas gradnje: Polaganje in prevezava priključkov na PE cev DN 90, vključno s hišnimi priključki.",150,"m",null,{"$f":"+G31*E31","v":0}]
[]
[null,"V2","-14/00","NL FAZONSKI KOSI (vključno z VI tesnili in vijaki); vse PN 10-16, ISO 2531."]
[null,null,null,"za prirobnične spoje se uporabljajo gumi tesnila z jeklenim jedrom"]
[null,null,null,"Vijačni material Inox A2. Cena franko gradbišče."]
[]
[null,"V2",1,"Cestna kapa vodovodna DN 200mm; na podstavku iz betona",3,"kos",null,{"$f":"+G37*E37","v":0}]
[]
[null,"V2",2,"E kos    DN 150mm;   ",1,"kos",null,{"$f":"+G39*E39","v":0}]
[]
[null,"V2",3,"F kos    DN 100mm;   ",1,"kos",null,{"$f":"+G41*E41","v":0}]
[]
[null,"V2",4,"FF kos    DN 150mm;  L=1000mm   ",2,"kos",null,{"$f":"+G43*E43","v":0}]
[]
[null,"V2",5,"FF kos    DN 100mm;  L=1000mm   ",1,"kos",null,{"$f":"+G45*E45","v":0}]
[]
[null,"V2",6,"FF kos    DN 80mm;   L=400mm",3,"kos",null,{"$f":"+G47*E47","v":0}]
[]
[null,"V2",7,"FFK 22,5/30°    DN 100mm",0,"kos",null,{"$f":"+G49*E49","v":0}]
[]
[null,"V2",8,"FFQ 90°    DN 80mm",1,"kos",null,{"$f":"+G51*E51","v":0}]
[]
[null,"V2",9,"MMK 22,5/30°    DN 100mm",2,"kos",null,{"$f":"+G53*E53","v":0}]
[]
[null,"V2",10,"FFR  DN 100/80mm",1,"kos",null,{"$f":"+G55*E55","v":0}]
[]
[null,"V2",11,"MMA kos  DN 100/80mm",2,"kos",null,{"$f":"+G57*E57","v":0}]
[]
[null,"V2",12,"Montažno demontažni kos    DN 150mm;   ",1,"kos",null,{"$f":"+G59*E59","v":0}]
[]
[null,"V2",13,"Montažno demontažni kos    DN 100mm;   ",1,"kos",null,{"$f":"+G61*E61","v":0}]
[]
[null,"V2",14,"N kos    DN 80mm;   90°",3,"kos",null,{"$f":"+G63*E63","v":0}]
[]
[null,"V2",15,"T kos  DN 100/80mm",1,"kos",null,{"$f":"+G65*E65","v":0}]
[]
[null,"V2",16,"TT kos  DN 150/100mm",1,"kos",null,{"$f":"+G67*E67","v":0}]
[]
[null,"V2",17,"X kos    DN 150mm;   ",1,"kos",null,{"$f":"+G69*E69","v":0}]
[]
[null,"V2",18,"ELGEF varilna prirobnica DN 90/80",6,"kos",null,{"$f":"+G71*E71","v":0}]
[]
[null,null,null,"VODOVODNA ARMATURA"]
[]
[null,"V2",1,"EV zasun    DN 150mm;   F4, z ročnim kolesom",2,"kos",null,{"$f":"+G75*E75","v":0}]
[]
[null,"V2",2,"EV zasun    DN 100mm;   F4, z ročnim kolesom",1,"kos",null,{"$f":"+G77*E77","v":0}]
[]
[null,"V2",3,"EV zasun    DN 80mm;   F4, z ročnim kolesom",1,"kos",null,{"$f":"+G79*E79","v":0}]
[]
[null,"V2",4,"EV zasun    DN 80mm;   z vgradbeno garnituro (daljša - 2m), teleskopska",3,"kos",null,{"$f":"+G81*E81","v":0}]
[]
[null,"V2",5,"Hidrant nadtalni lomni DN 80/1250mm, Inox izvedba ",3,"kos",null,{"$f":"+G83*E83","v":0}]
[]
[null,"V2",6,"Zračnik prirobnični na eno kroglo DN 80mm za montažo v jašku (npr. Hawle ali ARI D-060 oz. boljši).",1,"kos",null,{"$f":"+G85*E85","v":0}]
[]
[]
[null,null,null,"HIŠNI PRIKLJUČKI (odcepi)"]
[]
[null,"V2",1,"Cestna kapa DN 125mm; vodovodna",9,"kos",null,{"$f":"+G90*E90","v":0}]
[]
[null,"V2",2,"Cevi PE, DN 32/16; K 100M - cev za hišne priključke",203,"m",null,{"$f":"+G92*E92","v":0}]
[]
[null,"V2",3,"Cevi PE, DN 63/16; K 100M - zaščitna cev za hišne priključke",45,"m",null,{"$f":"+G94*E94","v":0}]
[]
[null,"V2",4,"Navrtno sedlo (oklep) na cevi NL ali PP ( za klasično montažo) z vgradbeno garnituro za hišne priključke - teleskopska 1,3 do 2,0m. Vključno zmanjševalnim kosom in prehodno ločno spojko.",9,"kos",null,{"$f":"+G96*E96","v":0}]
[]
[null,"V2",5,"Spiranje hišnih priključkov",9,"kos",null,{"$f":"+G98*E98","v":0}]
[]
[null,null,null,null,null,null,"SKUPAJ cevni material  ",{"$f":"SUM(H23:H99)","v":0}]
[]
[]
[null,"V2","-20/00","MONTAŽNA DELA"]
[null,"V2",1,"Prenos, spuščanje in polaganje NL cevi v jarek ter poravnava cevi v vertikalni in horizontalni smeri.",305,"m",null,{"$f":"+G104*E104","v":0}]
[]
[null,"V2",2,"Prenos, spuščanje in polaganje PE cevi v jarek ter poravnava cevi v vertikalni in horizontalni smeri.",6,"m",null,{"$f":"+G106*E106","v":0}]
[]
[null,"V2",3,"Montaža cevi  na predhodno pripravljeno ležišče oz. posteljico.",311,"m",null,{"$f":"+G108*E108","v":0}]
[]
[null,"V2",4,"Prenos in spuščanje fazonskih kosov in vodovodnih armatur do teže 100kg/kos, poravnavanje v smeri.",42,"kos",null,{"$f":"+G110*E110","v":0}]
[]
[null,"V2",5,"Montaža NL duktil fazonskih kosov in vodovodnih armatur na predhodno pripravljeno ležišče oz. posteljico, ter dokončna obdelava in zaščita spojev.",31,"kos",null,{"$f":"+G112*E112","v":0}]
[]
[null,"V2",6,"Montaža zasunov z vgradbeno garnituro in cestno varovalno kapo, na predhodno pripravljeno ležišče oz. posteljico, vključno s podbetoniranjem.",3,"kos",null,{"$f":"+G114*E114","v":0}]
[]
[null,"V2",7,"Montaža zasunov z ročnim kolesom - v jašku.",4,"kos",null,{"$f":"+G116*E116","v":0}]
[]
[null,"V2",8,"Montaža nadtalnih hidrantov z vgradbeno garnituro na predhodno pripravljeno ležišče oz. posteljico, vključno s podbetoniranjem. Vgradbena globina 1,5m.",3,"kos",null,{"$f":"+G118*E118","v":0}]
[]
[null,"V2",9,"Montaža in preskus delovanja zračnikov na predhodno pripravljeno ležišče oz. posteljico, vključno s podbetoniranjem",1,"kos",null,{"$f":"+G120*E120","v":0}]
[]
[null,"V2",10,"Montaža hišnih priključkov - končnih. Montaža vključuje navrtavanje na NL ali PP cev, priključitev cevi PP 32mm, dolžine 3 do 5m, montaža vgradbene garniture in montažo cestne kape usklajene z niveleto ceste, vključno z betonskim podstavkom. Vključno z zaključnim spiranjem pred priklopom.",9,"kos",null,{"$f":"+G122*E122","v":0}]
[]
[null,"V2",11,"Montaža hišnih priključkov - za čas gradnje. Montaža vključuje navrtavanje na PP cev, priključitev na obstoječo cev montaža zasuna 32mm, vključno z zaključnim spiranjem pred priklopom.",3,"kos",null,{"$f":"+G124*E124","v":0}]
[]
[null,"V2",12,"Nabava, dobava in postavitev oznak (signalne tablice) za podzemne armature zasune, hidrante, zračnike…), modre barve, komplet z zaščitno ploščo z robom iz aluminija dimenzije 140/200 mm (PSIST 1005), objemko za montažo na steber 6/4, pocinkanim stebrom 50x2000 mm s plastično kapo, EKO sidrom iz pocinkanega materiala in betonskim temeljem C16/20 (MB 20); 0,30 m3/kos.",7,"kos",null,{"$f":"+G126*E126","v":0}]
[]
[null,"V2",13,"Tlačni preizkus vodovoda, po opisu v tehničnem poročilu, z digitalnim izpisom, skladno s standardom SIST EN 805 (priporočilo 10 bar).",311,"m",null,{"$f":"+G128*E128","v":0}]
[]
[null,"V2",14,"Spiranje in dezinfekcija cevovoda po končani gradnji, z odvzemom vzorcev vode, analizami ter strokovnim mnenjem; skladno s standardom SIST EN 805:2000",311,"m",null,{"$f":"+G130*E130","v":0}]
[]
[null,"V2",15,"Nabava, dobava in polaganje signalnega traku nad vodovodno cevjo - PVC trak modre barve z napisom POZOR VODOVOD.",320,"m",null,{"$f":"+G132*E132","v":0}]
[]
[null,"V2",16,"Preskus hidrantov po Pravilniku o preizkušanju hidrantnih omrežij, s strani organizacije (s pooblastilom RS uprave za zaščito in reševanje), vključno z izdelavo potrdila o brezhibnem delovanju hidrantnega omrežja.",3,"kos",null,{"$f":"+G134*E134","v":0}]
[]
[null,"V2",17,"Zapiranja in odpiranja vode, sodelovanje upravljavca pri prevezavah vodovodnega omrežja.",1,"kpl",null,{"$f":"+G136*E136","v":0}]
[]
[null,"V2",19,"Urna postavka NK monter",1,"ur"]
[null,null,null,"Urna postavka PK monter",1,"ur"]
[null,null,null,"Urna postavka KV monter",1,"ur"]
[null,null,null,"Urna postavka VKV monter",1,"ur"]
[]
[null,null,null,null,null,null,"SKUPAJ montažna dela  ",{"$f":"SUM(H104:H142)","v":0}]
[]
[]
[null,"V2","-40/00","GRADBENA DELA"]
[null,null,null,"- opomba: obračunane so samo količine pod cestnim ustrojem; d=60cm"]
[null,null,null,"- opomba: obračunana so samo dodatne dela glede na načrt ceste"]
[null,"V2","-41/00","Preddela"]
[null,"V2",1,"Zakoličba projektiranih osi vodovoda postavitev prečnih profilov ali zakoličbenih točk, določitev nivoja za merjenje globine vodovoda, prenos višin, z zavarovanjem izven operativnega pasu. ",320,"m",null,{"$f":"+G150*E150","v":0}]
[]
[null,"V2",2,"Trasna in višinska zakoličba obstoječih komunalnih vodov in oznake križanj, vključno s stroški dodatnega nadzora upravljavcev komunalnih vodov. Obračun na osnovi vpisa v dnevnik (vodovod, plin, elektrika, Telekom...).",320,"m",null,{"$f":"+G152*E152","v":0}]
[]
[null,"V2","-50/00","Zemeljska dela"]
[null,"V2",1,"Odriv humusa v dejanski debelini (cca 30cm) z direktnim nakladanjem na kamion in odvozom na gradbiščno deponijo po izbiri izvajalca, ali odrivom izven operativnega pasu."]
[null,null,null,"samo dodatek glede na cesto",35,"m3",null,{"$f":"+G156*E156","v":0}]
[]
[null,"V2",2,"Deloma strojna, deloma ročna ureditev brežin (planiranje) po končanem zasipu."]
[null,null,null,"samo dodatek glede na cesto",180,"m2",null,{"$f":"+G159*E159","v":0}]
[]
[null,"V2",3,"Humusiranje z materialom iz odriva ali odvoza,   ureditev terena po končani gradnji, gnojenje z umetnim gnojilom, zatravitev in uvaljanje. Upoštevati pokrivanje sejane površine s tanko plastjo humusa in negovanje trave do popolne ozelenitve."]
[null,null,null,"samo dodatek glede na cesto",35,"m3",null,{"$f":"+G162*E162","v":0}]
[]
[null,"V2",4,"Strojni izkop jarkov širine 2,0 do 5,0m, za polaganje vodovodne cevi, globine 2,0 do 4,0m, širina v dnu 0,60 do 0,80m (DN cevi +2x 30cm), v zemljini III. kat, naklon izkopa 60° do 80° (se prilagodi karakteristikam zemljine), z odlaganjem materiala direktno na kamion. Pri obračunu količin za vsak odsek od točke do točke usklajevati količine z masno črto iz grafične priloge - vzdolžnega profila."]
[null,null,null,68,696,"m3",null,{"$f":"+G165*E165","v":0}]
[]
[null,"V2",5,"Strojni izkop jarkov širine 2,0 do 5,0m, za polaganje vodovodne cevi, globine 2,0 do 4,0m, širina v dnu 0,60 do 0,80m (DN cevi +2x 30cm), v zemljini III. kat, naklon izkopa 60° do 80° (se prilagodi karakteristikam zemljine), z odlaganjem, materiala v dosegu ročice bagra (ob rob gradbene jame + 1x premet, če je potrebno). Pri obračunu količin za vsak odsek od točke do točke usklajevati količine z masno črto iz grafične priloge - vzdolžnega profila."]
[null,null,null,20,213,"m3",null,{"$f":"+G168*E168","v":0}]
[]
[null,"V2",20,"Ročni izkop jarkov širine do 3,0m, za polaganje vodovodne cevi, globine do 3,0m, v zemljini III. kat, z odlaganjem, materiala ob rob gradbene jame."]
[null,null,null,2,19,"m3",null,{"$f":"+G171*E171","v":0}]
[]
[null,"V2",21,"Strojni izkop jarkov širine 2,0 do 5,0m, za polaganje vodovodne cevi, globine 2,0 do 4,0m, širina v dnu 0,60 do 0,80m (DN cevi +2x 30cm), v mehki kamnini V. kat (brez miniranja), naklon izkopa 60° do 80° (se prilagodi karakteristikam zemljine), z odlaganjem, materiala direktno na kamion. Pri obračunu količin za vsak odsek od točke do točke usklajevati količine z masno črto iz grafične priloge - vzdolžnega profila."]
[null,null,null,10,128,"m3",null,{"$f":"+G174*E174","v":0}]
[]
[null,"V2",22,"Splošni opis: Dodatna dela pri križanjih z obstoječimi in predvidenimi komunalnimi vodi, vključno z dodatnimi deli zaradi vzporednega poteka komunalij:"]
[null,null,null,"- zakoličba vodov skladno z zahtevami upravljavca,"]
[null,null,null,"- nadzor upravljavcev"]
[null,null,null,"- dodatni ročni in strojni izkop v območju križanj"]
[null,null,null,"- zavarovanje gradbene jame v času gradnje in pri zasipavanju"]
[null,null,null,"- zasip z drobnozrnatim peščenim materialom ali obbetoniranjem"]
[null,null,null,"Vkolikor tehnologija odstopa od projekta je potrebno pridobiti tudi pozitivno mnenje upravljavca. Vse poškodbe so breme izvajalca, ki krije vso nastalo škodo). Vse poškodbe so breme izvajalca, ki krije vso nastalo škodo).",7,"kos",null,{"$f":"+G182*E182","v":0}]
[]
[null,"V2",23,"Dodatek za odvoz viška materiala iz prejšnjih postavk na stalno deponijo  po izbiri izvajalca, z razgrinjanjem, vse eventualne stroške deponije (vključno s takso, razgradnjo, odškodninami,...) je zajeti v ceno.",613,"m3",null,{"$f":"+G184*E184","v":0}]
[]
[null,"V2",24,"Dodatek za odvoz viška materiala iz prejšnjih postavk na začasno deponijo  po izbiri izvajalca, z razgrinjanjem, vse eventualne stroške deponije je zajeti v ceno (taksa, odškodnina,…). Vključno s prevozom nazaj na gradbišče.",185,"m3",null,{"$f":"+G186*E186","v":0}]
[]
[null,"V2",25,"Ročno planiranje dna gradbene jame po strojnem izkopu, s planuumom padca - z izkopom ali dosipom materiala do 0,1m3/m2, z natančnostjo +-3cm, do potrebne zbitosti (Ev2 ≥ 20 MPa) , v III do V. ktg.",215,"m2",null,{"$f":"+G188*E188","v":0}]
[]
[null,"V2",26,"Nabava, dobava in izdelava posteljice in obsip kanalizacijske cevi; okroglozrnate granulacije, do višine 30cm nad temenom cevi, vključno z utrjevanjem. Pri obračunu količin za vsak odsek od točke do točke usklajevati količine z masno črto iz grafične priloge - vzdolžnega profila. Uporaba recikliranega materiala ni dovoljena."]
[null,null,null,"- v primeru grobozrnatega, peščenega ali  prodnega zemljišča je granulacija obsipa 4-8mm"]
[null,null,null,"- v primeru finozrnatega zemljišča je granulacija obsipa 1-4mm",180,"m3",null,{"$f":"+G192*E192","v":0}]
[]
[null,"V2",27,"Nabava, dobava in strojni zasip, z gramoznim materialom, po končanih delih, z utrjevanjem v slojih po 30cm, zahtevana stopnja komprimacije M=80MPa (8-10% CBR). Upoštevan zasip do tampona - 50cm pod nivojem bankine Pri obračunu količin za vsak odsek od točke do točke usklajevati količine z masno črto iz grafične priloge - vzdolžnega profila.  Uporaba recikliranega materiala ni dovoljena."]
[null,null,null,78,196,"m3",null,{"$f":"+G195*E195","v":0}]
[]
[null,"V2",28,"Zasip po končanih delih, z izkopanim materialom, z utrjevanjem v slojih po 30cm - zahtevana stopnja komprimacije M=40 Mpa (8-10% CBR). Upoštevan zasip do tampona - 50cm pod nivojem bankine."]
[null,null,null,22,229,"m3",null,{"$f":"+G198*E198","v":0}]
[]
[null,"V2",29,"Kompletna izdelava betonskih blokov za sidranje fazonov in armatur; vključno z objemkami in podložno gumo (0.15-0,40m3/kos).",7,"kos",null,{"$f":"+G200*E200","v":0}]
[]
[null,null,null,"Hišni priključki"]
[null,null,null,"(se vgrajujejo samo na podlagi soglasja upravljavca vodovoda in skladno z njim)."]
[null,null,null,"Zakoličba projektiranih osi in zaščita točk, Izkop jarkov v zemljini III, ktg., Širine do 0,80 min globine do 1,50 m,( cca 0,20 m3/m1) ter deponiranje materiala, na začasni deponiji po izbiri izvajalca, za kasnejši zasip. Ročni izkop jarkov v zemljini III, ktg. širine do 1,00m, in globine do 1,50m, (cca 1,0 m3/m1) ter odmet materiala vsaj 1.00 m od roba izkopa. Kompletna izdelava prebojev oziroma podbojev pod obstoječimi betonskimi in kamnitimi opornimi zidovi,ograjami, parapeti (ocena količine 0,03kom/m1). "]
[null,null,null," Kompletna izdelava posteljice iz separacije, granulacije 4-8 mm peska v debelini 10 cm (cca 0,07 m3/m1). Nabava, dobava raznos in montaža pod tlakom cevi PE 3/4\", 1\", DN63mm po gradbišču in spuščanje v jarek z gradbeno mehanizacijo. Obračun pa m1. Izdelava zasipa cevi s separacijo granulacije 4-8 mm v debelini vsaj 10-20 cm nad temenom cevi (cca 0,22 m3/m1). Ureditev terena v prvotno stanje (asfalt ali ureditev zelenice). Ročno zasipanje jarkov z izkopanim materialom v slojih po 30 cm z utrjevanjem (cca 0,90m3/m). Nakladanje in dovoz odvečnega materiala III. ktg, s kamioni na razdaljo do 14 km ter grobo razprostiranje pripeljanega materiala (cca 0,30 m3/m1).\n",203,"m",null,{"$f":"+G205*E205","v":0}]
[null,null,null,null,9,"kos",null,{"$f":"+G206*E206","v":0}]
[]
[null,"V2","-71/00","Vgraditev jeklene zaščitne cevi"]
[null,"V2",1,"Nabava, dobava in vgradnja zaščitne jeklene cevi 324/7,1mm (56kg/m), z distančniki za centriranje medialne cevi, vključno z dodatnim izkopom in uvlačenjem medialne cevi. Vse dodatne stroške in stroške v zvezi z zamudo pri deli všteti v tej postavki. Po koncu uvlačenja medialne cevi se zaščitne cev na začetku in koncu začepi ter obbetonira na začetku in koncu ter na vsakem spoju. Spajanje cevi do 20m obvezno z varjenjem v delavnici. Prečkanje je potrebno posebej obdelati v varnostnem načrtu, ki ga mora potrdit izbrani koordinator za varnost in zdravje pri delu. Zemeljska dela niso všteta v tej postavki.",10,"m",null,{"$f":"+G209*E209","v":0}]
[]
[null,"V2","-80/00","OSTALA DELA"]
[null,"V2",1,"Dodatna in nepredvidena dela pri priključitvi na obstoječ vodovod - izven jaška.",2,"kos",null,{"$f":"+G212*E212","v":0}]
[]
[null,"V2",2,"Nadzor upravljavca vodovoda",20,"ur",45,{"$f":"+G214*E214","v":900}]
[]
[null,"V2",3,"Projektantski nadzor in usklajevanje projekta z dejansko ugotovljenim stanjem na terenu. Obračun po dejanskih urah (+stroški prevoza).",25,"ur",45,{"$f":"+G216*E216","v":1125}]
[]
[null,"V2",4,"Geodetski posnetek pri odprti trasi (pred zasutjem), za glavne cevovod in hišne priključke, izdelava PID v papirni in elektronski obliki skladno s pravilnikom in navodili Komunalnega podjetja Hydrovod vključno z vodilno mapo in dokazilom o zanesljivosti, dokumentacija za tehnični pregled, izvajalski del dokumentacije za pridobitev uporabnega dovoljenja (atesti, certifikati, izjave o lastnostih).. glej tudi tehnično poročilo.",1,"znesek",null,{"$f":"+G218*E218","v":0}]
[]
[null,null,null,null,null,null,"SKUPAJ gradbena dela ",{"$f":"SUM(H146:H218)","v":2025}]
[]
[null,null,null,"SKUPAJ VODOVOD 2",null,null,null,{"$f":"H220+H143+H100","v":2025}]

{"sheet":"VODOVOD_3","index":20,"n_rows":177,"n_cols":8,"rows_kept":177,"cut":false,"hidden":false,"merged":[[91,14,91,20]]}
[]
[]
[null,"    zap. št.",null,"Opis del","količina","enota","cena/enoto","skupaj"]
[null,"V3",null,"SEKUNDARNI VODOVOD 3 (L = 250,80m)"]
[]
[null,"V3","-10/00","CEVNI MATERIAL (franko gradbišče)"]
[null,"V3","-12/00","CEVI"]
[null,null,null,"NL cevi vodo morajo biti izdelane v skladu s standardom SIST EN 545:2011,"]
[null,null,null,"tlačni razred (glej spodaj). Cevi morajo biti na notranji strani zaščitene s cementno"]
[null,null,null,"oblogo, ki je nanesena po postopku centrifugiranja. Na zunanji strani so cevi "]
[null,null,null,"zaščitene (400gr/m2) z zlitino cinka in aluminija (razmerje 85%-15%) in epoxi "]
[null,null,null,"premazom. Dolžina cevi 6m ali več. Vključno z dodatkom 2%."]
[null,null,null,"Proizvajalec za cevi je lahko Saint Gobain group, Duktus, Svobodny sokol, "]
[null,null,null,"ostale cevi po dogovoru z nadzorom, investitorjem ali projektantom."]
[]
[null,null,null,"Vkolikor so predpisana VI tesnila, pomeni, da so samo v 30% spojih ter na odcepih"]
[null,null,null,"lokih,… ostali spoji so lahko standard spoj. Vi spoj mora biti tudi na prvih dveh in "]
[null,null,null,"zadnjih dveh ceveh na posameznem kraku."]
[]
[null,null,null,"PP Cevi so tlačnega razreda 16bar in izdelane v skladu s standardom  "]
[null,null,null,"SIST ISO 4427, SIST EN 12201 in SIST EN  15014"]
[]
[null,"V3",1,"Cevi NL duktil,  C50, z natural zaščito, DN 150, L=6m, Tyton spoji, z Vi tesnili  (glavni vodovod)",10,"m",null,{"$f":"+G23*E23","v":0}]
[]
[null,"V3",2,"Cevi NL duktil,  C50, z natural zaščito, DN 100, L=6m, Tyton spoji, z Vi tesnili  (glavni vodovod)",240.8,"m",null,{"$f":"+G25*E25","v":0}]
[]
[null,"V3",3,"Cevi PE (ali PE RC), DN 90/16; K 100M, stikovane elektrofuzijsko (z ELGEF spojkami)  SDR11, vključno s spojkami in elektrovarilnim materialom.",4,"m",null,{"$f":"+G27*E27","v":0}]
[]
[null,"V3",4,"Za čas gradnje: Polaganje in prevezava priključkov na PE cev DN 90, vključno s hišnimi priključki.",150,"m",null,{"$f":"+G29*E29","v":0}]
[]
[null,"V3","-14/00","NL FAZONSKI KOSI (vključno z VI tesnili in vijaki); vse PN 10-16, ISO 2531."]
[null,null,null,"za prirobnične spoje se uporabljajo gumi tesnila z jeklenim jedrom"]
[null,null,null,"Vijačni material Inox A2. Cena franko gradbišče."]
[]
[null,"V3",1,"Cestna kapa vodovodna DN 200mm; na podstavku iz betona",2,"kos",null,{"$f":"+G35*E35","v":0}]
[]
[null,"V3",2,"E kos    DN 100mm;   ",1,"kos",null,{"$f":"+G37*E37","v":0}]
[]
[null,"V3",3,"FF kos    DN 80mm;   L=400mm",2,"kos",null,{"$f":"+G39*E39","v":0}]
[]
[null,"V3",4,"MMA kos  DN 100/80mm",2,"kos",null,{"$f":"+G41*E41","v":0}]
[]
[null,"V3",5,"N kos    DN 80mm;   90°",2,"kos",null,{"$f":"+G43*E43","v":0}]
[]
[null,"V3",5,"Univerzalna spojka DN 100mm; tip 3057 (+GF+)",1,"kos",null,{"$f":"+G45*E45","v":0}]
[]
[null,"V3",7,"ELGEF varilna prirobnica DN 90/80",4,"kos",null,{"$f":"+G47*E47","v":0}]
[]
[null,null,null,"VODOVODNA ARMATURA"]
[]
[null,"V3",1,"EV zasun    DN 80mm;   z vgradbeno garnituro (daljša - 2m), teleskopska",2,"kos",null,{"$f":"+G51*E51","v":0}]
[]
[null,"V3",2,"Hidrant nadtalni lomni DN 80/1250mm, Inox izvedba ",2,"kos",null,{"$f":"+G53*E53","v":0}]
[]
[]
[null,null,null,"HIŠNI PRIKLJUČKI (odcepi)"]
[]
[null,"V3",1,"Cestna kapa DN 125mm; vodovodna",7,"kos",null,{"$f":"+G58*E58","v":0}]
[]
[null,"V3",2,"Cevi PE, DN 32/16; K 100M - cev za hišne priključke",105,"m",null,{"$f":"+G60*E60","v":0}]
[]
[null,"V3",3,"Cevi PE, DN 63/16; K 100M - zaščitna cev za hišne priključke",35,"m",null,{"$f":"+G62*E62","v":0}]
[]
[null,"V3",4,"Navrtno sedlo (oklep) na cevi NL ali PP ( za klasično montažo) z vgradbeno garnituro za hišne priključke - teleskopska 1,3 do 2,0m. Vključno zmanjševalnim kosom in prehodno ločno spojko.",7,"kos",null,{"$f":"+G64*E64","v":0}]
[]
[null,"V3",5,"Spiranje hišnih priključkov",7,"kos",null,{"$f":"+G66*E66","v":0}]
[]
[null,null,null,null,null,null,"SKUPAJ cevni material  ",{"$f":"SUM(H23:H67)","v":0}]
[]
[]
[null,"V3","-20/00","MONTAŽNA DELA"]
[null,"V3",1,"Prenos, spuščanje in polaganje NL cevi v jarek ter poravnava cevi v vertikalni in horizontalni smeri.",250.8,"m",null,{"$f":"+G72*E72","v":0}]
[]
[null,"V3",2,"Prenos, spuščanje in polaganje PE cevi v jarek ter poravnava cevi v vertikalni in horizontalni smeri.",4,"m",null,{"$f":"+G74*E74","v":0}]
[]
[null,"V3",3,"Montaža cevi  na predhodno pripravljeno ležišče oz. posteljico.",254.8,"m",null,{"$f":"+G76*E76","v":0}]
[]
[null,"V3",4,"Prenos in spuščanje fazonskih kosov in vodovodnih armatur do teže 100kg/kos, poravnavanje v smeri.",18,"kos",null,{"$f":"+G78*E78","v":0}]
[]
[null,"V3",5,"Montaža NL duktil fazonskih kosov in vodovodnih armatur na predhodno pripravljeno ležišče oz. posteljico, ter dokončna obdelava in zaščita spojev.",14,"kos",null,{"$f":"+G80*E80","v":0}]
[]
[null,"V3",6,"Montaža zasunov z vgradbeno garnituro in cestno varovalno kapo, na predhodno pripravljeno ležišče oz. posteljico, vključno s podbetoniranjem.",2,"kos",null,{"$f":"+G82*E82","v":0}]
[]
[null,"V3",7,"Montaža nadtalnih hidrantov z vgradbeno garnituro na predhodno pripravljeno ležišče oz. posteljico, vključno s podbetoniranjem. Vgradbena globina 1,5m.",2,"kos",null,{"$f":"+G84*E84","v":0}]
[]
[null,"V3",8,"Montaža hišnih priključkov - končnih. Montaža vključuje navrtavanje na NL ali PP cev, priključitev cevi PP 32mm, dolžine 3 do 5m, montaža vgradbene garniture in montažo cestne kape usklajene z niveleto ceste, vključno z betonskim podstavkom. Vključno z zaključnim spiranjem pred priklopom.",7,"kos",null,{"$f":"+G86*E86","v":0}]
[]
[null,"V3",9,"Montaža hišnih priključkov - za čas gradnje. Montaža vključuje navrtavanje na PP cev, priključitev na obstoječo cev montaža zasuna 32mm, vključno z zaključnim spiranjem pred priklopom.",7,"kos",null,{"$f":"+G88*E88","v":0}]
[]
[null,"V3",10,"Nabava, dobava in postavitev oznak (signalne tablice) za podzemne armature zasune, hidrante, zračnike…), modre barve, komplet z zaščitno ploščo z robom iz aluminija dimenzije 140/200 mm (PSIST 1005), objemko za montažo na steber 6/4, pocinkanim stebrom 50x2000 mm s plastično kapo, EKO sidrom iz pocinkanega materiala in betonskim temeljem C16/20 (MB 20); 0,30 m3/kos.",4,"kos",null,{"$f":"+G90*E90","v":0}]
[]
[null,"V3",11,"Tlačni preizkus vodovoda, po opisu v tehničnem poročilu, z digitalnim izpisom, skladno s standardom SIST EN 805 (priporočilo 10 bar).",254.8,"m",null,{"$f":"+G92*E92","v":0}]
[]
[null,"V3",12,"Spiranje in dezinfekcija cevovoda po končani gradnji, z odvzemom vzorcev vode, analizami ter strokovnim mnenjem; skladno s standardom SIST EN 805:2000",254.8,"m",null,{"$f":"+G94*E94","v":0}]
[]
[null,"V3",13,"Nabava, dobava in polaganje signalnega traku nad vodovodno cevjo - PVC trak modre barve z napisom POZOR VODOVOD.",260,"m",null,{"$f":"+G96*E96","v":0}]
[]
[null,"V3",14,"Preskus hidrantov po Pravilniku o preizkušanju hidrantnih omrežij, s strani organizacije (s pooblastilom RS uprave za zaščito in reševanje), vključno z izdelavo potrdila o brezhibnem delovanju hidrantnega omrežja.",2,"kos",null,{"$f":"+G98*E98","v":0}]
[]
[null,"V3",15,"Zapiranja in odpiranja vode, sodelovanje upravljavca pri prevezavah vodovodnega omrežja.",1,"kpl",null,{"$f":"+G100*E100","v":0}]
[]
[null,"V3",17,"Urna postavka NK monter",1,"ur"]
[null,null,null,"Urna postavka PK monter",1,"ur"]
[null,null,null,"Urna postavka KV monter",1,"ur"]
[null,null,null,"Urna postavka VKV monter",1,"ur"]
[]
[null,null,null,null,null,null,"SKUPAJ montažna dela  ",{"$f":"SUM(H72:H106)","v":0}]
[]
[]
[null,"V3","-40/00","GRADBENA DELA"]
[null,null,null,"- opomba: obračunane so samo količine pod cestnim ustrojem; d=60cm"]
[null,null,null,"- opomba: obračunana so samo dodatne dela glede na načrt ceste"]
[null,"V3","-41/00","Preddela"]
[null,"V3",1,"Zakoličba projektiranih osi vodovoda postavitev prečnih profilov ali zakoličbenih točk, določitev nivoja za merjenje globine vodovoda, prenos višin, z zavarovanjem izven operativnega pasu. ",260,"m",null,{"$f":"+G114*E114","v":0}]
[]
[null,"V3",2,"Trasna in višinska zakoličba obstoječih komunalnih vodov in oznake križanj, vključno s stroški dodatnega nadzora upravljavcev komunalnih vodov. Obračun na osnovi vpisa v dnevnik (vodovod, plin, elektrika, Telekom...).",260,"m",null,{"$f":"+G116*E116","v":0}]
[]
[null,"V3",3,"Rušenje obstoječih vodovodnih cevi (salonit, Fe, NL, PVC, PE, Mannesman…), vseh premerov, vključno z odvozom na deponijo po izbiri izvajalca, s stroški deponiranja in zapiranje (X kos) cevi, ki se opustijo.",150,"m",null,{"$f":"+G118*E118","v":0}]
[]
[null,"V3","-50/00","Zemeljska dela"]
[null,"V3",1,"Odriv humusa v dejanski debelini (cca 30cm) z direktnim nakladanjem na kamion in odvozom na gradbiščno deponijo po izbiri izvajalca, ali odrivom izven operativnega pasu."]
[null,null,null,"samo dodatek glede na cesto",30,"m3",null,{"$f":"+G122*E122","v":0}]
[]
[null,"V3",2,"Deloma strojna, deloma ročna ureditev brežin (planiranje) po končanem zasipu."]
[null,null,null,"samo dodatek glede na cesto",150,"m2",null,{"$f":"+G125*E125","v":0}]
[]
[null,"V3",3,"Humusiranje z materialom iz odriva ali odvoza,   ureditev terena po končani gradnji, gnojenje z umetnim gnojilom, zatravitev in uvaljanje. Upoštevati pokrivanje sejane površine s tanko plastjo humusa in negovanje trave do popolne ozelenitve."]
[null,null,null,"samo dodatek glede na cesto",30,"m3",null,{"$f":"+G128*E128","v":0}]
[]
[null,"V3",4,"Strojni izkop jarkov širine 2,0 do 5,0m, za polaganje vodovodne cevi, globine 2,0 do 4,0m, širina v dnu 0,60 do 0,80m (DN cevi +2x 30cm), v zemljini III. kat, naklon izkopa 60° do 80° (se prilagodi karakteristikam zemljine), z odlaganjem materiala direktno na kamion. Pri obračunu količin za vsak odsek od točke do točke usklajevati količine z masno črto iz grafične priloge - vzdolžnega profila."]
[null,null,null,68,594,"m3",null,{"$f":"+G131*E131","v":0}]
[]
[null,"V3",5,"Strojni izkop jarkov širine 2,0 do 5,0m, za polaganje vodovodne cevi, globine 2,0 do 4,0m, širina v dnu 0,60 do 0,80m (DN cevi +2x 30cm), v zemljini III. kat, naklon izkopa 60° do 80° (se prilagodi karakteristikam zemljine), z odlaganjem, materiala v dosegu ročice bagra (ob rob gradbene jame + 1x premet, če je potrebno). Pri obračunu količin za vsak odsek od točke do točke usklajevati količine z masno črto iz grafične priloge - vzdolžnega profila."]
[null,null,null,20,185,"m3",null,{"$f":"+G134*E134","v":0}]
[]
[null,"V3",20,"Ročni izkop jarkov širine do 3,0m, za polaganje vodovodne cevi, globine do 3,0m, v zemljini III. kat, z odlaganjem, materiala ob rob gradbene jame."]
[null,null,null,2,18,"m3",null,{"$f":"+G137*E137","v":0}]
[]
[null,"V3",21,"Strojni izkop jarkov širine 2,0 do 5,0m, za polaganje vodovodne cevi, globine 2,0 do 4,0m, širina v dnu 0,60 do 0,80m (DN cevi +2x 30cm), v mehki kamnini V. kat (brez miniranja), naklon izkopa 60° do 80° (se prilagodi karakteristikam zemljine), z odlaganjem, materiala direktno na kamion. Pri obračunu količin za vsak odsek od točke do točke usklajevati količine z masno črto iz grafične priloge - vzdolžnega profila."]
[null,null,null,10,96,"m3",null,{"$f":"+G140*E140","v":0}]
[]
[null,"V3",22,"Dodatek za odvoz viška materiala iz prejšnjih postavk na stalno deponijo  po izbiri izvajalca, z razgrinjanjem, vse eventualne stroške deponije (vključno s takso, razgradnjo, odškodninami,...) je zajeti v ceno.",513,"m3",null,{"$f":"+G142*E142","v":0}]
[]
[null,"V3",23,"Dodatek za odvoz viška materiala iz prejšnjih postavk na začasno deponijo  po izbiri izvajalca, z razgrinjanjem, vse eventualne stroške deponije je zajeti v ceno (taksa, odškodnina,…). Vključno s prevozom nazaj na gradbišče.",157,"m3",null,{"$f":"+G144*E144","v":0}]
[]
[null,"V3",24,"Ročno planiranje dna gradbene jame po strojnem izkopu, s planuumom padca - z izkopom ali dosipom materiala do 0,1m3/m2, z natančnostjo +-3cm, do potrebne zbitosti (Ev2 ≥ 20 MPa) , v III do V. ktg.",175,"m2",null,{"$f":"+G146*E146","v":0}]
[]
[null,"V3",25,"Nabava, dobava in izdelava posteljice in obsip kanalizacijske cevi; okroglozrnate granulacije, do višine 30cm nad temenom cevi, vključno z utrjevanjem. Pri obračunu količin za vsak odsek od točke do točke usklajevati količine z masno črto iz grafične priloge - vzdolžnega profila. Uporaba recikliranega materiala ni dovoljena."]
[null,null,null,"- v primeru grobozrnatega, peščenega ali  prodnega zemljišča je granulacija obsipa 4-8mm"]
[null,null,null,"- v primeru finozrnatega zemljišča je granulacija obsipa 1-4mm",165,"m3",null,{"$f":"+G150*E150","v":0}]
[]
[null,"V3",26,"Nabava, dobava in strojni zasip, z gramoznim materialom, po končanih delih, z utrjevanjem v slojih po 30cm, zahtevana stopnja komprimacije M=80MPa (8-10% CBR). Upoštevan zasip do tampona - 50cm pod nivojem bankine Pri obračunu količin za vsak odsek od točke do točke usklajevati količine z masno črto iz grafične priloge - vzdolžnega profila.  Uporaba recikliranega materiala ni dovoljena."]
[null,null,null,78,194,"m3",null,{"$f":"+G153*E153","v":0}]
[]
[null,"V3",27,"Zasip po končanih delih, z izkopanim materialom, z utrjevanjem v slojih po 30cm - zahtevana stopnja komprimacije M=40 Mpa (8-10% CBR). Upoštevan zasip do tampona - 50cm pod nivojem bankine."]
[null,null,null,22,176,"m3",null,{"$f":"+G156*E156","v":0}]
[]
[null,"V3",28,"Kompletna izdelava betonskih blokov za sidranje fazonov in armatur; vključno z objemkami in podložno gumo (0.15-0,40m3/kos).",4,"kos",null,{"$f":"+G158*E158","v":0}]
[]
[null,null,null,"Hišni priključki"]
[null,null,null,"(se vgrajujejo samo na podlagi soglasja upravljavca vodovoda in skladno z njim)."]
[null,null,null,"Zakoličba projektiranih osi in zaščita točk, Izkop jarkov v zemljini III, ktg., Širine do 0,80 min globine do 1,50 m,( cca 0,20 m3/m1) ter deponiranje materiala, na začasni deponiji po izbiri izvajalca, za kasnejši zasip. Ročni izkop jarkov v zemljini III, ktg. širine do 1,00m, in globine do 1,50m, (cca 1,0 m3/m1) ter odmet materiala vsaj 1.00 m od roba izkopa. Kompletna izdelava prebojev oziroma podbojev pod obstoječimi betonskimi in kamnitimi opornimi zidovi,ograjami, parapeti (ocena količine 0,03kom/m1). "]
[null,null,null," Kompletna izdelava posteljice iz separacije, granulacije 4-8 mm peska v debelini 10 cm (cca 0,07 m3/m1). Nabava, dobava raznos in montaža pod tlakom cevi PE 3/4\", 1\", DN63mm po gradbišču in spuščanje v jarek z gradbeno mehanizacijo. Obračun pa m1. Izdelava zasipa cevi s separacijo granulacije 4-8 mm v debelini vsaj 10-20 cm nad temenom cevi (cca 0,22 m3/m1). Ureditev terena v prvotno stanje (asfalt ali ureditev zelenice). Ročno zasipanje jarkov z izkopanim materialom v slojih po 30 cm z utrjevanjem (cca 0,90m3/m). Nakladanje in dovoz odvečnega materiala III. ktg, s kamioni na razdaljo do 14 km ter grobo razprostiranje pripeljanega materiala (cca 0,30 m3/m1).\n",105,"m",null,{"$f":"+G163*E163","v":0}]
[null,null,null,null,7,"kos",null,{"$f":"+G164*E164","v":0}]
[]
[null,"V3","-80/00","OSTALA DELA"]
[null,"V3",1,"Dodatna in nepredvidena dela pri priključitvi na obstoječ vodovod - izven jaška.",2,"kos",null,{"$f":"+G167*E167","v":0}]
[]
[null,"V3",2,"Nadzor upravljavca vodovoda",16,"ur",45,{"$f":"+G169*E169","v":720}]
[]
[null,"V3",3,"Projektantski nadzor in usklajevanje projekta z dejansko ugotovljenim stanjem na terenu. Obračun po dejanskih urah (+stroški prevoza).",20,"ur",45,{"$f":"+G171*E171","v":900}]
[]
[null,"V3",4,"Geodetski posnetek pri odprti trasi (pred zasutjem), za glavne cevovod in hišne priključke, izdelava PID v papirni in elektronski obliki skladno s pravilnikom in navodili Komunalnega podjetja Hydrovod vključno z vodilno mapo in dokazilom o zanesljivosti, dokumentacija za tehnični pregled, izvajalski del dokumentacije za pridobitev uporabnega dovoljenja (atesti, certifikati, izjave o lastnostih).. glej tudi tehnično poročilo.",1,"znesek",null,{"$f":"+G173*E173","v":0}]
[]
[null,null,null,null,null,null,"SKUPAJ gradbena dela ",{"$f":"SUM(H110:H173)","v":1620}]
[]
[null,null,null,"SKUPAJ VODOVOD 3",null,null,null,{"$f":"H175+H107+H68","v":1620}]

{"sheet":"VODOVOD_4","index":21,"n_rows":191,"n_cols":8,"rows_kept":191,"cut":false,"hidden":false,"merged":[]}
[]
[]
[null,"    zap. št.",null,"Opis del","količina","enota","cena/enoto","skupaj"]
[null,"V4",null,"SEKUNDARNI VODOVOD 4-1, 4-2, 4-3 in 4-4 (L = 142+57+42+41=282m)"]
[]
[null,"V4","-10/00","CEVNI MATERIAL (franko gradbišče)"]
[null,"V4","-12/00","CEVI"]
[null,null,null,"NL cevi vodo morajo biti izdelane v skladu s standardom SIST EN 545:2011,"]
[null,null,null,"tlačni razred (glej spodaj). Cevi morajo biti na notranji strani zaščitene s cementno"]
[null,null,null,"oblogo, ki je nanesena po postopku centrifugiranja. Na zunanji strani so cevi "]
[null,null,null,"zaščitene (400gr/m2) z zlitino cinka in aluminija (razmerje 85%-15%) in epoxi "]
[null,null,null,"premazom. Dolžina cevi 6m ali več. Vključno z dodatkom 2%."]
[null,null,null,"Proizvajalec za cevi je lahko Saint Gobain group, Duktus, Svobodny sokol, "]
[null,null,null,"ostale cevi po dogovoru z nadzorom, investitorjem ali projektantom."]
[]
[null,null,null,"Vkolikor so predpisana VI tesnila, pomeni, da so samo v 30% spojih ter na odcepih"]
[null,null,null,"lokih,… ostali spoji so lahko standard spoj. Vi spoj mora biti tudi na prvih dveh in "]
[null,null,null,"zadnjih dveh ceveh na posameznem kraku."]
[]
[null,null,null,"PP Cevi so tlačnega razreda 16bar in izdelane v skladu s standardom  "]
[null,null,null,"SIST ISO 4427, SIST EN 12201 in SIST EN  15014"]
[]
[null,"V4",1,"Cevi NL duktil,  C50, z natural zaščito, DN 100, L=6m, Tyton spoji, z Vi tesnili",282,"m",null,{"$f":"+G23*E23","v":0}]
[]
[null,"V4",2,"Cevi PE (ali PE RC), DN 90/16; K 100M, stikovane elektrofuzijsko (z ELGEF spojkami)  SDR11, vključno s spojkami in elektrovarilnim materialom.",10,"m",null,{"$f":"+G25*E25","v":0}]
[]
[null,"V4",3,"Za čas gradnje: Polaganje in prevezava priključkov na PE cev DN 90, vključno s hišnimi priključki.",210,"m",null,{"$f":"+G27*E27","v":0}]
[]
[null,"V4","-14/00","NL FAZONSKI KOSI (vključno z VI tesnili in vijaki); vse PN 10-16, ISO 2531."]
[null,null,null,"za prirobnične spoje se uporabljajo gumi tesnila z jeklenim jedrom"]
[null,null,null,"Vijačni material Inox A2. Cena franko gradbišče."]
[]
[null,"V4",1,"Cestna kapa vodovodna DN 200mm; na podstavku iz betona",8,"kos",null,{"$f":"+G33*E33","v":0}]
[]
[null,"V4",2,"E kos    DN 100mm;   ",8,"kos",null,{"$f":"+G35*E35","v":0}]
[]
[null,"V4",3,"FF kos    DN 80mm;   L=400mm",1,"kos",null,{"$f":"+G37*E37","v":0}]
[]
[null,"V4",4,"FFK 11,25°    DN 100mm",2,"kos",null,{"$f":"+G39*E39","v":0}]
[]
[null,"V4",5,"FFK 22,5/30°    DN 100mm",3,"kos",null,{"$f":"+G41*E41","v":0}]
[]
[null,"V4",6,"MMK 45°    DN 100mm",1,"kos",null,{"$f":"+G43*E43","v":0}]
[]
[null,"V4",7,"MMA kos  DN 100/100mm",2,"kos",null,{"$f":"+G45*E45","v":0}]
[]
[null,"V4",8,"MMA kos  DN 100/80mm",1,"kos",null,{"$f":"+G47*E47","v":0}]
[]
[null,"V4",9,"N kos    DN 80mm;   90°",4,"kos",null,{"$f":"+G49*E49","v":0}]
[]
[null,"V4",10,"T kos  DN 100/100mm",1,"kos",null,{"$f":"+G51*E51","v":0}]
[]
[null,"V4",11,"T kos  DN 100/80mm",4,"kos",null,{"$f":"+G53*E53","v":0}]
[]
[null,"V4",12,"X kos    DN 100mm;   ",5,"kos",null,{"$f":"+G55*E55","v":0}]
[]
[null,"V4",13,"ELGEF varilna prirobnica DN 90/80",6,"kos",null,{"$f":"+G57*E57","v":0}]
[]
[]
[null,null,null,"VODOVODNA ARMATURA"]
[]
[null,"V4",1,"EV zasun    DN 100mm;   z vgradbeno garnituro (daljša - 2m), teleskopska",3,"kos",null,{"$f":"+G62*E62","v":0}]
[]
[null,"V4",2,"EV zasun    DN 80mm;   z vgradbeno garnituro (daljša - 2m), teleskopska",4,"kos",null,{"$f":"+G64*E64","v":0}]
[]
[null,"V4",3,"Hidrant nadtalni lomni DN 80/1250mm, Inox izvedba ",4,"kos",null,{"$f":"+G66*E66","v":0}]
[]
[null,"V4",4,"Zračnik prirobnični na eno kroglo DN 80mm z vgradbeno garnituro (npr. Hawle ali ARI D-060 oz. boljši).",1,"kos",null,{"$f":"+G68*E68","v":0}]
[]
[]
[null,null,null,"HIŠNI PRIKLJUČKI (odcepi)"]
[]
[null,"V4",1,"Cestna kapa DN 125mm; vodovodna",15,"kos",null,{"$f":"+G73*E73","v":0}]
[]
[null,"V4",2,"Cevi PE, DN 32/16; K 100M - cev za hišne priključke",224,"m",null,{"$f":"+G75*E75","v":0}]
[]
[null,"V4",3,"Cevi PE, DN 63/16; K 100M - zaščitna cev za hišne priključke",80,"m",null,{"$f":"+G77*E77","v":0}]
[]
[null,"V4",4,"Navrtno sedlo (oklep) na cevi NL ali PP ( za klasično montažo) z vgradbeno garnituro za hišne priključke - teleskopska 1,3 do 2,0m. Vključno zmanjševalnim kosom in prehodno ločno spojko.",15,"kos",null,{"$f":"+G79*E79","v":0}]
[]
[null,"V4",5,"Spiranje hišnih priključkov",15,"kos",null,{"$f":"+G81*E81","v":0}]
[]
[null,null,null,null,null,null,"SKUPAJ cevni material  ",{"$f":"SUM(H23:H82)","v":0}]
[]
[]
[null,"V4","-20/00","MONTAŽNA DELA"]
[null,"V4",1,"Prenos, spuščanje in polaganje NL cevi v jarek ter poravnava cevi v vertikalni in horizontalni smeri.",282,"m",null,{"$f":"+G87*E87","v":0}]
[]
[null,"V4",2,"Prenos, spuščanje in polaganje PE cevi v jarek ter poravnava cevi v vertikalni in horizontalni smeri.",10,"m",null,{"$f":"+G89*E89","v":0}]
[]
[null,"V4",3,"Montaža cevi  na predhodno pripravljeno ležišče oz. posteljico.",292,"m",null,{"$f":"+G91*E91","v":0}]
[]
[null,"V4",4,"Prenos in spuščanje fazonskih kosov in vodovodnih armatur do teže 100kg/kos, poravnavanje v smeri.",58,"kos",null,{"$f":"+G93*E93","v":0}]
[]
[null,"V4",5,"Montaža NL duktil fazonskih kosov in vodovodnih armatur na predhodno pripravljeno ležišče oz. posteljico, ter dokončna obdelava in zaščita spojev.",46,"kos",null,{"$f":"+G95*E95","v":0}]
[]
[null,"V4",6,"Montaža zasunov z vgradbeno garnituro in cestno varovalno kapo, na predhodno pripravljeno ležišče oz. posteljico, vključno s podbetoniranjem.",7,"kos",null,{"$f":"+G97*E97","v":0}]
[]
[null,"V4",7,"Montaža nadtalnih hidrantov z vgradbeno garnituro na predhodno pripravljeno ležišče oz. posteljico, vključno s podbetoniranjem. Vgradbena globina 1,5m.",4,"kos",null,{"$f":"+G99*E99","v":0}]
[]
[null,"V4",8,"Montaža in preskus delovanja zračnikov na predhodno pripravljeno ležišče oz. posteljico, vključno s podbetoniranjem",1,"kos",null,{"$f":"+G101*E101","v":0}]
[]
[null,"V4",9,"Montaža hišnih priključkov - končnih. Montaža vključuje navrtavanje na NL ali PP cev, priključitev cevi PP 32mm, dolžine 3 do 5m, montaža vgradbene garniture in montažo cestne kape usklajene z niveleto ceste, vključno z betonskim podstavkom. Vključno z zaključnim spiranjem pred priklopom.",15,"kos",null,{"$f":"+G103*E103","v":0}]
[]
[null,"V4",10,"Montaža hišnih priključkov - za čas gradnje. Montaža vključuje navrtavanje na PP cev, priključitev na obstoječo cev montaža zasuna 32mm, vključno z zaključnim spiranjem pred priklopom.",15,"kos",null,{"$f":"+G105*E105","v":0}]
[]
[null,"V4",11,"Tlačni preizkus vodovoda, po opisu v tehničnem poročilu, z digitalnim izpisom, skladno s standardom SIST EN 805 (priporočilo 10 bar).",292,"m",null,{"$f":"+G107*E107","v":0}]
[]
[null,"V4",12,"Spiranje in dezinfekcija cevovoda po končani gradnji, z odvzemom vzorcev vode, analizami ter strokovnim mnenjem; skladno s standardom SIST EN 805:2000",292,"m",null,{"$f":"+G109*E109","v":0}]
[]
[null,"V4",13,"Nabava, dobava in polaganje signalnega traku nad vodovodno cevjo - PVC trak modre barve z napisom POZOR VODOVOD.",300,"m",null,{"$f":"+G111*E111","v":0}]
[]
[null,"V4",14,"Preskus hidrantov po Pravilniku o preizkušanju hidrantnih omrežij, s strani organizacije (s pooblastilom RS uprave za zaščito in reševanje), vključno z izdelavo potrdila o brezhibnem delovanju hidrantnega omrežja.",4,"kos",null,{"$f":"+G113*E113","v":0}]
[]
[null,"V4",15,"Zapiranja in odpiranja vode, sodelovanje upravljavca pri prevezavah vodovodnega omrežja.",1,"kpl",null,{"$f":"+G115*E115","v":0}]
[]
[null,"V4",17,"Urna postavka NK monter",1,"ur"]
[null,null,null,"Urna postavka PK monter",1,"ur"]
[null,null,null,"Urna postavka KV monter",1,"ur"]
[null,null,null,"Urna postavka VKV monter",1,"ur"]
[]
[null,null,null,null,null,null,"SKUPAJ montažna dela  ",{"$f":"SUM(H87:H121)","v":0}]
[]
[]
[null,"V4","-40/00","GRADBENA DELA"]
[null,null,null,"- opomba: obračunane so samo količine pod cestnim ustrojem; d=60cm"]
[null,null,null,"- opomba: obračunana so samo dodatne dela glede na načrt ceste"]
[null,"V4","-41/00","Preddela"]
[null,"V4",1,"Zakoličba projektiranih osi vodovoda postavitev prečnih profilov ali zakoličbenih točk, določitev nivoja za merjenje globine vodovoda, prenos višin, z zavarovanjem izven operativnega pasu. ",300,"m",null,{"$f":"+G129*E129","v":0}]
[]
[null,"V4",2,"Trasna in višinska zakoličba obstoječih komunalnih vodov in oznake križanj, vključno s stroški dodatnega nadzora upravljavcev komunalnih vodov. Obračun na osnovi vpisa v dnevnik (vodovod, plin, elektrika, Telekom...).",300,"m",null,{"$f":"+G131*E131","v":0}]
[]
[null,"V4",3,"Rušenje obstoječih vodovodnih cevi (salonit, Fe, NL, PVC, PE, Mannesman…), vseh premerov, vključno z odvozom na deponijo po izbiri izvajalca, s stroški deponiranja in zapiranje (X kos) cevi, ki se opustijo.",245,"m",null,{"$f":"+G133*E133","v":0}]
[]
[null,"V4","-50/00","Zemeljska dela"]
[null,"V4",1,"Strojni izkop jarkov širine 2,0 do 5,0m, za polaganje vodovodne cevi, globine 2,0 do 4,0m, širina v dnu 0,60 do 0,80m (DN cevi +2x 30cm), v zemljini III. kat, naklon izkopa 60° do 80° (se prilagodi karakteristikam zemljine), z odlaganjem materiala direktno na kamion. Pri obračunu količin za vsak odsek od točke do točke usklajevati količine z masno črto iz grafične priloge - vzdolžnega profila."]
[null,null,null,78,675,"m3",null,{"$f":"+G137*E137","v":0}]
[]
[null,"V4",2,"Strojni izkop jarkov širine 2,0 do 5,0m, za polaganje vodovodne cevi, globine 2,0 do 4,0m, širina v dnu 0,60 do 0,80m (DN cevi +2x 30cm), v zemljini III. kat, naklon izkopa 60° do 80° (se prilagodi karakteristikam zemljine), z odlaganjem, materiala v dosegu ročice bagra (ob rob gradbene jame + 1x premet, če je potrebno). Pri obračunu količin za vsak odsek od točke do točke usklajevati količine z masno črto iz grafične priloge - vzdolžnega profila."]
[null,null,null,10,87,"m3",null,{"$f":"+G140*E140","v":0}]
[]
[null,"V4",48,"Ročni izkop jarkov širine do 3,0m, za polaganje vodovodne cevi, globine do 3,0m, v zemljini III. kat, z odlaganjem, materiala ob rob gradbene jame."]
[null,null,null,2,19,"m3",null,{"$f":"+G143*E143","v":0}]
[]
[null,"V4",49,"Strojni izkop jarkov širine 2,0 do 5,0m, za polaganje vodovodne cevi, globine 2,0 do 4,0m, širina v dnu 0,60 do 0,80m (DN cevi +2x 30cm), v mehki kamnini V. kat (brez miniranja), naklon izkopa 60° do 80° (se prilagodi karakteristikam zemljine), z odlaganjem, materiala direktno na kamion. Pri obračunu količin za vsak odsek od točke do točke usklajevati količine z masno črto iz grafične priloge - vzdolžnega profila."]
[null,null,null,10,86,"m3",null,{"$f":"+G146*E146","v":0}]
[]
[null,"V4",50,"Splošni opis: Dodatna dela pri križanjih z obstoječimi in predvidenimi komunalnimi vodi, vključno z dodatnimi deli zaradi vzporednega poteka komunalij:"]
[null,null,null,"- zakoličba vodov skladno z zahtevami upravljavca,"]
[null,null,null,"- nadzor upravljavcev"]
[null,null,null,"- dodatni ročni in strojni izkop v območju križanj"]
[null,null,null,"- zavarovanje gradbene jame v času gradnje in pri zasipavanju"]
[null,null,null,"- zasip z drobnozrnatim peščenim materialom ali obbetoniranjem"]
[null,null,null,"Vkolikor tehnologija odstopa od projekta je potrebno pridobiti tudi pozitivno mnenje upravljavca. Vse poškodbe so breme izvajalca, ki krije vso nastalo škodo). Vse poškodbe so breme izvajalca, ki krije vso nastalo škodo).",17,"kos",null,{"$f":"+G154*E154","v":0}]
[]
[null,"V4",51,"Dodatek za odvoz viška materiala iz prejšnjih postavk na stalno deponijo  po izbiri izvajalca, z razgrinjanjem, vse eventualne stroške deponije (vključno s takso, razgradnjo, odškodninami,...) je zajeti v ceno.",649,"m3",null,{"$f":"+G156*E156","v":0}]
[]
[null,"V4",52,"Dodatek za odvoz viška materiala iz prejšnjih postavk na začasno deponijo  po izbiri izvajalca, z razgrinjanjem, vse eventualne stroške deponije je zajeti v ceno (taksa, odškodnina,…). Vključno s prevozom nazaj na gradbišče.",95,"m3",null,{"$f":"+G158*E158","v":0}]
[]
[null,"V4",53,"Ročno planiranje dna gradbene jame po strojnem izkopu, s planuumom padca - z izkopom ali dosipom materiala do 0,1m3/m2, z natančnostjo +-3cm, do potrebne zbitosti (Ev2 ≥ 20 MPa) , v III do V. ktg.",205,"m2",null,{"$f":"+G160*E160","v":0}]
[]
[null,"V4",54,"Nabava, dobava in izdelava posteljice in obsip kanalizacijske cevi; okroglozrnate granulacije, do višine 30cm nad temenom cevi, vključno z utrjevanjem. Pri obračunu količin za vsak odsek od točke do točke usklajevati količine z masno črto iz grafične priloge - vzdolžnega profila. Uporaba recikliranega materiala ni dovoljena."]
[null,null,null,"- v primeru grobozrnatega, peščenega ali  prodnega zemljišča je granulacija obsipa 4-8mm"]
[null,null,null,"- v primeru finozrnatega zemljišča je granulacija obsipa 1-4mm",166,"m3",null,{"$f":"+G164*E164","v":0}]
[]
[null,"V4",55,"Nabava, dobava in strojni zasip, z gramoznim materialom, po končanih delih, z utrjevanjem v slojih po 30cm, zahtevana stopnja komprimacije M=80MPa (8-10% CBR). Upoštevan zasip do tampona - 54cm pod nivojem lokalne ceste (ulice) Pri obračunu količin za vsak odsek od točke do točke usklajevati količine z masno črto iz grafične priloge - vzdolžnega profila.  Uporaba recikliranega materiala ni dovoljena."]
[null,null,null,88,118,"m3",null,{"$f":"+G167*E167","v":0}]
[]
[null,"V4",56,"Zasip po končanih delih, z izkopanim materialom, z utrjevanjem v slojih po 30cm - zahtevana stopnja komprimacije M=40 Mpa (8-10% CBR). Upoštevan zasip do tampona - 54cm pod nivojem lokalne ceste (ulice)."]
[null,null,null,12,103,"m3",null,{"$f":"+G170*E170","v":0}]
[]
[null,"V4",57,"Kompletna izdelava betonskih blokov za sidranje fazonov in armatur; vključno z objemkami in podložno gumo (0.15-0,40m3/kos).",23,"kos",null,{"$f":"+G172*E172","v":0}]
[]
[null,null,null,"Hišni priključki"]
[null,null,null,"(se vgrajujejo samo na podlagi soglasja upravljavca vodovoda in skladno z njim)."]
[null,null,null,"Zakoličba projektiranih osi in zaščita točk, Izkop jarkov v zemljini III, ktg., Širine do 0,80 min globine do 1,50 m,( cca 0,20 m3/m1) ter deponiranje materiala, na začasni deponiji po izbiri izvajalca, za kasnejši zasip. Ročni izkop jarkov v zemljini III, ktg. širine do 1,00m, in globine do 1,50m, (cca 1,0 m3/m1) ter odmet materiala vsaj 1.00 m od roba izkopa. Kompletna izdelava prebojev oziroma podbojev pod obstoječimi betonskimi in kamnitimi opornimi zidovi,ograjami, parapeti (ocena količine 0,03kom/m1). "]
[null,null,null," Kompletna izdelava posteljice iz separacije, granulacije 4-8 mm peska v debelini 10 cm (cca 0,07 m3/m1). Nabava, dobava raznos in montaža pod tlakom cevi PE 3/4\", 1\", DN63mm po gradbišču in spuščanje v jarek z gradbeno mehanizacijo. Obračun pa m1. Izdelava zasipa cevi s separacijo granulacije 4-8 mm v debelini vsaj 10-20 cm nad temenom cevi (cca 0,22 m3/m1). Ureditev terena v prvotno stanje (asfalt ali ureditev zelenice). Ročno zasipanje jarkov z izkopanim materialom v slojih po 30 cm z utrjevanjem (cca 0,90m3/m). Nakladanje in dovoz odvečnega materiala III. ktg, s kamioni na razdaljo do 14 km ter grobo razprostiranje pripeljanega materiala (cca 0,30 m3/m1).\n",224,"m",null,{"$f":"+G177*E177","v":0}]
[null,null,null,null,15,"kos",null,{"$f":"+G178*E178","v":0}]
[]
[null,"V4","-80/00","OSTALA DELA"]
[null,"V4",1,"Dodatna in nepredvidena dela pri priključitvi na obstoječ vodovod - izven jaška.",5,"kos",null,{"$f":"+G181*E181","v":0}]
[]
[null,"V4",2,"Nadzor upravljavca vodovoda",28,"ur",45,{"$f":"+G183*E183","v":1260}]
[]
[null,"V4",3,"Projektantski nadzor in usklajevanje projekta z dejansko ugotovljenim stanjem na terenu. Obračun po dejanskih urah (+stroški prevoza).",35,"ur",45,{"$f":"+G185*E185","v":1575}]
[]
[null,"V4",4,"Geodetski posnetek pri odprti trasi (pred zasutjem), za glavne cevovod in hišne priključke, izdelava PID v papirni in elektronski obliki skladno s pravilnikom in navodili Komunalnega podjetja Hydrovod vključno z vodilno mapo in dokazilom o zanesljivosti, dokumentacija za tehnični pregled, izvajalski del dokumentacije za pridobitev uporabnega dovoljenja (atesti, certifikati, izjave o lastnostih).. glej tudi tehnično poročilo.",1,"znesek",null,{"$f":"+G187*E187","v":0}]
[]
[null,null,null,null,null,null,"SKUPAJ gradbena dela ",{"$f":"SUM(H125:H187)","v":2835}]
[]
[null,null,null,"SKUPAJ VODOVOD 4",null,null,null,{"$f":"H189+H122+H83","v":2835}]